Ref No,Fund Type,Dept,Cost Centre Description    ,Description    ,Creditor Name    ,GL Code Net Amount,Payment date        
2,Revenue,CAHD,18-25 Year Olds,Permanent Residential,Winslow Court,13333.52, 04-Jun-2019
3,Revenue,CAHD,CSC - Care Leavers Support Costs,"Provisions (Food, etc)",1625 Independent People,16.76, 06-Jun-2019
4,Revenue,CAHD,CSC - Care Leavers Support Costs,Radio Pager/Mobile Phones,1625 Independent People,25.00, 06-Jun-2019
5,Revenue,CAHD,CSC - Care Leavers Support Costs,Other Supplies & Services,1625 Independent People,148.53, 06-Jun-2019
6,Revenue,CAHD,CSC - Care Leavers Support Costs,Adults - Family Support,1625 Independent People,870.71, 06-Jun-2019
7,Revenue,CAHD,CSC - Care Leavers Support Costs,Other Supplies & Services,1625 Independent People,198.65, 06-Jun-2019
8,Revenue,CAHD,CSC - Care Leavers Support Costs,Adults - Family Support,1625 Independent People,310.00, 06-Jun-2019
9,Revenue,CAHD,CSC - Asylum Seekers - Unaccompanied,Adults - Family Support,16Pluscare Support Solutions,6744.46, 13-Jun-2019
10,Revenue,CAHD,CSC - Care Leavers Independent Living,Independent Living,16Pluscare Support Solutions,2839.90, 24-Jun-2019
11,Revenue,CAHD,North - bed purchasing and direct  payments,Permanent Residential,Cepen Lodge,2741.48, 04-Jun-2019
12,Revenue,CAHD,North - bed purchasing and direct  payments,Permanent Nursing,Yatton Hall Care Home,2268.32, 04-Jun-2019
13,Revenue,CAHD,Central - Community based support,Day Care / Social Activities,3 Trees Community Support Ltd,390.40, 10-Jun-2019
14,Revenue,CAHD,Central - Community based support,Other Small Contracts,3 Trees Community Support Ltd,5152.26, 10-Jun-2019
15,Revenue,CAHD,Central - Community based support,Supported Living,3 Trees Community Support Ltd,5572.52, 10-Jun-2019
16,Revenue,CAHD,North - Community based support,Day Care / Social Activities,3 Trees Community Support Ltd,673.44, 10-Jun-2019
17,Revenue,CAHD,Central - Community based support,Day Care / Social Activities,3 Trees Community Support Ltd,390.40, 07-Jun-2019
18,Revenue,CAHD,Central - Community based support,Other Small Contracts,3 Trees Community Support Ltd,5158.11, 07-Jun-2019
19,Revenue,CAHD,Central - Community based support,Supported Living,3 Trees Community Support Ltd,5589.24, 07-Jun-2019
20,Revenue,CAHD,North - Community based support,Day Care / Social Activities,3 Trees Community Support Ltd,527.04, 07-Jun-2019
21,Revenue,CAHD,Central - Community based support,Day Care / Social Activities,3 Trees Community Support Ltd,287.92, 21-Jun-2019
22,Revenue,CAHD,Central - Community based support,Other Small Contracts,3 Trees Community Support Ltd,5156.67, 21-Jun-2019
23,Revenue,CAHD,Central - Community based support,Supported Living,3 Trees Community Support Ltd,5640.84, 21-Jun-2019
24,Revenue,CAHD,North - Community based support,Day Care / Social Activities,3 Trees Community Support Ltd,673.44, 21-Jun-2019
25,Revenue,CAHD,Central - Community based support,Day Care / Social Activities,3 Trees Community Support Ltd,390.40, 21-Jun-2019
26,Revenue,CAHD,Central - Community based support,Other Small Contracts,3 Trees Community Support Ltd,5165.44, 21-Jun-2019
27,Revenue,CAHD,Central - Community based support,Supported Living,3 Trees Community Support Ltd,5602.79, 21-Jun-2019
28,Revenue,CAHD,North - Community based support,Day Care / Social Activities,3 Trees Community Support Ltd,678.32, 21-Jun-2019
29,Revenue,CAHD,Central - Community based support,Day Care / Social Activities,3 Trees Community Support Ltd,390.40, 21-Jun-2019
30,Revenue,CAHD,Central - Community based support,Other Small Contracts,3 Trees Community Support Ltd,5149.83, 21-Jun-2019
31,Revenue,CAHD,Central - Community based support,Supported Living,3 Trees Community Support Ltd,5602.44, 21-Jun-2019
32,Revenue,CAHD,North - Community based support,Day Care / Social Activities,3 Trees Community Support Ltd,673.44, 21-Jun-2019
33,Revenue,CAHD,18-25 Year Olds,Permanent Residential,Beechwood Court,15254.92, 04-Jun-2019
34,Revenue,CAHD,18-25 Year Olds,Permanent Residential,Beechwood Court,18219.32, 04-Jun-2019
35,Revenue,CAHD,North - bed purchasing and direct  payments,Permanent Residential,Beechwood Court,13815.84, 04-Jun-2019
36,Revenue,CAHD,18-25 Year Olds,Permanent Residential,Beechwood Court,13829.56, 04-Jun-2019
37,Revenue,CAHD,North - bed purchasing and direct  payments,Permanent Residential,Beechwood Court,14717.16, 04-Jun-2019
38,Revenue,CAHD,Jointly Funded H&SC Packages,Permanent Residential,Beechwood Court,3641.84, 04-Jun-2019
39,Revenue,CAHD,South - Bed Purchasing and Direct payments,Permanent Residential,Cherry Tree House,16667.12, 04-Jun-2019
40,Revenue,CAHD,South - Bed Purchasing and Direct payments,Permanent Residential,Cherry Tree House,10419.52, 04-Jun-2019
41,Revenue,CAHD,S28A cases,Permanent Residential,Cherry Tree House,10904.68, 04-Jun-2019
42,Revenue,CAHD,South - Bed Purchasing and Direct payments,Permanent Residential,Cherry Tree House,11436.40, 04-Jun-2019
43,Revenue,CAHD,North - bed purchasing and direct  payments,Permanent Residential,Riverdale Care Home,12498.56, 04-Jun-2019
44,Revenue,CAHD,North - bed purchasing and direct  payments,Permanent Residential,Beech House,10537.24, 04-Jun-2019
45,Revenue,CAHD,North - bed purchasing and direct  payments,Permanent Residential,Beech House,9071.12, 04-Jun-2019
46,Revenue,CAHD,CSC - Section 17 0-25,Preventative Assistance,A+bility Ltd,556.00, 18-Jun-2019
47,Revenue,CAHD,EARLY YEARS DEPRIVATION PAYMENT,Preventative Assistance,Abacus @ Baileys Court Activity Centre,526.35, 24-Jun-2019
48,Revenue,CAHD,EARLY YEARS DEPRIVATION PAYMENT,Preventative Assistance,Abacus Pre School @ Mangotsfield,667.57, 24-Jun-2019
49,Revenue,CAHD,EARLY YEARS DEPRIVATION PAYMENT,Preventative Assistance,Abacus Pre-School (Meadowbrook),645.32, 24-Jun-2019
50,Revenue,CAHD,EARLY YEARS DEPRIVATION PAYMENT,Preventative Assistance,Abbeywood Tots Day Nursery Ltd,667.57, 24-Jun-2019
51,Revenue,CAHD,Section 117 Placements MH Younger,Permanent Residential,Acorn Care Providers,6608.20, 04-Jun-2019
52,Revenue,CAHD,MH Purchasing - Younger,Permanent Residential,Acorn Care Providers,6144.00, 04-Jun-2019
53,Revenue,CAHD,Training Budget - Children`s Social Serv,Training Expenses,Acorn Health & Safety Limited,479.00, 20-Jun-2019
54,Revenue,CAHD,Training - Adult Services,Training Expenses,Acorn Health & Safety Limited,477.00, 13-Jun-2019
55,Revenue,CAHD,Training - Adult Services,Training Expenses,Acorn Health & Safety Limited,437.00, 20-Jun-2019
56,Revenue,CAHD,Training - Adult Services,Training Expenses,Acorn Health & Safety Limited,427.50, 27-Jun-2019
57,Revenue,CAHD,CSC - Agency Fostering,Foster Parent Allowances,Action for Children,3352.34, 17-Jun-2019
58,Revenue,CAHD,CSC - Agency Fostering,Foster Parent Allowances,Action for Children,6975.00, 17-Jun-2019
59,Revenue,CAHD,CSC - Agency Fostering,Foster Parent Allowances,Action for Children,1180.70, 17-Jun-2019
60,Revenue,CAHD,CSC - Agency Fostering,Foster Parent Allowances,Action for Children,1180.70, 17-Jun-2019
61,Revenue,CAHD,South - community based support,Other Small Contracts,Advantedge Commercial Finance Limited,502.20, 28-Jun-2019
62,Revenue,CAHD,South - community based support,Other Small Contracts,Advantedge Commercial Finance Limited,603.46, 11-Jun-2019
63,Revenue,CAHD,South - community based support,Other Small Contracts,Advantedge Commercial Finance Limited,590.49, 11-Jun-2019
64,Revenue,CAHD,South - community based support,Other Small Contracts,Advantedge Commercial Finance Limited,523.88, 07-Jun-2019
65,Revenue,CAHD,South - community based support,Other Small Contracts,Advantedge Commercial Finance Limited,747.74, 11-Jun-2019
66,Revenue,CAHD,South - community based support,Other Small Contracts,Advantedge Commercial Finance Limited,1816.27, 07-Jun-2019
67,Revenue,CAHD,South - community based support,Other Small Contracts,Advantedge Commercial Finance Limited,916.78, 18-Jun-2019
68,Revenue,CAHD,South - community based support,Other Small Contracts,Advantedge Commercial Finance Limited,659.39, 17-Jun-2019
69,Revenue,CAHD,North - Community based support,Other Small Contracts,Advantedge Commercial Finance Limited,739.30, 18-Jun-2019
70,Revenue,CAHD,South - community based support,Other Small Contracts,Advantedge Commercial Finance Limited,627.96, 18-Jun-2019
71,Revenue,CAHD,South - community based support,Other Small Contracts,Advantedge Commercial Finance Limited,799.00, 18-Jun-2019
72,Revenue,CAHD,South - community based support,Other Small Contracts,Advantedge Commercial Finance Limited,532.86, 17-Jun-2019
73,Revenue,CAHD,South - community based support,Other Small Contracts,Advantedge Commercial Finance Limited,566.41, 18-Jun-2019
74,Revenue,CAHD,South - community based support,Other Small Contracts,Advantedge Commercial Finance Limited,2093.20, 17-Jun-2019
75,Revenue,CAHD,South - community based support,Other Small Contracts,Advantedge Commercial Finance Limited,932.18, 17-Jun-2019
76,Revenue,CAHD,South - community based support,Other Small Contracts,Advantedge Commercial Finance Limited,637.38, 18-Jun-2019
77,Revenue,CAHD,Central - Community based support,Other Small Contracts,Agincare UK Limited,378.40, 21-Jun-2019
78,Revenue,CAHD,South - community based support,Other Small Contracts,Agincare UK Limited,449.35, 21-Jun-2019
79,Revenue,CAHD,Central - Community based support,Other Small Contracts,Agincare UK Limited,439.89, 21-Jun-2019
80,Revenue,CAHD,South - community based support,Other Small Contracts,Agincare UK Limited,577.06, 21-Jun-2019
81,Revenue,CAHD,Central - Community based support,Other Small Contracts,Agincare UK Limited,595.98, 26-Jun-2019
82,Revenue,CAHD,South - community based support,Other Small Contracts,Agincare UK Limited,487.19, 26-Jun-2019
83,Revenue,CAHD,Extra Care Housing,Private & Voluntary Home Care,Agincare UK Limited,27590.00, 04-Jun-2019
84,Revenue,CAHD,Extra Care Housing,Private & Voluntary Home Care,Agincare UK Limited,1490.13, 12-Jun-2019
85,Revenue,CAHD,Extra Care Housing,Private & Voluntary Home Care,Agincare UK Limited,3931.20, 12-Jun-2019
86,Revenue,CAHD,Extra Care Housing,Private & Voluntary Home Care,Agincare UK Limited,1099.28, 12-Jun-2019
87,Revenue,CAHD,Prison Assessments & Costs,Other Supplies & Services,Agincare UK Limited,2580.00, 12-Jun-2019
88,Revenue,CAHD,Prison Assessments & Costs,Other Supplies & Services,Agincare UK Limited,4407.50, 13-Jun-2019
89,Revenue,CAHD,18-25 Year Olds,Permanent Residential,Alexander House,14182.68, 04-Jun-2019
90,Revenue,CAHD,South - community based support,Other Small Contracts,AliMo Care Ltd,603.72, 21-Jun-2019
91,Revenue,CAHD,North - Community based support,Other Small Contracts,AliMo Care Ltd,131.04, 21-Jun-2019
92,Revenue,CAHD,South - community based support,Other Small Contracts,AliMo Care Ltd,613.08, 21-Jun-2019
93,Revenue,CAHD,North - Community based support,Other Small Contracts,AliMo Care Ltd,131.04, 21-Jun-2019
94,Revenue,CAHD,South - community based support,Other Small Contracts,AliMo Care Ltd,645.84, 21-Jun-2019
95,Revenue,CAHD,North - Community based support,Other Small Contracts,AliMo Care Ltd,126.36, 21-Jun-2019
96,Revenue,CAHD,South - community based support,Other Small Contracts,AliMo Care Ltd,453.96, 21-Jun-2019
97,Revenue,CAHD,North - Community based support,Other Small Contracts,AliMo Care Ltd,102.96, 21-Jun-2019
98,Revenue,CAHD,North - bed purchasing and direct  payments,Permanent Nursing,Allambie Court,2320.44, 04-Jun-2019
99,Revenue,CAHD,North - bed purchasing and direct  payments,Permanent Nursing,Allambie Court,2320.44, 04-Jun-2019
100,Revenue,CAHD,North - bed purchasing and direct  payments,Respite Planned - Residential,Amber House,13676.50, 04-Jun-2019
101,Revenue,CAHD,North - bed purchasing and direct  payments,Respite Planned - Residential,Amber House,11081.71, 04-Jun-2019
102,Revenue,CAHD,North - bed purchasing and direct  payments,Respite Planned - Residential,Amber House,1764.00, 04-Jun-2019
103,Revenue,CAHD,Early Years Inclusion Fund,Other Public Bodies,Ambourne House Day Nursery,4250.00, 10-Jun-2019
104,Revenue,CAHD,North - bed purchasing and direct  payments,Permanent Nursing,Amerind Grove Nursing Home,2706.32, 04-Jun-2019
105,Revenue,CAHD,CSC - Agency Fostering,Foster Parent Allowances,Amicus Foster Care Ltd,3793.50, 17-Jun-2019
106,Revenue,CAHD,CSC - Agency Fostering,Foster Parent Allowances,Amicus Foster Care Ltd,1542.90, 17-Jun-2019
107,Revenue,CAHD,CSC - Agency Fostering,Foster Parent Allowances,Amicus Foster Care Ltd,5070.67, 03-Jun-2019
108,Revenue,CAHD,CSC - Agency Fostering,Foster Parent Allowances,Amicus Foster Care Ltd,3262.44, 03-Jun-2019
109,Revenue,CAHD,CSC - Parent & Child Assessments,Foster Parent Allowances,Amicus Foster Care Ltd,7625.38, 03-Jun-2019
110,Revenue,CAHD,CSC - Agency Fostering,Foster Parent Allowances,Amicus Foster Care Ltd,4879.00, 03-Jun-2019
111,Revenue,CAHD,CSC - Agency Fostering,Foster Parent Allowances,Amicus Foster Care Ltd,5514.28, 12-Jun-2019
112,Revenue,CAHD,CSC - Agency Fostering,Foster Parent Allowances,Amicus Foster Care Ltd,807.16, 24-Jun-2019
113,Revenue,CAHD,CAHA - Complaints and FOI,Complaints External Expenses,Individual,572.25, 27-Jun-2019
114,Revenue,CAHD,EARLY YEARS DEPRIVATION PAYMENT,Preventative Assistance,Apple Tree Pre-School,1134.87, 24-Jun-2019
115,Revenue,CAHD,Early Years Pupil Premium Grant,Preventative Assistance,Apple Tree Pre-School,702.78, 24-Jun-2019
116,Revenue,CAHD,"Strategy, Advice and Public Protection",Radio Pager/Mobile Phones,Applied Satellite Technology Systems Ltd,795.00, 20-Jun-2019
117,Revenue,CAHD,CSC - Vinney Green Secure Unit,Educational Materials,Ascentis,600.00, 07-Jun-2019
118,Revenue,CAHD,Jointly Funded H&SC Packages,Permanent Residential,Ash View House,1111.40, 04-Jun-2019
119,Revenue,CAHD,South - Bed Purchasing and Direct payments,Permanent Residential,Ash View House,5421.04, 04-Jun-2019
120,Revenue,CAHD,S117 Placements PCT,Permanent Residential,Ash View House,7556.32, 04-Jun-2019
121,Revenue,CAHD,18-25 Year Olds,Permanent Residential,Ash View House,7099.52, 04-Jun-2019
122,Revenue,CAHD,Section 117 Placements MH Younger,Permanent Residential,Ash View House,4924.12, 04-Jun-2019
123,Revenue,CAHD,Jointly Funded H&SC Packages,Permanent Residential,Ash View House,2110.40, 04-Jun-2019
124,Revenue,CAHD,South - S117,Permanent Residential,Ash View House,6692.80, 04-Jun-2019
125,Revenue,CAHD,18-25 Year Olds,Permanent Residential,Ash View House,6615.52, 04-Jun-2019
126,Revenue,CAHD,CSC - Legal Fees,Legal Fees,Asha Groves,550.00, 13-Jun-2019
127,Revenue,CAHD,CSC - Legal Fees,Legal Fees,Asha Groves,600.00, 13-Jun-2019
128,Revenue,CAHD,Bed and Breakfast,Bed & Breakfast,Ashley Guest Houses Limited,440.00, 13-Jun-2019
129,Revenue,CAHD,CSC - Care Leavers Support Costs,Furniture & Fittings Loose,Individual,600.00, 28-Jun-2019
130,Revenue,CAHD,Drug and Alcohol Programme,Rent,Ashville Asset Management Limited,1211.02, 24-Jun-2019
131,Revenue,CAHD,Drug and Alcohol Programme,Rent,Ashville Asset Management Limited,4550.00, 24-Jun-2019
132,Revenue,CAHD,North - bed purchasing and direct  payments,Permanent Residential,Aspects 2 Limited,7231.88, 04-Jun-2019
133,Revenue,CAHD,CSC - Vinney Green Secure Unit,R & M by Departments,Assa Abloy Limited,572.00, 26-Jun-2019
134,Revenue,CAHD,CSC - Vinney Green Secure Unit,R & M by Departments,Assa Abloy Limited,4245.81, 26-Jun-2019
135,Revenue,CAHD,South - community based support,Adults - Family Support,Ategi Limited,825.96, 19-Jun-2019
136,Revenue,CAHD,North - Community based support,Adults - Family Support,Ategi Limited,930.96, 06-Jun-2019
137,Revenue,CAHD,South - community based support,Adults - Family Support,Ategi Limited,771.96, 04-Jun-2019
138,Revenue,CAHD,South - community based support,Adults - Family Support,Ategi Limited,2039.40, 21-Jun-2019
139,Revenue,CAHD,South - Bed Purchasing and Direct payments,Adults - Family Support,Ategi Limited,14361.02, 26-Jun-2019
140,Revenue,CAHD,Shared Lives,Other Supplies & Services,Ategi Limited,50430.75, 28-Jun-2019
141,Revenue,CAHD,Independent Special Placements - Pre 16,Other Private Contractors,Aurora Hedgeway School,9810.19, 24-Jun-2019
142,Revenue,CAHD,South - Bed Purchasing and Direct payments,Permanent Residential,Autism Specialised Care Homes,6506.88, 04-Jun-2019
143,Revenue,CAHD,North - bed purchasing and direct  payments,Permanent Residential,Avery Homes Downend Limited,4200.00, 04-Jun-2019
144,Revenue,CAHD,North - bed purchasing and direct  payments,Permanent Residential,Avery Homes Downend Limited,4300.80, 04-Jun-2019
145,Revenue,CAHD,North - bed purchasing and direct  payments,Permanent Residential,Avery Homes Downend Limited,5420.00, 04-Jun-2019
146,Revenue,CAHD,North - bed purchasing and direct  payments,Permanent Residential,Avery Homes Downend Limited,2516.43, 04-Jun-2019
147,Revenue,CAHD,North - bed purchasing and direct  payments,Permanent Residential,Avery Homes Downend Limited,4420.00, 04-Jun-2019
148,Revenue,CAHD,North - bed purchasing and direct  payments,Permanent Residential,Avery Homes Downend Limited,13578.24, 04-Jun-2019
149,Revenue,CAHD,North - bed purchasing and direct  payments,Permanent Residential,Avery Homes Downend Limited,4202.79, 04-Jun-2019
150,Revenue,CAHD,North - bed purchasing and direct  payments,Permanent Residential,Avery Homes Downend Limited,4104.28, 04-Jun-2019
151,Revenue,CAHD,North - bed purchasing and direct  payments,Permanent Residential,Avery Homes Downend Limited,3394.56, 04-Jun-2019
152,Revenue,CAHD,North - bed purchasing and direct  payments,Fees & Charges Income - General,Avery Homes Downend Limited,833.76, 04-Jun-2019
153,Revenue,CAHD,North - bed purchasing and direct  payments,Fees & Charges Income - General,Avery Homes Downend Limited,833.76, 04-Jun-2019
154,Revenue,CAHD,CSC - Vinney Green Secure Unit,R & M by Departments,AVL Solutions Ltd,6109.00, 12-Jun-2019
155,Revenue,CAHD,CSC - Legal Fees,Legal Fees,Avon & Somerset Family Law,581.25, 21-Jun-2019
156,Revenue,CAHD,CSC - LAC - Counselling & Therapy,Other Supplies & Services,Avon & Wiltshire Mental Health,15000.00, 10-Jun-2019
157,Revenue,CAHD,Younger Adult Mental Health,Health Services (Third Party Payments),Avon & Wiltshire Mental Health,1693.33, 17-Jun-2019
158,Revenue,CAHD,Early Years High Needs Support,Other Private Contractors,Baker Street Nursery & Pre-School,880.77, 21-Jun-2019
159,Revenue,CAHD,CSC - Quality Review Unit,Agency Staff (Admin/Support Staff) Pay,Baltimore Consulting Group,2280.00, 04-Jun-2019
160,Revenue,CAHD,CSC - Quality Review Unit,Agency Staff (Admin/Support Staff) Pay,Baltimore Consulting Group,2400.00, 17-Jun-2019
161,Revenue,CAHD,CSC - Quality Review Unit,Agency Staff (Admin/Support Staff) Pay,Baltimore Consulting Group,1920.00, 19-Jun-2019
162,Revenue,CAHD,CSC - Quality Review Unit,Agency Staff (Admin/Support Staff) Pay,Baltimore Consulting Group,2400.00, 24-Jun-2019
163,Revenue,CAHD,A & CL - Pre-Employability 18/19,Premises Hire,Banjo Island Community & Sports Association,200.00, 25-Jun-2019
164,Revenue,CAHD,A & CL - Employability 18/19,Premises Hire,Banjo Island Community & Sports Association,320.00, 25-Jun-2019
165,Revenue,CAHD,A & CL - Community Development 18/19,Premises Hire,Banjo Island Community & Sports Association,400.00, 25-Jun-2019
166,Revenue,CAHD,CSC - Adoption Support Fund,Post Adoption,Individual,1120.00, 28-Jun-2019
167,Revenue,CAHD,CSC - Adoption Support Fund,Post Adoption,Individual,630.00, 20-Jun-2019
168,Revenue,CAHD,South Glos Users in South Glos Homes,Permanent Nursing,Beaufort Grange Care Home,662.24, 04-Jun-2019
169,Revenue,CAHD,South Glos Users in South Glos Homes,Permanent Nursing,Beaufort Grange Care Home,662.24, 04-Jun-2019
170,Revenue,CAHD,South Glos Users in South Glos Homes,Permanent Nursing,Beaufort Grange Care Home,662.24, 04-Jun-2019
171,Revenue,CAHD,South Glos Users in South Glos Homes,Permanent Nursing,Beaufort Grange Care Home,662.24, 04-Jun-2019
172,Revenue,CAHD,South Glos Users in South Glos Homes,Permanent Nursing,Beaufort Grange Care Home,662.24, 04-Jun-2019
173,Revenue,CAHD,South Glos Users in South Glos Homes,Permanent Nursing,Beaufort Grange Care Home,662.24, 04-Jun-2019
174,Revenue,CAHD,South Glos Users in South Glos Homes,Permanent Nursing,Beaufort Grange Care Home,662.24, 04-Jun-2019
175,Revenue,CAHD,South Glos Users in South Glos Homes,Permanent Nursing,Beaufort Grange Care Home,662.24, 04-Jun-2019
176,Revenue,CAHD,North - S117,Permanent Nursing,Beaufort Grange Care Home,4877.04, 04-Jun-2019
177,Revenue,CAHD,South Glos Users in South Glos Homes,Permanent Nursing,Beaufort Grange Care Home,662.24, 04-Jun-2019
178,Revenue,CAHD,South Glos Users in South Glos Homes,Permanent Nursing,Beaufort Grange Care Home,662.24, 04-Jun-2019
179,Revenue,CAHD,South Glos Users in South Glos Homes,Permanent Nursing,Beaufort Grange Care Home,662.24, 04-Jun-2019
180,Revenue,CAHD,South Glos Users in South Glos Homes,Permanent Nursing,Beaufort Grange Care Home,662.24, 04-Jun-2019
181,Revenue,CAHD,South Glos Users in South Glos Homes,Permanent Nursing,Beaufort Grange Care Home,662.24, 04-Jun-2019
182,Revenue,CAHD,South - Bed Purchasing and Direct payments,Respite Planned - Nursing,Beaufort Grange Care Home,1251.44, 04-Jun-2019
183,Revenue,CAHD,South Glos Users in South Glos Homes,Permanent Nursing,Beaufort Grange Care Home,662.24, 04-Jun-2019
184,Revenue,CAHD,South Glos Users in South Glos Homes,Permanent Nursing,Beaufort Grange Care Home,662.24, 04-Jun-2019
185,Revenue,CAHD,South Glos Users in South Glos Homes,Permanent Nursing,Beaufort Grange Care Home,662.24, 04-Jun-2019
186,Revenue,CAHD,South Glos Users in South Glos Homes,Permanent Nursing,Beaufort Grange Care Home,662.24, 04-Jun-2019
187,Revenue,CAHD,South Glos Users in South Glos Homes,Permanent Nursing,Beaufort Grange Care Home,662.24, 04-Jun-2019
188,Revenue,CAHD,South Glos Users in South Glos Homes,Permanent Nursing,Beaufort Grange Care Home,662.24, 04-Jun-2019
189,Revenue,CAHD,South Glos Users in South Glos Homes,Permanent Nursing,Beaufort Grange Care Home,662.24, 04-Jun-2019
190,Revenue,CAHD,South Glos Users in South Glos Homes,Permanent Nursing,Beaufort Grange Care Home,662.24, 04-Jun-2019
191,Revenue,CAHD,South - Bed Purchasing and Direct payments,Permanent Residential,Beaufort Grange Care Home,5156.20, 04-Jun-2019
192,Revenue,CAHD,South Glos Users in South Glos Homes,Permanent Nursing,Beaufort Grange Care Home,662.24, 04-Jun-2019
193,Revenue,CAHD,South Glos Users in South Glos Homes,Permanent Nursing,Beaufort Grange Care Home,662.24, 04-Jun-2019
194,Revenue,CAHD,South Glos Users in South Glos Homes,Permanent Nursing,Beaufort Grange Care Home,662.24, 04-Jun-2019
195,Revenue,CAHD,South Glos Users in South Glos Homes,Permanent Nursing,Beaufort Grange Care Home,662.24, 04-Jun-2019
196,Revenue,CAHD,South Glos Users in South Glos Homes,Permanent Nursing,Beaufort Grange Care Home,662.24, 04-Jun-2019
197,Revenue,CAHD,South Glos Users in South Glos Homes,Permanent Nursing,Beaufort Grange Care Home,662.24, 04-Jun-2019
198,Revenue,CAHD,South Glos Users in South Glos Homes,Permanent Nursing,Beaufort Grange Care Home,662.24, 04-Jun-2019
199,Revenue,CAHD,South Glos Users in South Glos Homes,Permanent Nursing,Beaufort Grange Care Home,662.24, 04-Jun-2019
200,Revenue,CAHD,South Glos Users in South Glos Homes,Permanent Nursing,Beaufort Grange Care Home,662.24, 04-Jun-2019
201,Revenue,CAHD,South Glos Users in South Glos Homes,Permanent Nursing,Beaufort Grange Care Home,662.24, 04-Jun-2019
202,Revenue,CAHD,South Glos Users in South Glos Homes,Permanent Nursing,Beaufort Grange Care Home,662.24, 04-Jun-2019
203,Revenue,CAHD,North - bed purchasing and direct  payments,Permanent Residential,Beaufort House,2549.56, 04-Jun-2019
204,Revenue,CAHD,Central - Bed Purchasing and Direct Payments,Permanent Residential,Beaufort House,2867.20, 04-Jun-2019
205,Revenue,CAHD,Central - Bed Purchasing and Direct Payments,Permanent Residential,Beaufort House,2775.60, 04-Jun-2019
206,Revenue,CAHD,North - bed purchasing and direct  payments,Permanent Residential,Beaufort House,2571.40, 04-Jun-2019
207,Revenue,CAHD,South - Bed Purchasing and Direct payments,Permanent Residential,Beaufort House,2536.84, 04-Jun-2019
208,Revenue,CAHD,North - bed purchasing and direct  payments,Permanent Residential,Beaufort House,3072.00, 04-Jun-2019
209,Revenue,CAHD,North - bed purchasing and direct  payments,Fees & Charges Income - General,Beaufort House,1084.29, 04-Jun-2019
210,Revenue,CAHD,North - bed purchasing and direct  payments,Fees & Charges Income - General,Beaufort House,1342.20, 04-Jun-2019
211,Revenue,CAHD,North - bed purchasing and direct  payments,Fees & Charges Income - General,Beaufort House,833.76, 04-Jun-2019
212,Revenue,CAHD,Central - Bed Purchasing and Direct Payments,Permanent Residential,Beaufort House,2775.60, 04-Jun-2019
213,Revenue,CAHD,North - bed purchasing and direct  payments,Permanent Residential,Beaufort House,2699.92, 04-Jun-2019
214,Revenue,CAHD,South - Bed Purchasing and Direct payments,Permanent Residential,Beaufort House,2713.00, 04-Jun-2019
215,Revenue,CAHD,Psychology Traded,Other L.A.'s - General,Bedford Borough Council,800.00, 27-Jun-2019
216,Revenue,CAHD,South Glos Users in South Glos Homes,Permanent Nursing,Beech House,662.24, 04-Jun-2019
217,Revenue,CAHD,South - Bed Purchasing and Direct payments,Permanent Residential,Beech House,2959.64, 04-Jun-2019
218,Revenue,CAHD,South Glos Users in South Glos Homes,Permanent Nursing,Beech House,662.24, 04-Jun-2019
219,Revenue,CAHD,South Glos Users in South Glos Homes,Permanent Nursing,Beech House,662.24, 04-Jun-2019
220,Revenue,CAHD,South Glos Users in South Glos Homes,Permanent Nursing,Beech House,662.24, 04-Jun-2019
221,Revenue,CAHD,South Glos Users in South Glos Homes,Permanent Nursing,Beech House,662.24, 04-Jun-2019
222,Revenue,CAHD,South Glos Users in South Glos Homes,Permanent Nursing,Beech House,662.24, 04-Jun-2019
223,Revenue,CAHD,South Glos Users in South Glos Homes,Permanent Nursing,Beech House,662.24, 04-Jun-2019
224,Revenue,CAHD,North - bed purchasing and direct  payments,Permanent Nursing,Beech House,3547.76, 04-Jun-2019
225,Revenue,CAHD,North - bed purchasing and direct  payments,Fees & Charges Income - General,Beech House,786.91, 04-Jun-2019
226,Revenue,CAHD,North - bed purchasing and direct  payments,Fees & Charges Income - General,Beech House,1732.66, 04-Jun-2019
227,Revenue,CAHD,South Glos Users in South Glos Homes,Permanent Nursing,Beech House,662.24, 04-Jun-2019
228,Revenue,CAHD,North - bed purchasing and direct  payments,Permanent Residential,Beech House,2959.64, 04-Jun-2019
229,Revenue,CAHD,South Glos Users in South Glos Homes,Permanent Nursing,Beech House,662.24, 04-Jun-2019
230,Revenue,CAHD,South Glos Users in South Glos Homes,Permanent Nursing,Beech House,662.24, 04-Jun-2019
231,Revenue,CAHD,North - bed purchasing and direct  payments,Permanent Nursing,Beech House,4283.20, 04-Jun-2019
232,Revenue,CAHD,South Glos Users in South Glos Homes,Permanent Nursing,Beech House,662.24, 04-Jun-2019
233,Revenue,CAHD,South Glos Users in South Glos Homes,Permanent Nursing,Beech House,662.24, 04-Jun-2019
234,Revenue,CAHD,South Glos Users in South Glos Homes,Permanent Nursing,Beech House,662.24, 04-Jun-2019
235,Revenue,CAHD,South Glos Users in South Glos Homes,Permanent Nursing,Beech House,662.24, 04-Jun-2019
236,Revenue,CAHD,South Glos Users in South Glos Homes,Permanent Nursing,Beech House,1197.50, 04-Jun-2019
237,Revenue,CAHD,South Glos Users in South Glos Homes,Permanent Nursing,Beech House,567.63, 04-Jun-2019
238,Revenue,CAHD,South Glos Users in South Glos Homes,Permanent Nursing,Beech House,662.24, 04-Jun-2019
239,Revenue,CAHD,North - bed purchasing and direct  payments,Permanent Nursing,Beech House,3993.60, 04-Jun-2019
240,Revenue,CAHD,South Glos Users in South Glos Homes,Permanent Nursing,Beech House,662.24, 04-Jun-2019
241,Revenue,CAHD,South Glos Users in South Glos Homes,Permanent Nursing,Beech House,662.24, 04-Jun-2019
242,Revenue,CAHD,North - bed purchasing and direct  payments,Permanent Residential,Beech House,4069.48, 04-Jun-2019
243,Revenue,CAHD,South Glos Users in South Glos Homes,Permanent Nursing,Beech House,662.24, 04-Jun-2019
244,Revenue,CAHD,North - bed purchasing and direct  payments,Permanent Residential,Beech House,4075.52, 04-Jun-2019
245,Revenue,CAHD,Bed Purchasing - Southmead Hospital,Respite Emergency - Residential,Beech House,1563.57, 04-Jun-2019
246,Revenue,CAHD,South Glos Users in South Glos Homes,Permanent Nursing,Beech House,662.24, 04-Jun-2019
247,Revenue,CAHD,South Glos Users in South Glos Homes,Permanent Nursing,Beech House,662.24, 04-Jun-2019
248,Revenue,CAHD,South Glos Users in South Glos Homes,Permanent Nursing,Beech House,662.24, 04-Jun-2019
249,Revenue,CAHD,North - bed purchasing and direct  payments,Permanent Nursing,Beech House,3443.44, 04-Jun-2019
250,Revenue,CAHD,South Glos Users in South Glos Homes,Permanent Nursing,Beech House,662.24, 04-Jun-2019
251,Revenue,CAHD,North - bed purchasing and direct  payments,Permanent Nursing,Beech House,3307.44, 04-Jun-2019
252,Revenue,CAHD,South Glos Users in South Glos Homes,Permanent Nursing,Beech House,662.24, 04-Jun-2019
253,Revenue,CAHD,South Glos Users in South Glos Homes,Permanent Nursing,Beech House,662.24, 04-Jun-2019
254,Revenue,CAHD,South Glos Users in South Glos Homes,Permanent Nursing,Beech House,662.24, 04-Jun-2019
255,Revenue,CAHD,North - bed purchasing and direct  payments,Permanent Residential,Beech House,4280.32, 04-Jun-2019
256,Revenue,CAHD,Statemented Support Payments to OLAs,Other L.A.'s - General,Beechen Cliff School,719.29, 28-Jun-2019
257,Revenue,CAHD,South Glos Users in South Glos Homes,Permanent Nursing,Beechwood Care Home,1028.00, 04-Jun-2019
258,Revenue,CAHD,South Glos Users in South Glos Homes,Permanent Nursing,Beechwood Care Home,1799.00, 04-Jun-2019
259,Revenue,CAHD,Independent Special Placements - Pre 16,Other Private Contractors,Belgrave School,4122.33, 05-Jun-2019
260,Revenue,CAHD,South - S117,Permanent Residential,Bidna House,3692.64, 04-Jun-2019
261,Revenue,CAHD,Central - Community based support,Other Small Contracts,Blakehill Healthcare Ltd,1650.00, 13-Jun-2019
262,Revenue,CAHD,Central - Community based support,Other Small Contracts,Blakehill Healthcare Ltd,3487.50, 13-Jun-2019
263,Revenue,CAHD,Central - Community based support,Other Small Contracts,Blakehill Healthcare Ltd,5700.00, 14-Jun-2019
264,Revenue,CAHD,Central - Community based support,Other Small Contracts,Blakehill Healthcare Ltd,712.50, 19-Jun-2019
265,Revenue,CAHD,South Glos Users in South Glos Homes,Permanent Nursing,Blossom Field,662.24, 04-Jun-2019
266,Revenue,CAHD,South Glos Users in South Glos Homes,Permanent Nursing,Blossom Field,662.24, 04-Jun-2019
267,Revenue,CAHD,North - S117,Permanent Nursing,Blossom Field,3693.56, 04-Jun-2019
268,Revenue,CAHD,South Glos Users in South Glos Homes,Permanent Nursing,Blossom Field,662.24, 04-Jun-2019
269,Revenue,CAHD,South Glos Users in South Glos Homes,Permanent Nursing,Blossom Field,662.24, 04-Jun-2019
270,Revenue,CAHD,North - bed purchasing and direct  payments,Permanent Nursing,Blossom Field,5963.00, 04-Jun-2019
271,Revenue,CAHD,North - bed purchasing and direct  payments,Permanent Nursing,Blossom Field,5963.00, 04-Jun-2019
272,Revenue,CAHD,North - bed purchasing and direct  payments,Permanent Nursing,Blossom Field,4770.40, 04-Jun-2019
273,Revenue,CAHD,South Glos Users in South Glos Homes,Permanent Nursing,Blossom Field,662.24, 04-Jun-2019
274,Revenue,CAHD,North - bed purchasing and direct  payments,Fees & Charges Income - General,Blossom Field,1539.67, 04-Jun-2019
275,Revenue,CAHD,North - bed purchasing and direct  payments,Permanent Nursing,Blossom Field,4267.36, 04-Jun-2019
276,Revenue,CAHD,South Glos Users in South Glos Homes,Permanent Nursing,Blossom Field,662.24, 04-Jun-2019
277,Revenue,CAHD,North - bed purchasing and direct  payments,Permanent Nursing,Blossom Field,3891.20, 04-Jun-2019
278,Revenue,CAHD,South Glos Users in South Glos Homes,Permanent Nursing,Blossom Field,662.24, 04-Jun-2019
279,Revenue,CAHD,Bed Purchasing - Southmead Hospital,Permanent Nursing,Blossom Field,5000.00, 04-Jun-2019
280,Revenue,CAHD,Bed Purchasing - Southmead Hospital,Permanent Nursing,Blossom Field,3571.43, 04-Jun-2019
281,Revenue,CAHD,South Glos Users in South Glos Homes,Permanent Nursing,Blossom Field,662.24, 04-Jun-2019
282,Revenue,CAHD,South - Bed Purchasing and Direct payments,Permanent Nursing,Blossom Field,4413.08, 04-Jun-2019
283,Revenue,CAHD,South Glos Users in South Glos Homes,Permanent Nursing,Blossom Field,662.24, 04-Jun-2019
284,Revenue,CAHD,North - bed purchasing and direct  payments,Permanent Nursing,Blossom Field,3533.92, 04-Jun-2019
285,Revenue,CAHD,South Glos Users in South Glos Homes,Permanent Nursing,Blossom Field,662.24, 04-Jun-2019
286,Revenue,CAHD,North - bed purchasing and direct  payments,Permanent Nursing,Blossom Field,4799.88, 04-Jun-2019
287,Revenue,CAHD,South Glos Users in South Glos Homes,Permanent Nursing,Blossom Field,662.24, 04-Jun-2019
288,Revenue,CAHD,South Glos Users in South Glos Homes,Permanent Nursing,Blossom Field,662.24, 04-Jun-2019
289,Revenue,CAHD,South Glos Users in South Glos Homes,Permanent Nursing,Blossom Field,662.24, 04-Jun-2019
290,Revenue,CAHD,South Glos Users in South Glos Homes,Permanent Nursing,Blossom Field,662.24, 04-Jun-2019
291,Revenue,CAHD,Central - Bed Purchasing and Direct Payments,Permanent Nursing,Blossom Field,4267.36, 04-Jun-2019
292,Revenue,CAHD,South Glos Users in South Glos Homes,Permanent Nursing,Blossom Field,662.24, 04-Jun-2019
293,Revenue,CAHD,South Glos Users in South Glos Homes,Permanent Nursing,Blossom Field,662.24, 04-Jun-2019
294,Revenue,CAHD,South Glos Users in South Glos Homes,Permanent Nursing,Blossom Field,662.24, 04-Jun-2019
295,Revenue,CAHD,South Glos Users in South Glos Homes,Permanent Nursing,Blossom Field,662.24, 04-Jun-2019
296,Revenue,CAHD,North - bed purchasing and direct  payments,Permanent Nursing,Blossom Field,4114.95, 04-Jun-2019
297,Revenue,CAHD,South Glos Users in South Glos Homes,Permanent Nursing,Blossom Field,662.24, 04-Jun-2019
298,Revenue,CAHD,North - bed purchasing and direct  payments,Permanent Nursing,Blossom Field,12802.08, 04-Jun-2019
299,Revenue,CAHD,North - bed purchasing and direct  payments,Permanent Nursing,Blossom Field,9674.23, 04-Jun-2019
300,Revenue,CAHD,North - bed purchasing and direct  payments,Fees & Charges Income - General,Blossom Field,6096.23, 04-Jun-2019
301,Revenue,CAHD,North - bed purchasing and direct  payments,Fees & Charges Income - General,Blossom Field,833.76, 04-Jun-2019
302,Revenue,CAHD,North - bed purchasing and direct  payments,Fees & Charges Income - General,Blossom Field,6102.21, 04-Jun-2019
303,Revenue,CAHD,North - bed purchasing and direct  payments,Fees & Charges Income - General,Blossom Field,1262.63, 04-Jun-2019
304,Revenue,CAHD,South Glos Users in South Glos Homes,Permanent Nursing,Blossom Field,662.24, 04-Jun-2019
305,Revenue,CAHD,South Glos Users in South Glos Homes,Permanent Nursing,Blossom Field,1158.92, 04-Jun-2019
306,Revenue,CAHD,South Glos Users in South Glos Homes,Permanent Nursing,Blossom Field,903.77, 04-Jun-2019
307,Revenue,CAHD,South Glos Users in South Glos Homes,Permanent Nursing,Blossom Field,662.24, 04-Jun-2019
308,Revenue,CAHD,North - bed purchasing and direct  payments,Permanent Nursing,Blossom Field,3634.96, 04-Jun-2019
309,Revenue,CAHD,South Glos Users in South Glos Homes,Permanent Nursing,Blossom Field,662.24, 04-Jun-2019
310,Revenue,CAHD,North - bed purchasing and direct  payments,Fees & Charges Income - General,Blossom Field,997.24, 04-Jun-2019
311,Revenue,CAHD,South Glos Users in South Glos Homes,Permanent Nursing,Blossom Field,662.24, 04-Jun-2019
312,Revenue,CAHD,CSC - Parent & Child Assessments,Foster Parent Allowances,Blue Sky Fostering Limited,6450.00, 19-Jun-2019
313,Revenue,CAHD,North - bed purchasing and direct  payments,Permanent Residential,Bluebells,3699.60, 04-Jun-2019
314,Revenue,CAHD,EARLY YEARS DEPRIVATION PAYMENT,Preventative Assistance,Bluebells Pre School,934.60, 24-Jun-2019
315,Revenue,CAHD,Early Years Pupil Premium Grant,Preventative Assistance,Bluebells Pre School,578.76, 24-Jun-2019
316,Revenue,CAHD,Central - Community based support,Other Small Contracts,Bluebird Care (South Gloucestershire),1351.45, 10-Jun-2019
317,Revenue,CAHD,South - community based support,Other Small Contracts,Bluebird Care (South Gloucestershire),528.38, 10-Jun-2019
318,Revenue,CAHD,North - Community based support,Other Small Contracts,Bluebird Care (South Gloucestershire),1123.45, 10-Jun-2019
319,Revenue,CAHD,Central - Community based support,Other Small Contracts,Bluebird Care (South Gloucestershire),1321.25, 21-Jun-2019
320,Revenue,CAHD,South - community based support,Other Small Contracts,Bluebird Care (South Gloucestershire),532.70, 21-Jun-2019
321,Revenue,CAHD,North - Community based support,Other Small Contracts,Bluebird Care (South Gloucestershire),1115.75, 21-Jun-2019
322,Revenue,CAHD,Central - Community based support,Other Small Contracts,Bluebird Care (South Gloucestershire),1351.45, 21-Jun-2019
323,Revenue,CAHD,South - community based support,Other Small Contracts,Bluebird Care (South Gloucestershire),535.93, 21-Jun-2019
324,Revenue,CAHD,North - Community based support,Other Small Contracts,Bluebird Care (South Gloucestershire),1115.60, 21-Jun-2019
325,Revenue,CAHD,Central - Community based support,Other Small Contracts,Bluebird Care (South Gloucestershire),1321.25, 21-Jun-2019
326,Revenue,CAHD,South - community based support,Other Small Contracts,Bluebird Care (South Gloucestershire),554.26, 21-Jun-2019
327,Revenue,CAHD,North - Community based support,Other Small Contracts,Bluebird Care (South Gloucestershire),1092.65, 21-Jun-2019
328,Revenue,CAHD,Schools Specific Grant Income,Other Supplies & Services,Booktrust,516.72, 25-Jun-2019
329,Revenue,CAHD,S28A cases,Permanent Residential,Bradbury House,6505.16, 04-Jun-2019
330,Revenue,CAHD,18-25 Year Olds,Permanent Residential,Bradbury House,9917.08, 04-Jun-2019
331,Revenue,CAHD,North - S117,Permanent Residential,Bradbury House,5740.24, 04-Jun-2019
332,Revenue,CAHD,Jointly Funded H&SC Packages,Permanent Residential,Bradbury House,7927.00, 04-Jun-2019
333,Revenue,CAHD,North - bed purchasing and direct  payments,Permanent Residential,Bradbury House,1097.41, 04-Jun-2019
334,Revenue,CAHD,CSC - Residential Placements,Permanent Residential,Branas ISAF Ltd,20357.14, 12-Jun-2019
335,Revenue,CAHD,CSC - Residential Placements,Permanent Residential,Branas ISAF Ltd,19285.71, 12-Jun-2019
336,Revenue,CAHD,CSC - Residential Placements,Permanent Residential,Branas ISAF Ltd,21035.71, 24-Jun-2019
337,Revenue,CAHD,CSC - Residential Placements,Permanent Residential,Branas ISAF Ltd,19928.57, 24-Jun-2019
338,Revenue,CAHD,Social Lettings Agency,Fees - General,Individual,8.15, 03-Jun-2019
339,Revenue,CAHD,Social Lettings Agency,Other Supplies & Services,Individual,766.10, 03-Jun-2019
340,Revenue,CAHD,North - bed purchasing and direct  payments,Permanent Residential,Bridge House Care Home,2625.52, 04-Jun-2019
341,Revenue,CAHD,North - bed purchasing and direct  payments,Respite Planned - Residential,Bridge House Care Home,1565.71, 04-Jun-2019
342,Revenue,CAHD,CSC - Vinney Green Secure Unit,Training Expenses,Bridgwater and Taunton College,1423.00, 12-Jun-2019
343,Revenue,CAHD,North - bed purchasing and direct  payments,Permanent Residential,Bridgwater Court,10773.64, 04-Jun-2019
344,Revenue,CAHD,EARLY YEARS DEPRIVATION PAYMENT,Preventative Assistance,Bright Sparks Pre School Limited,1502.03, 24-Jun-2019
345,Revenue,CAHD,Early Years Pupil Premium Grant,Preventative Assistance,Bright Sparks Pre School Limited,930.15, 24-Jun-2019
346,Revenue,CAHD,EARLY YEARS DEPRIVATION PAYMENT,Preventative Assistance,Bright Sparks Pre School Ltd,501.97, 24-Jun-2019
347,Revenue,CAHD,Early Years High Needs Support,Other Private Contractors,Bright Sparks Pre-School,792.69, 21-Jun-2019
348,Revenue,CAHD,Statemented Support Academies,Other Public Bodies,Bristol & South Gloucestershire UTC,7157.54, 28-Jun-2019
349,Revenue,CAHD,CSC - Legal Fees,Legal Fees,Bristol City Council,4562.00, 24-Jun-2019
350,Revenue,CAHD,Transport OLA Special Schools and RB,Client Transport,Bristol City Council,3758.57, 14-Jun-2019
351,Revenue,CAHD,Mental Health and Emotional Wellbeing,Project Funding,Bristol City Council,24500.00, 17-Jun-2019
352,Revenue,CAHD,Placements OLA Special Schools and RB,Other L.A.'s - General,Bristol City Council - Schools,2578.00, 28-Jun-2019
353,Revenue,CAHD,Placements OLA Special Schools and RB,Other L.A.'s - General,Bristol City Council - Schools,1350.17, 28-Jun-2019
354,Revenue,CAHD,Statemented Support Payments to OLAs,Other L.A.'s - General,Bristol City Council - Schools,1379.63, 28-Jun-2019
355,Revenue,CAHD,Placements OLA Special Schools and RB,Other L.A.'s - General,Bristol City Council - Schools,914.33, 28-Jun-2019
356,Revenue,CAHD,Placements OLA Special Schools and RB,Other L.A.'s - General,Bristol City Council - Schools,2578.00, 28-Jun-2019
357,Revenue,CAHD,Placements OLA Special Schools and RB,Other L.A.'s - General,Bristol City Council - Schools,1305.58, 28-Jun-2019
358,Revenue,CAHD,Statemented Support Payments to OLAs,Other L.A.'s - General,Bristol City Council - Schools,660.33, 28-Jun-2019
359,Revenue,CAHD,Placements OLA Special Schools and RB,Other L.A.'s - General,Bristol City Council - Schools,3356.33, 28-Jun-2019
360,Revenue,CAHD,Statemented Support Payments to OLAs,Other L.A.'s - General,Bristol City Council - Schools,907.96, 28-Jun-2019
361,Revenue,CAHD,Placements OLA Special Schools and RB,Other L.A.'s - General,Bristol City Council - Schools,2578.00, 28-Jun-2019
362,Revenue,CAHD,Placements OLA Special Schools and RB,Other L.A.'s - General,Bristol City Council - Schools,1381.00, 28-Jun-2019
363,Revenue,CAHD,Placements OLA Special Schools and RB,Other L.A.'s - General,Bristol City Council - Schools,2050.17, 28-Jun-2019
364,Revenue,CAHD,Placements OLA Special Schools and RB,Other L.A.'s - General,Bristol City Council - Schools,1381.00, 28-Jun-2019
365,Revenue,CAHD,Placements OLA Special Schools and RB,Other L.A.'s - General,Bristol City Council - Schools,2050.17, 28-Jun-2019
366,Revenue,CAHD,Placements OLA Special Schools and RB,Other L.A.'s - General,Bristol City Council - Schools,2578.00, 28-Jun-2019
367,Revenue,CAHD,Placements OLA Special Schools and RB,Other L.A.'s - General,Bristol City Council - Schools,1675.30, 28-Jun-2019
368,Revenue,CAHD,Placements OLA Special Schools and RB,Other L.A.'s - General,Bristol City Council - Schools,809.00, 28-Jun-2019
369,Revenue,CAHD,Placements OLA Special Schools and RB,Other L.A.'s - General,Bristol City Council - Schools,883.50, 28-Jun-2019
370,Revenue,CAHD,Placements OLA Special Schools and RB,Other L.A.'s - General,Bristol City Council - Schools,4107.54, 28-Jun-2019
371,Revenue,CAHD,Placements OLA Special Schools and RB,Other L.A.'s - General,Bristol City Council - Schools,777.50, 28-Jun-2019
372,Revenue,CAHD,Placements OLA Special Schools and RB,Other L.A.'s - General,Bristol City Council - Schools,1031.20, 28-Jun-2019
373,Revenue,CAHD,Placements OLA Special Schools and RB,Other L.A.'s - General,Bristol City Council - Schools,2578.00, 28-Jun-2019
374,Revenue,CAHD,Placements OLA Special Schools and RB,Other L.A.'s - General,Bristol City Council - Schools,809.00, 28-Jun-2019
375,Revenue,CAHD,Placements OLA Special Schools and RB,Other L.A.'s - General,Bristol City Council - Schools,2578.00, 28-Jun-2019
376,Revenue,CAHD,Placements OLA Special Schools and RB,Other L.A.'s - General,Bristol City Council - Schools,883.50, 28-Jun-2019
377,Revenue,CAHD,Placements OLA Special Schools and RB,Other L.A.'s - General,Bristol City Council - Schools,2062.40, 28-Jun-2019
378,Revenue,CAHD,Placements OLA Special Schools and RB,Other L.A.'s - General,Bristol City Council - Schools,2578.00, 28-Jun-2019
379,Revenue,CAHD,Placements OLA Special Schools and RB,Other L.A.'s - General,Bristol City Council - Schools,1305.58, 28-Jun-2019
380,Revenue,CAHD,Placements OLA Special Schools and RB,Other L.A.'s - General,Bristol City Council - Schools,883.50, 28-Jun-2019
381,Revenue,CAHD,CSC - Vinney Green Secure Unit,R & M by Departments,Bristol Electrical Wholesale Limited,452.75, 18-Jun-2019
382,Revenue,CAHD,CSC - Vinney Green Secure Unit,R & M by Departments,Bristol Electrical Wholesale Limited,771.60, 28-Jun-2019
383,Revenue,CAHD,Statemented Support Payments to OLAs,Other L.A.'s - General,Broadlands Academy,1332.46, 28-Jun-2019
384,Revenue,CAHD,Parent Partnership,Fees - General,Browne Jacobson,11356.50, 27-Jun-2019
385,Revenue,CAHD,South Glos Users in South Glos Homes,Permanent Nursing,Brunelcare,733.19, 28-Jun-2019
386,Revenue,CAHD,South Glos Users in South Glos Homes,Permanent Nursing,Brunelcare,733.19, 28-Jun-2019
387,Revenue,CAHD,South Glos Users in South Glos Homes,Permanent Nursing,Brunelcare,733.19, 28-Jun-2019
388,Revenue,CAHD,South Glos Users in South Glos Homes,Permanent Nursing,Brunelcare,733.19, 28-Jun-2019
389,Revenue,CAHD,South Glos Users in South Glos Homes,Permanent Nursing,Brunelcare,733.19, 28-Jun-2019
390,Revenue,CAHD,South Glos Users in South Glos Homes,Permanent Nursing,Brunelcare,733.19, 28-Jun-2019
391,Revenue,CAHD,South Glos Users in South Glos Homes,Permanent Nursing,Brunelcare,733.19, 28-Jun-2019
392,Revenue,CAHD,South Glos Users in South Glos Homes,Permanent Nursing,Brunelcare,733.19, 28-Jun-2019
393,Revenue,CAHD,South Glos Users in South Glos Homes,Permanent Nursing,Brunelcare,733.19, 28-Jun-2019
394,Revenue,CAHD,South Glos Users in South Glos Homes,Permanent Nursing,Brunelcare,733.19, 28-Jun-2019
395,Revenue,CAHD,South Glos Users in South Glos Homes,Permanent Nursing,Brunelcare,733.19, 28-Jun-2019
396,Revenue,CAHD,South Glos Users in South Glos Homes,Permanent Nursing,Brunelcare,733.19, 28-Jun-2019
397,Revenue,CAHD,South Glos Users in South Glos Homes,Permanent Nursing,Brunelcare,733.19, 28-Jun-2019
398,Revenue,CAHD,South Glos Users in South Glos Homes,Permanent Nursing,Brunelcare,733.19, 28-Jun-2019
399,Revenue,CAHD,South - S117,Permanent Nursing,Brunelcare,3669.07, 28-Jun-2019
400,Revenue,CAHD,South - S117,Permanent Nursing,Brunelcare,3669.07, 28-Jun-2019
401,Revenue,CAHD,North - S117,Permanent Nursing,Brunelcare,3669.07, 28-Jun-2019
402,Revenue,CAHD,North - S117,Permanent Nursing,Brunelcare,3669.07, 28-Jun-2019
403,Revenue,CAHD,South - Bed Purchasing and Direct payments,Permanent Nursing,Brunelcare,3669.07, 28-Jun-2019
404,Revenue,CAHD,South - Bed Purchasing and Direct payments,Permanent Nursing,Brunelcare,2674.86, 28-Jun-2019
405,Revenue,CAHD,South - Bed Purchasing and Direct payments,Permanent Nursing,Brunelcare,2831.98, 28-Jun-2019
406,Revenue,CAHD,South - Bed Purchasing and Direct payments,Permanent Nursing,Brunelcare,2938.31, 28-Jun-2019
407,Revenue,CAHD,South - Bed Purchasing and Direct payments,Permanent Nursing,Brunelcare,3056.38, 28-Jun-2019
408,Revenue,CAHD,South - Bed Purchasing and Direct payments,Permanent Nursing,Brunelcare,2663.87, 28-Jun-2019
409,Revenue,CAHD,South - Bed Purchasing and Direct payments,Permanent Nursing,Brunelcare,3038.66, 28-Jun-2019
410,Revenue,CAHD,South - Bed Purchasing and Direct payments,Permanent Nursing,Brunelcare,2672.82, 28-Jun-2019
411,Revenue,CAHD,Enhanced Dementia Beds,Respite Planned - Nursing,Brunelcare,3827.29, 28-Jun-2019
412,Revenue,CAHD,South - Bed Purchasing and Direct payments,Respite Planned - Nursing,Brunelcare,1775.36, 28-Jun-2019
413,Revenue,CAHD,South - Bed Purchasing and Direct payments,Respite Planned - Nursing,Brunelcare,852.05, 28-Jun-2019
414,Revenue,CAHD,North - bed purchasing and direct  payments,Permanent Nursing,Brunelcare,2842.62, 28-Jun-2019
415,Revenue,CAHD,North - bed purchasing and direct  payments,Permanent Nursing,Brunelcare,2945.09, 28-Jun-2019
416,Revenue,CAHD,North - bed purchasing and direct  payments,Permanent Nursing,Brunelcare,2938.49, 28-Jun-2019
417,Revenue,CAHD,North - bed purchasing and direct  payments,Permanent Nursing,Brunelcare,3669.07, 28-Jun-2019
418,Revenue,CAHD,South - community based support,Other Small Contracts,Brunelcare,22089.10, 03-Jun-2019
419,Revenue,CAHD,North - Community based support,Other Small Contracts,Brunelcare,269.61, 03-Jun-2019
420,Revenue,CAHD,South - community based support,Other Small Contracts,Brunelcare,22311.41, 12-Jun-2019
421,Revenue,CAHD,North - Community based support,Other Small Contracts,Brunelcare,307.45, 12-Jun-2019
422,Revenue,CAHD,South - community based support,Other Small Contracts,Brunelcare,21166.75, 12-Jun-2019
423,Revenue,CAHD,North - Community based support,Other Small Contracts,Brunelcare,302.72, 12-Jun-2019
424,Revenue,CAHD,South - community based support,Other Small Contracts,Brunelcare,21034.31, 21-Jun-2019
425,Revenue,CAHD,North - Community based support,Other Small Contracts,Brunelcare,293.26, 21-Jun-2019
426,Revenue,CAHD,North - Community based support,Private & Voluntary Home Care,Brunelcare,63665.44, 17-Jun-2019
427,Revenue,CAHD,Pathway 1 - Re-Ablement Home Care,Other Small Contracts,Brunelcare,666.93, 14-Jun-2019
428,Revenue,CAHD,Pathway 1 - Re-Ablement Home Care,Other Small Contracts,Brunelcare,1016.95, 14-Jun-2019
429,Revenue,CAHD,Pathway 1 - Re-Ablement Home Care,Other Small Contracts,Brunelcare,1333.86, 14-Jun-2019
430,Revenue,CAHD,Pathway 1 - Re-Ablement Home Care,Other Small Contracts,Brunelcare,2303.51, 14-Jun-2019
431,Revenue,CAHD,Pathway 1 - Re-Ablement Home Care,Other Small Contracts,Brunelcare,1740.64, 14-Jun-2019
432,Revenue,CAHD,Information Systems - Software,Computer Equipment - Purchase,BT Global Services Solutions,488.14, 25-Jun-2019
433,Revenue,CAHD,Social Lettings Agency,Fees - General,Individual,16.16, 26-Jun-2019
434,Revenue,CAHD,Social Lettings Agency,Other Supplies & Services,Individual,710.96, 26-Jun-2019
435,Revenue,CAHD,Statemented Support Payments to OLAs,Other L.A.'s - General,Cabot Learning Federation,1544.71, 28-Jun-2019
436,Revenue,CAHD,Academy Resource Base Funding,Other Public Bodies,Cabot Learning Federation,1134.86, 24-Jun-2019
437,Revenue,CAHD,Academy Resource Base Funding,Other Public Bodies,Cabot Learning Federation,1134.86, 24-Jun-2019
438,Revenue,CAHD,Academy Resource Base Funding,Other Public Bodies,Cabot Learning Federation,1134.86, 24-Jun-2019
439,Revenue,CAHD,Academy Resource Base Funding,Other Public Bodies,Cabot Learning Federation,1643.53, 24-Jun-2019
440,Revenue,CAHD,Academy Resource Base Funding,Other Public Bodies,Cabot Learning Federation,1487.06, 24-Jun-2019
441,Revenue,CAHD,Academy Resource Base Funding,Other Public Bodies,Cabot Learning Federation,1487.06, 24-Jun-2019
442,Revenue,CAHD,Academy Resource Base Funding,Other Public Bodies,Cabot Learning Federation,1134.86, 24-Jun-2019
443,Revenue,CAHD,Academy Resource Base Funding,Other Public Bodies,Cabot Learning Federation,1134.86, 24-Jun-2019
444,Revenue,CAHD,Academy Resource Base Funding,Other Public Bodies,Cabot Learning Federation,1643.53, 24-Jun-2019
445,Revenue,CAHD,Academy Resource Base Funding,Other Public Bodies,Cabot Learning Federation,1643.53, 24-Jun-2019
446,Revenue,CAHD,Academy Resource Base Funding,Other Public Bodies,Cabot Learning Federation,1134.86, 24-Jun-2019
447,Revenue,CAHD,Academy Resource Base Funding,Other Public Bodies,Cabot Learning Federation,1487.06, 24-Jun-2019
448,Revenue,CAHD,Academy Resource Base Funding,Other Public Bodies,Cabot Learning Federation,860.91, 24-Jun-2019
449,Revenue,CAHD,Statemented Support Payments to OLAs,Other L.A.'s - General,Cabot Learning Federation,518.83, 28-Jun-2019
450,Revenue,CAHD,Statemented Support Academies,Other Public Bodies,Cabot Learning Federation,613.17, 28-Jun-2019
451,Revenue,CAHD,Statemented Support Academies,Other Public Bodies,Cabot Learning Federation,518.83, 28-Jun-2019
452,Revenue,CAHD,Statemented Support Academies,Other Public Bodies,Cabot Learning Federation,554.21, 28-Jun-2019
453,Revenue,CAHD,Statemented Support Academies,Other Public Bodies,Cabot Learning Federation,566.00, 28-Jun-2019
454,Revenue,CAHD,Statemented Support Payments to OLAs,Other L.A.'s - General,Cabot Learning Federation,1014.08, 28-Jun-2019
455,Revenue,CAHD,Statemented Support Academies,Other Public Bodies,Cabot Learning Federation,695.71, 28-Jun-2019
456,Revenue,CAHD,Statemented Support Payments to OLAs,Other L.A.'s - General,Cabot Learning Federation,872.58, 28-Jun-2019
457,Revenue,CAHD,Statemented Support Academies,Other Public Bodies,Cabot Learning Federation,613.17, 28-Jun-2019
458,Revenue,CAHD,Statemented Support Academies,Other Public Bodies,Cabot Learning Federation,566.00, 28-Jun-2019
459,Revenue,CAHD,Statemented Support Academies,Other Public Bodies,Cabot Learning Federation,554.21, 28-Jun-2019
460,Revenue,CAHD,Statemented Support Academies,Other Public Bodies,Cabot Learning Federation,742.88, 28-Jun-2019
461,Revenue,CAHD,Statemented Support Academies,Other Public Bodies,Cabot Learning Federation,943.33, 28-Jun-2019
462,Revenue,CAHD,Statemented Support Academies,Other Public Bodies,Cabot Learning Federation,813.63, 28-Jun-2019
463,Revenue,CAHD,Statemented Support Payments to OLAs,Other L.A.'s - General,Cabot Learning Federation,601.38, 28-Jun-2019
464,Revenue,CAHD,Statemented Support Academies,Other Public Bodies,Cabot Learning Federation,589.58, 28-Jun-2019
465,Revenue,CAHD,Statemented Support Academies,Other Public Bodies,Cabot Learning Federation,801.83, 28-Jun-2019
466,Revenue,CAHD,Statemented Support Academies,Other Public Bodies,Cabot Learning Federation,719.29, 28-Jun-2019
467,Revenue,CAHD,Statemented Support Academies,Other Public Bodies,Cabot Learning Federation,731.08, 28-Jun-2019
468,Revenue,CAHD,Statemented Support Academies,Other Public Bodies,Cabot Learning Federation,907.96, 28-Jun-2019
469,Revenue,CAHD,Statemented Support Academies,Other Public Bodies,Cabot Learning Federation,672.13, 28-Jun-2019
470,Revenue,CAHD,Statemented Support Academies,Other Public Bodies,Cabot Learning Federation,742.88, 28-Jun-2019
471,Revenue,CAHD,Statemented Support Academies,Other Public Bodies,Cabot Learning Federation,907.96, 28-Jun-2019
472,Revenue,CAHD,Statemented Support Payments to OLAs,Other L.A.'s - General,Cabot Learning Federation,601.38, 28-Jun-2019
473,Revenue,CAHD,Statemented Support Payments to OLAs,Other L.A.'s - General,Cabot Learning Federation,1073.04, 28-Jun-2019
474,Revenue,CAHD,Statemented Support Payments to OLAs,Other L.A.'s - General,Cabot Learning Federation,589.58, 28-Jun-2019
475,Revenue,CAHD,Statemented Support Academies,Other Public Bodies,Cabot Learning Federation,1297.08, 28-Jun-2019
476,Revenue,CAHD,NHS Health Checks,Other Small Contracts,Cadbury Heath Healthcare,1749.00, 21-Jun-2019
477,Revenue,CAHD,Sexual Health,Other Small Contracts,Cadbury Heath Healthcare,1932.00, 06-Jun-2019
478,Revenue,CAHD,Sexual Health,Other Small Contracts,Cadbury Heath Healthcare,1682.76, 06-Jun-2019
479,Revenue,CAHD,CSC - Residential Placements,Permanent Residential,Cambian Childcare Ltd,19285.80, 12-Jun-2019
480,Revenue,CAHD,CSC - Residential Placements,Permanent Residential,Cambian Childcare Ltd,3428.70, 12-Jun-2019
481,Revenue,CAHD,CSC - Residential Placements,Permanent Residential,Cambian Childcare Ltd,3685.74, 17-Jun-2019
482,Revenue,CAHD,CSC - Residential Placements,Permanent Residential,Cambian Childcare Ltd,19928.66, 07-Jun-2019
483,Revenue,CAHD,CSC - Residential Placements,Permanent Residential,Cambian Childcare Ltd,19042.99, 17-Jun-2019
484,Revenue,CAHD,CSC - Residential Placements,Permanent Residential,Cambian Childcare Ltd,3542.99, 07-Jun-2019
485,Revenue,CAHD,CSC - Residential Placements,Permanent Residential,Cambian Childcare Ltd,19285.80, 21-Jun-2019
486,Revenue,CAHD,CSC - Residential Placements,Permanent Residential,Cambian Childcare Ltd,18428.70, 21-Jun-2019
487,Revenue,CAHD,CSC - Residential Placements,Permanent Residential,Cambian Childcare Ltd,3428.70, 20-Jun-2019
488,Revenue,CAHD,CSC - Residential Placements,Permanent Residential,Cambian Childcare Ltd,22500.00, 21-Jun-2019
489,Revenue,CAHD,Cambrian Green Day Service,Catering,Cambrian Court Dining,621.50, 05-Jun-2019
490,Revenue,CAHD,Cambrian Green Day Service,Catering,Cambrian Court Dining,577.50, 18-Jun-2019
491,Revenue,CAHD,North - Community based support,Day Care / Social Activities,Camphill Communities Thornbury Limited,1163.58, 07-Jun-2019
492,Revenue,CAHD,North - Community based support,Other Small Contracts,Camphill Communities Thornbury Limited,170.28, 07-Jun-2019
493,Revenue,CAHD,North - Community based support,Supported Living,Camphill Communities Thornbury Limited,908.16, 07-Jun-2019
494,Revenue,CAHD,North - Community based support,Day Care / Social Activities,Camphill Communities Thornbury Limited,1102.09, 14-Jun-2019
495,Revenue,CAHD,North - Community based support,Other Small Contracts,Camphill Communities Thornbury Limited,170.28, 14-Jun-2019
496,Revenue,CAHD,North - Community based support,Supported Living,Camphill Communities Thornbury Limited,908.16, 14-Jun-2019
497,Revenue,CAHD,North - Community based support,Day Care / Social Activities,Camphill Communities Thornbury Limited,1012.22, 21-Jun-2019
498,Revenue,CAHD,North - Community based support,Other Small Contracts,Camphill Communities Thornbury Limited,179.74, 21-Jun-2019
499,Revenue,CAHD,North - Community based support,Supported Living,Camphill Communities Thornbury Limited,1021.68, 21-Jun-2019
500,Revenue,CAHD,North - Community based support,Day Care / Social Activities,Camphill Communities Thornbury Limited,960.19, 28-Jun-2019
501,Revenue,CAHD,North - Community based support,Other Small Contracts,Camphill Communities Thornbury Limited,170.28, 28-Jun-2019
502,Revenue,CAHD,North - Community based support,Supported Living,Camphill Communities Thornbury Limited,1078.44, 28-Jun-2019
503,Revenue,CAHD,North - S117,Permanent Residential,Canjayor,2527.68, 04-Jun-2019
504,Revenue,CAHD,Central - Community based support,Other Small Contracts,Care 1st Homecare,2929.92, 21-Jun-2019
505,Revenue,CAHD,Central - Community based support,Other Small Contracts,Care 1st Homecare,2916.84, 26-Jun-2019
506,Revenue,CAHD,Central - Community based support,Other Small Contracts,Care 1st Homecare,2912.48, 26-Jun-2019
507,Revenue,CAHD,Central - Community based support,Other Small Contracts,Care 1st Homecare,2929.92, 26-Jun-2019
508,Revenue,CAHD,Central - Community based support,Other Small Contracts,Care 1st Homecare,2929.92, 26-Jun-2019
509,Revenue,CAHD,CSC - Residential Placements,Permanent Residential,Care 4 Children Residential Services Limited,2565.72, 10-Jun-2019
510,Revenue,CAHD,CSC - Residential Placements,Permanent Residential,Care 4 Children Residential Services Limited,19884.33, 06-Jun-2019
511,Revenue,CAHD,CSC - Residential Placements,Permanent Residential,Care 4 Children Residential Services Limited,19884.33, 06-Jun-2019
512,Revenue,CAHD,CSC - Residential Placements,Permanent Residential,Care 4 Children Residential Services Limited,17960.04, 06-Jun-2019
513,Revenue,CAHD,CSC - Residential Placements,Permanent Residential,Care 4 Children Residential Services Limited,19884.33, 11-Jun-2019
514,Revenue,CAHD,CSC - Residential Placements,Permanent Residential,Care 4 Children Residential Services Limited,19242.90, 11-Jun-2019
515,Revenue,CAHD,CSC - Residential Placements,Permanent Residential,Care 4 Children Residential Services Limited,19884.33, 06-Jun-2019
516,Revenue,CAHD,North - Community based support,Day Care / Social Activities,Care Futures,819.90, 19-Jun-2019
517,Revenue,CAHD,Central - Community based support,Other Small Contracts,Care Horizons Limited,835.59, 07-Jun-2019
518,Revenue,CAHD,South - community based support,Other Small Contracts,Care Horizons Limited,169.05, 07-Jun-2019
519,Revenue,CAHD,North - Community based support,Day Care / Social Activities,Care Horizons Limited,386.40, 07-Jun-2019
520,Revenue,CAHD,North - Community based support,Other Small Contracts,Care Horizons Limited,439.53, 07-Jun-2019
521,Revenue,CAHD,Younger MH non-res purchasing,Other Small Contracts,Care Horizons Limited,149.73, 07-Jun-2019
522,Revenue,CAHD,18-25 Year Olds,Other Small Contracts,Care Horizons Limited,82.11, 10-Jun-2019
523,Revenue,CAHD,Central - Community based support,Other Small Contracts,Care Horizons Limited,917.70, 10-Jun-2019
524,Revenue,CAHD,South - community based support,Other Small Contracts,Care Horizons Limited,251.16, 10-Jun-2019
525,Revenue,CAHD,North - Community based support,Day Care / Social Activities,Care Horizons Limited,396.06, 10-Jun-2019
526,Revenue,CAHD,North - Community based support,Other Small Contracts,Care Horizons Limited,483.00, 10-Jun-2019
527,Revenue,CAHD,Younger MH non-res purchasing,Other Small Contracts,Care Horizons Limited,362.25, 10-Jun-2019
528,Revenue,CAHD,18-25 Year Olds,Other Small Contracts,Care Horizons Limited,193.20, 10-Jun-2019
529,Revenue,CAHD,Central - Community based support,Other Small Contracts,Care Horizons Limited,478.17, 10-Jun-2019
530,Revenue,CAHD,South - community based support,Other Small Contracts,Care Horizons Limited,289.80, 10-Jun-2019
531,Revenue,CAHD,North - Community based support,Day Care / Social Activities,Care Horizons Limited,400.89, 10-Jun-2019
532,Revenue,CAHD,North - Community based support,Other Small Contracts,Care Horizons Limited,347.76, 10-Jun-2019
533,Revenue,CAHD,Younger MH non-res purchasing,Other Small Contracts,Care Horizons Limited,338.10, 10-Jun-2019
534,Revenue,CAHD,Central - Community based support,Other Small Contracts,Care Horizons Limited,893.55, 21-Jun-2019
535,Revenue,CAHD,South - community based support,Other Small Contracts,Care Horizons Limited,251.16, 21-Jun-2019
536,Revenue,CAHD,North - Community based support,Day Care / Social Activities,Care Horizons Limited,376.74, 21-Jun-2019
537,Revenue,CAHD,North - Community based support,Other Small Contracts,Care Horizons Limited,540.96, 21-Jun-2019
538,Revenue,CAHD,Younger MH non-res purchasing,Other Small Contracts,Care Horizons Limited,338.10, 21-Jun-2019
539,Revenue,CAHD,South - community based support,Other Small Contracts,Caring Comes 1st Limited,617.10, 24-Jun-2019
540,Revenue,CAHD,South - community based support,Other Small Contracts,Caring Comes 1st Limited,559.30, 24-Jun-2019
541,Revenue,CAHD,South - community based support,Other Small Contracts,Caring Comes 1st Limited,701.50, 24-Jun-2019
542,Revenue,CAHD,South - community based support,Other Small Contracts,Caring Comes 1st Limited,1570.80, 21-Jun-2019
543,Revenue,CAHD,South - community based support,Other Small Contracts,Caring Comes 1st Limited,628.32, 14-Jun-2019
544,Revenue,CAHD,South - community based support,Other Small Contracts,Caring Comes 1st Limited,920.04, 24-Jun-2019
545,Revenue,CAHD,South - community based support,Other Small Contracts,Caring Comes 1st Limited,1514.70, 19-Jun-2019
546,Revenue,CAHD,Central - Community based support,Supported Living,Cartrefi Cymru Co Operative,1340.32, 04-Jun-2019
547,Revenue,CAHD,Central - Community based support,Other Small Contracts,Cartrefi Cymru Co-operative Ltd,7105.00, 06-Jun-2019
548,Revenue,CAHD,Central - Community based support,Other Small Contracts,Cartrefi Cymru Co-operative Ltd,7194.32, 14-Jun-2019
549,Revenue,CAHD,Statemented Support Academies,Other Public Bodies,Castle School Education Trust,518.83, 28-Jun-2019
550,Revenue,CAHD,Statemented Support Academies,Other Public Bodies,Castle School Education Trust,566.00, 28-Jun-2019
551,Revenue,CAHD,Statemented Support Academies,Other Public Bodies,Castle School Education Trust,778.25, 28-Jun-2019
552,Revenue,CAHD,Statemented Support Academies,Other Public Bodies,Castle School Education Trust,931.54, 28-Jun-2019
553,Revenue,CAHD,Statemented Support Academies,Other Public Bodies,Castle School Education Trust,542.42, 28-Jun-2019
554,Revenue,CAHD,Statemented Support Academies,Other Public Bodies,Castle School Education Trust,672.13, 28-Jun-2019
555,Revenue,CAHD,Statemented Support Academies,Other Public Bodies,Castle School Education Trust,860.79, 28-Jun-2019
556,Revenue,CAHD,Statemented Support Academies,Other Public Bodies,Castle School Education Trust,1462.17, 28-Jun-2019
557,Revenue,CAHD,Statemented Support Academies,Other Public Bodies,Castle School Education Trust,860.79, 28-Jun-2019
558,Revenue,CAHD,Statemented Support Academies,Other Public Bodies,Castle School Education Trust,1002.29, 28-Jun-2019
559,Revenue,CAHD,Statemented Support Academies,Other Public Bodies,Castle School Education Trust,1120.21, 28-Jun-2019
560,Revenue,CAHD,Statemented Support Academies,Other Public Bodies,Castle School Education Trust,507.04, 28-Jun-2019
561,Revenue,CAHD,Statemented Support Academies,Other Public Bodies,Castle School Education Trust,589.58, 28-Jun-2019
562,Revenue,CAHD,Statemented Support Academies,Other Public Bodies,Castle School Education Trust,955.13, 28-Jun-2019
563,Revenue,CAHD,Statemented Support Academies,Other Public Bodies,Castle School Education Trust,577.79, 28-Jun-2019
564,Revenue,CAHD,Statemented Support Academies,Other Public Bodies,Castle School Education Trust,624.96, 28-Jun-2019
565,Revenue,CAHD,Statemented Support Academies,Other Public Bodies,Castle School Education Trust,825.42, 28-Jun-2019
566,Revenue,CAHD,Statemented Support Academies,Other Public Bodies,Castle School Education Trust,707.50, 28-Jun-2019
567,Revenue,CAHD,Statemented Support Academies,Other Public Bodies,Castle School Education Trust,849.00, 28-Jun-2019
568,Revenue,CAHD,Statemented Support Academies,Other Public Bodies,Castle School Education Trust,1238.13, 28-Jun-2019
569,Revenue,CAHD,Statemented Support Academies,Other Public Bodies,Castle School Education Trust,1061.25, 28-Jun-2019
570,Revenue,CAHD,Statemented Support Academies,Other Public Bodies,Castle School Education Trust,518.83, 28-Jun-2019
571,Revenue,CAHD,Statemented Support Academies,Other Public Bodies,Castle School Education Trust,577.79, 28-Jun-2019
572,Revenue,CAHD,Statemented Support Academies,Other Public Bodies,Castle School Education Trust,1143.79, 28-Jun-2019
573,Revenue,CAHD,Academy Resource Base Funding,Other Public Bodies,Castle School Education Trust,1643.53, 24-Jun-2019
574,Revenue,CAHD,Academy Resource Base Funding,Other Public Bodies,Castle School Education Trust,1643.53, 24-Jun-2019
575,Revenue,CAHD,Academy Resource Base Funding,Other Public Bodies,Castle School Education Trust,1643.53, 24-Jun-2019
576,Revenue,CAHD,Academy Resource Base Funding,Other Public Bodies,Castle School Education Trust,1643.53, 24-Jun-2019
577,Revenue,CAHD,Academy Resource Base Funding,Other Public Bodies,Castle School Education Trust,1643.53, 24-Jun-2019
578,Revenue,CAHD,Academy Resource Base Funding,Other Public Bodies,Castle School Education Trust,1643.53, 24-Jun-2019
579,Revenue,CAHD,Statemented Support Academies,Other Public Bodies,Castle School Education Trust,1485.75, 28-Jun-2019
580,Revenue,CAHD,Statemented Support Academies,Other Public Bodies,Castle School Education Trust,672.13, 28-Jun-2019
581,Revenue,CAHD,Statemented Support Academies,Other Public Bodies,Castle School Education Trust,872.58, 28-Jun-2019
582,Revenue,CAHD,Statemented Support Academies,Other Public Bodies,Castle School Education Trust,849.00, 28-Jun-2019
583,Revenue,CAHD,Statemented Support Academies,Other Public Bodies,Castle School Education Trust,907.96, 28-Jun-2019
584,Revenue,CAHD,Statemented Support Academies,Other Public Bodies,Castle School Education Trust,1190.96, 28-Jun-2019
585,Revenue,CAHD,Statemented Support Academies,Other Public Bodies,Castle School Education Trust,1556.50, 28-Jun-2019
586,Revenue,CAHD,Statemented Support Academies,Other Public Bodies,Castle School Education Trust,1025.88, 28-Jun-2019
587,Revenue,CAHD,Statemented Support Academies,Other Public Bodies,Castle School Education Trust,1473.96, 28-Jun-2019
588,Revenue,CAHD,Statemented Support Academies,Other Public Bodies,Castle School Education Trust,778.25, 28-Jun-2019
589,Revenue,CAHD,Statemented Support Academies,Other Public Bodies,Castle School Education Trust,613.17, 28-Jun-2019
590,Revenue,CAHD,EARLY YEARS DISABILITY  ACCES FUND,Preventative Assistance,Catherine Cave,615.00, 06-Jun-2019
591,Revenue,CAHD,North - Community based support,Day Care / Social Activities,Causeway House,1422.64, 04-Jun-2019
592,Revenue,CAHD,Central - Community based support,Day Care / Social Activities,Causeway House,1136.76, 04-Jun-2019
593,Revenue,CAHD,South - community based support,Day Care / Social Activities,Causeway House,5253.12, 04-Jun-2019
594,Revenue,CAHD,18-25 Year Olds,Day Care / Social Activities,Causeway House,1418.72, 04-Jun-2019
595,Revenue,CAHD,18-25 Year Olds,Day Care / Social Activities,Causeway House,4414.64, 04-Jun-2019
596,Revenue,CAHD,Central - Community based support,Day Care / Social Activities,Causeway House,3891.60, 04-Jun-2019
597,Revenue,CAHD,Central - Community based support,Day Care / Social Activities,Causeway House,1704.96, 04-Jun-2019
598,Revenue,CAHD,North - Community based support,Day Care / Social Activities,Causeway House,3226.20, 04-Jun-2019
599,Revenue,CAHD,North - Community based support,Day Care / Social Activities,Causeway House,4806.44, 04-Jun-2019
600,Revenue,CAHD,Central - Community based support,Day Care / Social Activities,Causeway House,3652.12, 04-Jun-2019
601,Revenue,CAHD,North - Community based support,Day Care / Social Activities,Causeway House,3149.08, 04-Jun-2019
602,Revenue,CAHD,North - Community based support,Day Care / Social Activities,Causeway House,568.32, 04-Jun-2019
603,Revenue,CAHD,South - Bed Purchasing and Direct payments,Permanent Nursing,Cedar Care Homes Limited,3095.92, 04-Jun-2019
604,Revenue,CAHD,South - Bed Purchasing and Direct payments,Permanent Residential,Challenge House,2834.44, 04-Jun-2019
605,Revenue,CAHD,North - S117,Permanent Residential,Challenge House,2571.40, 04-Jun-2019
606,Revenue,CAHD,Central - Bed Purchasing and Direct Payments,Respite Emergency - Residential,Challenge House,3548.40, 04-Jun-2019
607,Revenue,CAHD,Central - Bed Purchasing and Direct Payments,Respite Emergency - Residential,Challenge House,577.54, 04-Jun-2019
608,Revenue,CAHD,North - bed purchasing and direct  payments,Permanent Residential,Challenge House,2233.00, 04-Jun-2019
609,Revenue,CAHD,North - bed purchasing and direct  payments,Permanent Residential,Challenge House,2370.72, 04-Jun-2019
610,Revenue,CAHD,Central - Bed Purchasing and Direct Payments,Respite Emergency - Residential,Challenge House,2310.16, 04-Jun-2019
611,Revenue,CAHD,Central - Bed Purchasing and Direct Payments,Permanent Residential,Challenge House,929.34, 04-Jun-2019
612,Revenue,CAHD,Central - Bed Purchasing and Direct Payments,Permanent Residential,Challenge House,2363.40, 04-Jun-2019
613,Revenue,CAHD,North - bed purchasing and direct  payments,Respite Emergency - Residential,Challenge House,3544.43, 04-Jun-2019
614,Revenue,CAHD,North - bed purchasing and direct  payments,Permanent Residential,Challenge House,2363.40, 04-Jun-2019
615,Revenue,CAHD,Central - Bed Purchasing and Direct Payments,Respite Emergency - Residential,Challenge House,2834.44, 04-Jun-2019
616,Revenue,CAHD,North - bed purchasing and direct  payments,Permanent Residential,Challenge House,2834.40, 04-Jun-2019
617,Revenue,CAHD,North - bed purchasing and direct  payments,Permanent Nursing,Challenge House,4695.54, 04-Jun-2019
618,Revenue,CAHD,North - bed purchasing and direct  payments,Permanent Nursing,Challenge House,3130.36, 04-Jun-2019
619,Revenue,CAHD,North - bed purchasing and direct  payments,Fees & Charges Income - General,Challenge House,681.48, 04-Jun-2019
620,Revenue,CAHD,Central - Bed Purchasing and Direct Payments,Permanent Nursing,Challenge House,3000.00, 04-Jun-2019
621,Revenue,CAHD,North - S117,Permanent Nursing,Challenge House,2395.80, 04-Jun-2019
622,Revenue,CAHD,North - bed purchasing and direct  payments,Permanent Residential,Challenge House,2399.96, 04-Jun-2019
623,Revenue,CAHD,Central - Bed Purchasing and Direct Payments,Permanent Nursing,Challenge House,3056.00, 04-Jun-2019
624,Revenue,CAHD,North - bed purchasing and direct  payments,Permanent Nursing,Challenge House,2571.40, 04-Jun-2019
625,Revenue,CAHD,North - bed purchasing and direct  payments,Permanent Nursing,Challenge House,2395.80, 04-Jun-2019
626,Revenue,CAHD,North - bed purchasing and direct  payments,Permanent Nursing,Challenge House,3130.36, 04-Jun-2019
627,Revenue,CAHD,South Glos Users in South Glos Homes,Permanent Nursing,Challenge House,662.24, 04-Jun-2019
628,Revenue,CAHD,North - bed purchasing and direct  payments,Permanent Nursing,Challenge House,3000.00, 04-Jun-2019
629,Revenue,CAHD,North - bed purchasing and direct  payments,Permanent Nursing,Challenge House,2250.00, 04-Jun-2019
630,Revenue,CAHD,North - bed purchasing and direct  payments,Permanent Nursing,Challenge House,2142.86, 04-Jun-2019
631,Revenue,CAHD,North - bed purchasing and direct  payments,Fees & Charges Income - General,Challenge House,837.71, 04-Jun-2019
632,Revenue,CAHD,South Glos Users in South Glos Homes,Permanent Nursing,Challenge House,662.24, 04-Jun-2019
633,Revenue,CAHD,South Glos Users in South Glos Homes,Permanent Nursing,Challenge House,662.24, 04-Jun-2019
634,Revenue,CAHD,South Glos Users in South Glos Homes,Permanent Nursing,Challenge House,662.24, 04-Jun-2019
635,Revenue,CAHD,South - Bed Purchasing and Direct payments,Permanent Nursing,Challenge House,2884.20, 04-Jun-2019
636,Revenue,CAHD,South Glos Users in South Glos Homes,Permanent Nursing,Challenge House,662.24, 04-Jun-2019
637,Revenue,CAHD,North - bed purchasing and direct  payments,Permanent Nursing,Challenge House,5002.62, 04-Jun-2019
638,Revenue,CAHD,North - bed purchasing and direct  payments,Permanent Nursing,Challenge House,5002.62, 04-Jun-2019
639,Revenue,CAHD,North - bed purchasing and direct  payments,Permanent Nursing,Challenge House,3335.08, 04-Jun-2019
640,Revenue,CAHD,North - bed purchasing and direct  payments,Permanent Nursing,Challenge House,2326.37, 04-Jun-2019
641,Revenue,CAHD,North - bed purchasing and direct  payments,Fees & Charges Income - General,Challenge House,914.83, 04-Jun-2019
642,Revenue,CAHD,North - bed purchasing and direct  payments,Permanent Nursing,Challenge House,3208.48, 04-Jun-2019
643,Revenue,CAHD,South Glos Users in South Glos Homes,Permanent Nursing,Challenge House,662.24, 04-Jun-2019
644,Revenue,CAHD,South Glos Users in South Glos Homes,Permanent Nursing,Challenge House,662.24, 04-Jun-2019
645,Revenue,CAHD,North - bed purchasing and direct  payments,Permanent Nursing,Challenge House,3338.84, 04-Jun-2019
646,Revenue,CAHD,South Glos Users in South Glos Homes,Permanent Nursing,Challenge House,662.24, 04-Jun-2019
647,Revenue,CAHD,South Glos Users in South Glos Homes,Permanent Nursing,Challenge House,662.24, 04-Jun-2019
648,Revenue,CAHD,South Glos Users in South Glos Homes,Permanent Nursing,Challenge House,662.24, 04-Jun-2019
649,Revenue,CAHD,South Glos Users in South Glos Homes,Permanent Nursing,Challenge House,662.24, 04-Jun-2019
650,Revenue,CAHD,South Glos Users in South Glos Homes,Permanent Nursing,Challenge House,662.24, 04-Jun-2019
651,Revenue,CAHD,South Glos Users in South Glos Homes,Permanent Nursing,Challenge House,662.24, 04-Jun-2019
652,Revenue,CAHD,South Glos Users in South Glos Homes,Permanent Nursing,Challenge House,662.24, 04-Jun-2019
653,Revenue,CAHD,North - bed purchasing and direct  payments,Permanent Nursing,Challenge House,2827.52, 04-Jun-2019
654,Revenue,CAHD,South Glos Users in South Glos Homes,Permanent Nursing,Challenge House,662.24, 04-Jun-2019
655,Revenue,CAHD,North - bed purchasing and direct  payments,Permanent Nursing,Challenge House,3338.84, 04-Jun-2019
656,Revenue,CAHD,South Glos Users in South Glos Homes,Permanent Nursing,Challenge House,662.24, 04-Jun-2019
657,Revenue,CAHD,South Glos Users in South Glos Homes,Permanent Nursing,Challenge House,662.24, 04-Jun-2019
658,Revenue,CAHD,North - bed purchasing and direct  payments,Permanent Nursing,Challenge House,2827.52, 04-Jun-2019
659,Revenue,CAHD,South Glos Users in South Glos Homes,Permanent Nursing,Challenge House,662.24, 04-Jun-2019
660,Revenue,CAHD,South Glos Users in South Glos Homes,Permanent Nursing,Challenge House,662.24, 04-Jun-2019
661,Revenue,CAHD,North - bed purchasing and direct  payments,Permanent Nursing,Challenge House,3263.84, 04-Jun-2019
662,Revenue,CAHD,South Glos Users in South Glos Homes,Permanent Nursing,Challenge House,662.24, 04-Jun-2019
663,Revenue,CAHD,Early Years Inclusion Fund,Other Public Bodies,Charfield Pre-School,650.00, 13-Jun-2019
664,Revenue,CAHD,Early Years Inclusion Fund,Other Public Bodies,Charfield Pre-School,1317.00, 17-Jun-2019
665,Revenue,CAHD,EARLY YEARS DEPRIVATION PAYMENT,Preventative Assistance,Charfield Pre-School,1120.96, 24-Jun-2019
666,Revenue,CAHD,Early Years Pupil Premium Grant,Preventative Assistance,Charfield Pre-School,694.17, 24-Jun-2019
667,Revenue,CAHD,Mental Capacity Act / DOLS,Legal Fees,Charley Pattison,520.00, 21-Jun-2019
668,Revenue,CAHD,South - Bed Purchasing and Direct payments,Permanent Nursing,Charnwood House Nursing Home,5387.09, 04-Jun-2019
669,Revenue,CAHD,Central - Community based support,Other Small Contracts,Cherish Able Care Limited,2363.24, 07-Jun-2019
670,Revenue,CAHD,South - community based support,Other Small Contracts,Cherish Able Care Limited,5294.54, 07-Jun-2019
671,Revenue,CAHD,North - Community based support,Other Small Contracts,Cherish Able Care Limited,1565.63, 07-Jun-2019
672,Revenue,CAHD,Central - Community based support,Other Small Contracts,Cherish Able Care Limited,2356.66, 07-Jun-2019
673,Revenue,CAHD,South - community based support,Other Small Contracts,Cherish Able Care Limited,5228.32, 07-Jun-2019
674,Revenue,CAHD,North - Community based support,Other Small Contracts,Cherish Able Care Limited,1556.17, 07-Jun-2019
675,Revenue,CAHD,Central - Community based support,Other Small Contracts,Cherish Able Care Limited,2341.03, 21-Jun-2019
676,Revenue,CAHD,South - community based support,Other Small Contracts,Cherish Able Care Limited,5228.32, 21-Jun-2019
677,Revenue,CAHD,North - Community based support,Other Small Contracts,Cherish Able Care Limited,1565.63, 21-Jun-2019
678,Revenue,CAHD,Central - Community based support,Other Small Contracts,Cherish Able Care Limited,2346.24, 21-Jun-2019
679,Revenue,CAHD,South - community based support,Other Small Contracts,Cherish Able Care Limited,5384.41, 21-Jun-2019
680,Revenue,CAHD,North - Community based support,Other Small Contracts,Cherish Able Care Limited,1565.63, 21-Jun-2019
681,Revenue,CAHD,South - community based support,Supported Living,Cherry Orchards,2648.80, 27-Jun-2019
682,Revenue,CAHD,18-25 Year Olds,Other Small Contracts,Cherry Orchards,5221.92, 27-Jun-2019
683,Revenue,CAHD,S28A cases,Permanent Residential,Chescombe Lodge,9764.44, 04-Jun-2019
684,Revenue,CAHD,CSC - LAC Placements,"Holidays, Outings & Visits",Childrens Contact Services Ltd,1131.95, 13-Jun-2019
685,Revenue,CAHD,18-25 Year Olds,Other Small Contracts,Cintre,107.36, 07-Jun-2019
686,Revenue,CAHD,Central - Community based support,Other Small Contracts,Cintre,351.36, 07-Jun-2019
687,Revenue,CAHD,South - community based support,Other Small Contracts,Cintre,800.32, 07-Jun-2019
688,Revenue,CAHD,18-25 Year Olds,Other Small Contracts,Cintre,97.60, 07-Jun-2019
689,Revenue,CAHD,Central - Community based support,Other Small Contracts,Cintre,234.24, 07-Jun-2019
690,Revenue,CAHD,South - community based support,Other Small Contracts,Cintre,624.64, 07-Jun-2019
691,Revenue,CAHD,18-25 Year Olds,Other Small Contracts,Cintre,48.80, 21-Jun-2019
692,Revenue,CAHD,Central - Community based support,Other Small Contracts,Cintre,234.24, 21-Jun-2019
693,Revenue,CAHD,South - community based support,Other Small Contracts,Cintre,756.40, 21-Jun-2019
694,Revenue,CAHD,18-25 Year Olds,Other Small Contracts,Cintre,102.48, 21-Jun-2019
695,Revenue,CAHD,Central - Community based support,Other Small Contracts,Cintre,224.48, 21-Jun-2019
696,Revenue,CAHD,South - community based support,Other Small Contracts,Cintre,624.64, 21-Jun-2019
697,Revenue,CAHD,Learning Difficulties,Premises Hire,Circadian Trust,540.00, 07-Jun-2019
698,Revenue,CAHD,Learning Difficulties,Premises Hire,Circadian Trust,540.00, 26-Jun-2019
699,Revenue,CAHD,Mental Health and Emotional Wellbeing,Project Funding,Claire Plummer,775.00, 04-Jun-2019
700,Revenue,CAHD,MH Purchasing - Younger,Permanent Residential,Claro Homes,2870.88, 04-Jun-2019
701,Revenue,CAHD,Section 117 Placements MH Younger,Permanent Residential,Claro Homes,3554.60, 04-Jun-2019
702,Revenue,CAHD,North - bed purchasing and direct  payments,Permanent Nursing,Claro Homes,3318.20, 04-Jun-2019
703,Revenue,CAHD,South - Bed Purchasing and Direct payments,Permanent Residential,Cleeve Lodge,3686.40, 04-Jun-2019
704,Revenue,CAHD,South - Bed Purchasing and Direct payments,Permanent Residential,Cleeve Lodge,3686.40, 04-Jun-2019
705,Revenue,CAHD,South - Bed Purchasing and Direct payments,Permanent Residential,Cleeve Lodge,1308.44, 04-Jun-2019
706,Revenue,CAHD,South - Bed Purchasing and Direct payments,Permanent Residential,Cleeve Lodge,2921.68, 04-Jun-2019
707,Revenue,CAHD,South - Bed Purchasing and Direct payments,Permanent Residential,Cleeve Lodge,3086.48, 04-Jun-2019
708,Revenue,CAHD,South - Bed Purchasing and Direct payments,Permanent Residential,Cleeve Lodge,2893.00, 04-Jun-2019
709,Revenue,CAHD,South - Bed Purchasing and Direct payments,Permanent Residential,Cleeve Lodge,2635.60, 04-Jun-2019
710,Revenue,CAHD,North - bed purchasing and direct  payments,Permanent Nursing,Clevedon Court Nursing Home,8620.40, 04-Jun-2019
711,Revenue,CAHD,North - bed purchasing and direct  payments,Permanent Nursing,Clevedon Court Nursing Home,8418.40, 04-Jun-2019
712,Revenue,CAHD,Central - Community based support,Other Small Contracts,Clover Health and Home Care Ltd,771.72, 03-Jun-2019
713,Revenue,CAHD,Central - Community based support,Other Small Contracts,Clover Health and Home Care Ltd,1263.78, 24-Jun-2019
714,Revenue,CAHD,Central - Community based support,Other Small Contracts,Clover Health and Home Care Ltd,1932.84, 24-Jun-2019
715,Revenue,CAHD,North - Community based support,Other Small Contracts,Clover Health and Home Care Ltd,2060.28, 04-Jun-2019
716,Revenue,CAHD,Central - Community based support,Other Small Contracts,Clover Health and Home Care Ltd,929.25, 10-Jun-2019
717,Revenue,CAHD,Central - Community based support,Other Small Contracts,Clover Health and Home Care Ltd,1168.20, 04-Jun-2019
718,Revenue,CAHD,Central - Community based support,Other Small Contracts,Clover Health and Home Care Ltd,934.56, 24-Jun-2019
719,Revenue,CAHD,Sexual Health,Other Small Contracts,Cohesian Consultancy,500.00, 10-Jun-2019
720,Revenue,CAHD,Sexual Health,Other Small Contracts,Cohesian Consultancy,500.00, 10-Jun-2019
721,Revenue,CAHD,South - Bed Purchasing and Direct payments,Permanent Residential,Collingwood Care Home,2826.24, 04-Jun-2019
722,Revenue,CAHD,South - Bed Purchasing and Direct payments,Permanent Residential,Collingwood Care Home,2241.28, 04-Jun-2019
723,Revenue,CAHD,South - Bed Purchasing and Direct payments,Permanent Residential,Collingwood Care Home,2420.80, 04-Jun-2019
724,Revenue,CAHD,South - Bed Purchasing and Direct payments,Permanent Residential,Collingwood Care Home,2504.28, 04-Jun-2019
725,Revenue,CAHD,Verification of EYFSP Assessment,Educational Materials,Community Products (UK) Limited,532.50, 17-Jun-2019
726,Revenue,CAHD,CSC - Vinney Green Secure Unit,R & M by Departments,Complete Weed Control (North Wessex) Ltd,610.00, 28-Jun-2019
727,Revenue,CAHD,Statemented Support Equipment,Educational Supplies & Equipment,Connevans Limited,1577.25, 11-Jun-2019
728,Revenue,CAHD,Bed and Breakfast,Bed & Breakfast,Connolly & Callaghan Limited,658.00, 25-Jun-2019
729,Revenue,CAHD,Bed and Breakfast,Bed & Breakfast,Connolly & Callaghan Limited,490.00, 25-Jun-2019
730,Revenue,CAHD,Bed and Breakfast,Bed & Breakfast,Connolly & Callaghan Limited,700.00, 25-Jun-2019
731,Revenue,CAHD,Bed and Breakfast,Bed & Breakfast,Connolly & Callaghan Limited,497.00, 25-Jun-2019
732,Revenue,CAHD,Bed and Breakfast,Bed & Breakfast,Connolly & Callaghan Limited,504.00, 25-Jun-2019
733,Revenue,CAHD,Bed and Breakfast,Bed & Breakfast,Connolly & Callaghan Limited,700.00, 25-Jun-2019
734,Revenue,CAHD,Bed and Breakfast,Bed & Breakfast,Connolly & Callaghan Limited,497.00, 25-Jun-2019
735,Revenue,CAHD,Bed and Breakfast,Bed & Breakfast,Connolly & Callaghan Limited,504.00, 25-Jun-2019
736,Revenue,CAHD,Bed and Breakfast,Bed & Breakfast,Connolly & Callaghan Limited,504.00, 25-Jun-2019
737,Revenue,CAHD,Bed and Breakfast,Bed & Breakfast,Connolly & Callaghan Limited,497.00, 25-Jun-2019
738,Revenue,CAHD,Bed and Breakfast,Bed & Breakfast,Connolly & Callaghan Limited,448.00, 25-Jun-2019
739,Revenue,CAHD,Bed and Breakfast,Bed & Breakfast,Connolly & Callaghan Limited,700.00, 25-Jun-2019
740,Revenue,CAHD,Bed and Breakfast,Bed & Breakfast,Connolly & Callaghan Limited,700.00, 25-Jun-2019
741,Revenue,CAHD,Bed and Breakfast,Bed & Breakfast,Connolly & Callaghan Limited,539.00, 11-Jun-2019
742,Revenue,CAHD,Bed and Breakfast,Bed & Breakfast,Connolly & Callaghan Limited,504.00, 11-Jun-2019
743,Revenue,CAHD,Bed and Breakfast,Bed & Breakfast,Connolly & Callaghan Limited,455.00, 11-Jun-2019
744,Revenue,CAHD,Bed and Breakfast,Bed & Breakfast,Connolly & Callaghan Limited,441.00, 11-Jun-2019
745,Revenue,CAHD,Bed and Breakfast,Bed & Breakfast,Connolly & Callaghan Limited,623.00, 11-Jun-2019
746,Revenue,CAHD,Bed and Breakfast,Bed & Breakfast,Connolly & Callaghan Limited,539.00, 11-Jun-2019
747,Revenue,CAHD,Bed and Breakfast,Bed & Breakfast,Connolly & Callaghan Limited,539.00, 11-Jun-2019
748,Revenue,CAHD,Bed and Breakfast,Bed & Breakfast,Connolly & Callaghan Limited,490.00, 11-Jun-2019
749,Revenue,CAHD,Bed and Breakfast,Bed & Breakfast,Connolly & Callaghan Limited,497.00, 11-Jun-2019
750,Revenue,CAHD,Bed and Breakfast,Bed & Breakfast,Connolly & Callaghan Limited,700.00, 11-Jun-2019
751,Revenue,CAHD,Bed and Breakfast,Bed & Breakfast,Connolly & Callaghan Limited,539.00, 11-Jun-2019
752,Revenue,CAHD,Bed and Breakfast,Bed & Breakfast,Connolly & Callaghan Limited,539.00, 11-Jun-2019
753,Revenue,CAHD,Bed and Breakfast,Bed & Breakfast,Connolly & Callaghan Limited,497.00, 11-Jun-2019
754,Revenue,CAHD,Bed and Breakfast,Bed & Breakfast,Connolly & Callaghan Limited,623.00, 11-Jun-2019
755,Revenue,CAHD,Bed and Breakfast,Bed & Breakfast,Connolly & Callaghan Limited,490.00, 11-Jun-2019
756,Revenue,CAHD,Bed and Breakfast,Bed & Breakfast,Connolly & Callaghan Limited,532.00, 11-Jun-2019
757,Revenue,CAHD,Bed and Breakfast,Bed & Breakfast,Connolly & Callaghan Limited,490.00, 11-Jun-2019
758,Revenue,CAHD,Bed and Breakfast,Bed & Breakfast,Connolly & Callaghan Limited,539.00, 14-Jun-2019
759,Revenue,CAHD,Bed and Breakfast,Bed & Breakfast,Connolly & Callaghan Limited,504.00, 17-Jun-2019
760,Revenue,CAHD,Bed and Breakfast,Bed & Breakfast,Connolly & Callaghan Limited,504.00, 14-Jun-2019
761,Revenue,CAHD,Bed and Breakfast,Bed & Breakfast,Connolly & Callaghan Limited,441.00, 17-Jun-2019
762,Revenue,CAHD,Bed and Breakfast,Bed & Breakfast,Connolly & Callaghan Limited,623.00, 14-Jun-2019
763,Revenue,CAHD,Bed and Breakfast,Bed & Breakfast,Connolly & Callaghan Limited,539.00, 17-Jun-2019
764,Revenue,CAHD,Bed and Breakfast,Bed & Breakfast,Connolly & Callaghan Limited,539.00, 14-Jun-2019
765,Revenue,CAHD,Bed and Breakfast,Bed & Breakfast,Connolly & Callaghan Limited,490.00, 17-Jun-2019
766,Revenue,CAHD,Bed and Breakfast,Bed & Breakfast,Connolly & Callaghan Limited,497.00, 17-Jun-2019
767,Revenue,CAHD,Bed and Breakfast,Bed & Breakfast,Connolly & Callaghan Limited,539.00, 14-Jun-2019
768,Revenue,CAHD,Bed and Breakfast,Bed & Breakfast,Connolly & Callaghan Limited,490.00, 14-Jun-2019
769,Revenue,CAHD,Bed and Breakfast,Bed & Breakfast,Connolly & Callaghan Limited,532.00, 14-Jun-2019
770,Revenue,CAHD,Bed and Breakfast,Bed & Breakfast,Connolly & Callaghan Limited,490.00, 17-Jun-2019
771,Revenue,CAHD,Bed and Breakfast,Bed & Breakfast,Connolly & Callaghan Limited,539.00, 21-Jun-2019
772,Revenue,CAHD,Bed and Breakfast,Bed & Breakfast,Connolly & Callaghan Limited,504.00, 21-Jun-2019
773,Revenue,CAHD,Bed and Breakfast,Bed & Breakfast,Connolly & Callaghan Limited,504.00, 21-Jun-2019
774,Revenue,CAHD,Bed and Breakfast,Bed & Breakfast,Connolly & Callaghan Limited,455.00, 21-Jun-2019
775,Revenue,CAHD,Bed and Breakfast,Bed & Breakfast,Connolly & Callaghan Limited,441.00, 21-Jun-2019
776,Revenue,CAHD,Bed and Breakfast,Bed & Breakfast,Connolly & Callaghan Limited,623.00, 21-Jun-2019
777,Revenue,CAHD,Bed and Breakfast,Bed & Breakfast,Connolly & Callaghan Limited,539.00, 21-Jun-2019
778,Revenue,CAHD,Bed and Breakfast,Bed & Breakfast,Connolly & Callaghan Limited,539.00, 21-Jun-2019
779,Revenue,CAHD,Bed and Breakfast,Bed & Breakfast,Connolly & Callaghan Limited,490.00, 21-Jun-2019
780,Revenue,CAHD,Bed and Breakfast,Bed & Breakfast,Connolly & Callaghan Limited,448.00, 25-Jun-2019
781,Revenue,CAHD,Bed and Breakfast,Bed & Breakfast,Connolly & Callaghan Limited,497.00, 21-Jun-2019
782,Revenue,CAHD,Bed and Breakfast,Bed & Breakfast,Connolly & Callaghan Limited,539.00, 21-Jun-2019
783,Revenue,CAHD,Bed and Breakfast,Bed & Breakfast,Connolly & Callaghan Limited,420.00, 21-Jun-2019
784,Revenue,CAHD,Bed and Breakfast,Bed & Breakfast,Connolly & Callaghan Limited,539.00, 21-Jun-2019
785,Revenue,CAHD,Bed and Breakfast,Bed & Breakfast,Connolly & Callaghan Limited,623.00, 21-Jun-2019
786,Revenue,CAHD,Bed and Breakfast,Bed & Breakfast,Connolly & Callaghan Limited,490.00, 21-Jun-2019
787,Revenue,CAHD,Bed and Breakfast,Bed & Breakfast,Connolly & Callaghan Limited,532.00, 21-Jun-2019
788,Revenue,CAHD,Bed and Breakfast,Bed & Breakfast,Connolly & Callaghan Limited,490.00, 21-Jun-2019
789,Revenue,CAHD,Bed and Breakfast,Bed & Breakfast,Connolly & Callaghan Limited,504.00, 25-Jun-2019
790,Revenue,CAHD,Bed and Breakfast,Bed & Breakfast,Connolly & Callaghan Limited,504.00, 25-Jun-2019
791,Revenue,CAHD,Bed and Breakfast,Bed & Breakfast,Connolly & Callaghan Limited,455.00, 25-Jun-2019
792,Revenue,CAHD,Bed and Breakfast,Bed & Breakfast,Connolly & Callaghan Limited,441.00, 25-Jun-2019
793,Revenue,CAHD,Bed and Breakfast,Bed & Breakfast,Connolly & Callaghan Limited,623.00, 25-Jun-2019
794,Revenue,CAHD,Bed and Breakfast,Bed & Breakfast,Connolly & Callaghan Limited,644.00, 25-Jun-2019
795,Revenue,CAHD,Bed and Breakfast,Bed & Breakfast,Connolly & Callaghan Limited,539.00, 25-Jun-2019
796,Revenue,CAHD,Bed and Breakfast,Bed & Breakfast,Connolly & Callaghan Limited,490.00, 25-Jun-2019
797,Revenue,CAHD,Bed and Breakfast,Bed & Breakfast,Connolly & Callaghan Limited,455.00, 25-Jun-2019
798,Revenue,CAHD,Bed and Breakfast,Bed & Breakfast,Connolly & Callaghan Limited,448.00, 25-Jun-2019
799,Revenue,CAHD,Bed and Breakfast,Bed & Breakfast,Connolly & Callaghan Limited,497.00, 25-Jun-2019
800,Revenue,CAHD,Bed and Breakfast,Bed & Breakfast,Connolly & Callaghan Limited,539.00, 25-Jun-2019
801,Revenue,CAHD,Bed and Breakfast,Bed & Breakfast,Connolly & Callaghan Limited,539.00, 25-Jun-2019
802,Revenue,CAHD,Bed and Breakfast,Bed & Breakfast,Connolly & Callaghan Limited,420.00, 25-Jun-2019
803,Revenue,CAHD,Bed and Breakfast,Bed & Breakfast,Connolly & Callaghan Limited,623.00, 25-Jun-2019
804,Revenue,CAHD,Bed and Breakfast,Bed & Breakfast,Connolly & Callaghan Limited,490.00, 25-Jun-2019
805,Revenue,CAHD,Bed and Breakfast,Bed & Breakfast,Connolly & Callaghan Limited,532.00, 25-Jun-2019
806,Revenue,CAHD,Bed and Breakfast,Bed & Breakfast,Connolly & Callaghan Limited,490.00, 25-Jun-2019
807,Revenue,CAHD,EARLY YEARS DEPRIVATION PAYMENT,Preventative Assistance,Courtney Ladybirds Pre-School,634.19, 24-Jun-2019
808,Revenue,CAHD,North - bed purchasing and direct  payments,Permanent Residential,Cream Iii Ltd,8644.00, 04-Jun-2019
809,Revenue,CAHD,S28A cases,Permanent Residential,Creedy Court,10597.96, 04-Jun-2019
810,Revenue,CAHD,S28A cases,Fees & Charges Income - General,Creedy Court,810.34, 04-Jun-2019
811,Revenue,CAHD,S28A cases,Permanent Residential,Creedy Court,8904.92, 04-Jun-2019
812,Revenue,CAHD,North - bed purchasing and direct  payments,Permanent Residential,Creedy Court,14054.00, 04-Jun-2019
813,Revenue,CAHD,Training Budget - Children`s Social Serv,Training Expenses,Cruidin Training and Consultancy Ltd,1356.28, 21-Jun-2019
814,Revenue,CAHD,South - Bed Purchasing and Direct payments,Permanent Residential,Daneswood,12268.80, 04-Jun-2019
815,Revenue,CAHD,South - community based support,Day Care / Social Activities,Daneswood,1413.28, 04-Jun-2019
816,Revenue,CAHD,North - bed purchasing and direct  payments,Permanent Residential,Daneswood,10264.00, 04-Jun-2019
817,Revenue,CAHD,North - S117,Permanent Nursing,Danshell Healthcare Group,10872.28, 04-Jun-2019
818,Revenue,CAHD,Jointly Funded H&SC Packages,Permanent Nursing,Danshell Healthcare Group,1613.28, 04-Jun-2019
819,Revenue,CAHD,Learning Difficulties PSL,Other Supplies & Services,Individual,2400.00, 21-Jun-2019
820,Revenue,CAHD,CSC - Special Guardianship Orders,Special Payments,Individual,1075.92, 21-Jun-2019
821,Revenue,CAHD,South - community based support,Supported Living,Design House,2661.20, 04-Jun-2019
822,Revenue,CAHD,South - community based support,Supported Living,Design House,3063.00, 04-Jun-2019
823,Revenue,CAHD,South - community based support,Supported Living,Design House,3132.76, 04-Jun-2019
824,Revenue,CAHD,South - community based support,Supported Living,Design House,2993.28, 04-Jun-2019
825,Revenue,CAHD,South - community based support,Day Care / Social Activities,Design House,516.32, 04-Jun-2019
826,Revenue,CAHD,18-25 Year Olds,Supported Living,Design House,823.56, 04-Jun-2019
827,Revenue,CAHD,18-25 Year Olds,Supported Living,Design House,823.56, 04-Jun-2019
828,Revenue,CAHD,Central - Community based support,Day Care / Social Activities,Design House,2440.84, 04-Jun-2019
829,Revenue,CAHD,South - community based support,Day Care / Social Activities,Design House,921.28, 04-Jun-2019
830,Revenue,CAHD,South - community based support,Supported Living,Design House,2638.60, 04-Jun-2019
831,Revenue,CAHD,South - community based support,Supported Living,Design House,2638.60, 04-Jun-2019
832,Revenue,CAHD,South - community based support,Supported Living,Design House,2149.32, 04-Jun-2019
833,Revenue,CAHD,South - community based support,Day Care / Social Activities,Design House,516.32, 04-Jun-2019
834,Revenue,CAHD,South - community based support,Supported Living,Design House,1896.52, 04-Jun-2019
835,Revenue,CAHD,South - community based support,Supported Living,Design House,2516.60, 04-Jun-2019
836,Revenue,CAHD,South - community based support,Supported Living,Design House,4307.12, 04-Jun-2019
837,Revenue,CAHD,North - Community based support,Supported Living,Design House,3054.24, 04-Jun-2019
838,Revenue,CAHD,South - community based support,Day Care / Social Activities,Design House,1505.96, 04-Jun-2019
839,Revenue,CAHD,South - community based support,Supported Living,Design House,2924.68, 04-Jun-2019
840,Revenue,CAHD,South - community based support,Supported Living,Design House,2542.80, 04-Jun-2019
841,Revenue,CAHD,South - community based support,Supported Living,Design House,2257.48, 04-Jun-2019
842,Revenue,CAHD,South - community based support,Supported Living,Design House,2257.48, 04-Jun-2019
843,Revenue,CAHD,Central - Community based support,Other Small Contracts,Dhek Bhal,42.16, 07-Jun-2019
844,Revenue,CAHD,South - community based support,Other Small Contracts,Dhek Bhal,495.38, 07-Jun-2019
845,Revenue,CAHD,Central - Community based support,Other Small Contracts,Dhek Bhal,42.16, 07-Jun-2019
846,Revenue,CAHD,South - community based support,Other Small Contracts,Dhek Bhal,490.11, 07-Jun-2019
847,Revenue,CAHD,Central - Community based support,Other Small Contracts,Dhek Bhal,42.16, 21-Jun-2019
848,Revenue,CAHD,South - community based support,Other Small Contracts,Dhek Bhal,495.38, 21-Jun-2019
849,Revenue,CAHD,Central - Community based support,Other Small Contracts,Dhek Bhal,42.16, 21-Jun-2019
850,Revenue,CAHD,South - community based support,Other Small Contracts,Dhek Bhal,500.65, 21-Jun-2019
851,Revenue,CAHD,South - community based support,Supported Living,Dimensions  Suite 2,1903.12, 04-Jun-2019
852,Revenue,CAHD,South - community based support,Supported Living,Dimensions  Suite 2,1902.28, 04-Jun-2019
853,Revenue,CAHD,South - community based support,Supported Living,Dimensions  Suite 2,1902.28, 04-Jun-2019
854,Revenue,CAHD,South - community based support,Supported Living,Dimensions  Suite 2,41877.07, 04-Jun-2019
855,Revenue,CAHD,South - community based support,Supported Living,Dimensions  Suite 2,1902.28, 04-Jun-2019
856,Revenue,CAHD,South - Bed Purchasing and Direct payments,Permanent Residential,Dimensions  Suite 2,5630.76, 04-Jun-2019
857,Revenue,CAHD,South - Bed Purchasing and Direct payments,Permanent Residential,Dimensions  Suite 2,2806.12, 04-Jun-2019
858,Revenue,CAHD,Training - Adult Services,Training Expenses,Do The Write Thing,1700.00, 14-Jun-2019
859,Revenue,CAHD,Central - Community based support,Other Small Contracts,DoCare Limited,13183.01, 07-Jun-2019
860,Revenue,CAHD,South - community based support,Day Care / Social Activities,DoCare Limited,64.80, 07-Jun-2019
861,Revenue,CAHD,South - community based support,Other Small Contracts,DoCare Limited,402.60, 07-Jun-2019
862,Revenue,CAHD,North - Community based support,Day Care / Social Activities,DoCare Limited,145.08, 07-Jun-2019
863,Revenue,CAHD,North - Community based support,Other Small Contracts,DoCare Limited,5317.58, 07-Jun-2019
864,Revenue,CAHD,Central - Community based support,Other Small Contracts,DoCare Limited,13336.03, 27-Jun-2019
865,Revenue,CAHD,South - community based support,Day Care / Social Activities,DoCare Limited,70.20, 27-Jun-2019
866,Revenue,CAHD,South - community based support,Other Small Contracts,DoCare Limited,424.35, 27-Jun-2019
867,Revenue,CAHD,North - Community based support,Other Small Contracts,DoCare Limited,5358.42, 27-Jun-2019
868,Revenue,CAHD,Central - Community based support,Other Small Contracts,DoCare Limited,13200.15, 27-Jun-2019
869,Revenue,CAHD,South - community based support,Day Care / Social Activities,DoCare Limited,75.60, 27-Jun-2019
870,Revenue,CAHD,South - community based support,Other Small Contracts,DoCare Limited,375.75, 27-Jun-2019
871,Revenue,CAHD,North - Community based support,Other Small Contracts,DoCare Limited,5363.81, 27-Jun-2019
872,Revenue,CAHD,Central - Community based support,Other Small Contracts,DoCare Limited,13551.56, 27-Jun-2019
873,Revenue,CAHD,South - community based support,Day Care / Social Activities,DoCare Limited,64.80, 27-Jun-2019
874,Revenue,CAHD,South - community based support,Other Small Contracts,DoCare Limited,408.15, 27-Jun-2019
875,Revenue,CAHD,North - Community based support,Other Small Contracts,DoCare Limited,5286.98, 27-Jun-2019
876,Revenue,CAHD,Central - Community based support,Other Small Contracts,DoCare Limited,14296.44, 27-Jun-2019
877,Revenue,CAHD,South - community based support,Day Care / Social Activities,DoCare Limited,75.60, 27-Jun-2019
878,Revenue,CAHD,South - community based support,Other Small Contracts,DoCare Limited,358.35, 27-Jun-2019
879,Revenue,CAHD,North - Community based support,Other Small Contracts,DoCare Limited,5337.71, 27-Jun-2019
880,Revenue,CAHD,North - bed purchasing and direct  payments,Permanent Residential,Dorset Limited,9714.00, 04-Jun-2019
881,Revenue,CAHD,North - bed purchasing and direct  payments,Permanent Residential,Dorset Limited,2914.20, 04-Jun-2019
882,Revenue,CAHD,Early Years Inclusion Fund,Other Public Bodies,Downend Folk House Association,600.00, 20-Jun-2019
883,Revenue,CAHD,Statemented Support Academies,Other Public Bodies,Downend School,978.71, 28-Jun-2019
884,Revenue,CAHD,Statemented Support Academies,Other Public Bodies,Downend School,1025.88, 28-Jun-2019
885,Revenue,CAHD,Statemented Support Academies,Other Public Bodies,Downend School,1014.08, 28-Jun-2019
886,Revenue,CAHD,Statemented Support Academies,Other Public Bodies,Downend School,801.83, 28-Jun-2019
887,Revenue,CAHD,Statemented Support Academies,Other Public Bodies,Downend School,530.63, 28-Jun-2019
888,Revenue,CAHD,Statemented Support Academies,Other Public Bodies,Downend School,1108.42, 28-Jun-2019
889,Revenue,CAHD,Statemented Support Academies,Other Public Bodies,Downend School,554.21, 28-Jun-2019
890,Revenue,CAHD,Statemented Support Academies,Other Public Bodies,Downend School,1709.79, 28-Jun-2019
891,Revenue,CAHD,Social Lettings Agency,Other Supplies & Services,Individual,605.64, 24-Jun-2019
892,Revenue,CAHD,Bed and Breakfast,Bed & Breakfast,Individual,706.65, 03-Jun-2019
893,Revenue,CAHD,Bed and Breakfast,Bed & Breakfast,Individual,598.50, 07-Jun-2019
894,Revenue,CAHD,Bed and Breakfast,Bed & Breakfast,Individual,418.25, 04-Jun-2019
895,Revenue,CAHD,Bed and Breakfast,Bed & Breakfast,Individual,418.25, 13-Jun-2019
896,Revenue,CAHD,Bed and Breakfast,Bed & Breakfast,Individual,418.25, 26-Jun-2019
897,Revenue,CAHD,North - bed purchasing and direct  payments,Permanent Residential,East Court,2763.56, 04-Jun-2019
898,Revenue,CAHD,Minor Adaptations Service,Operational Equipment,Eastman & Co (Timber) Limited,986.73, 21-Jun-2019
899,Revenue,CAHD,South - Bed Purchasing and Direct payments,Permanent Residential,Edgecumbe Lodge,2662.40, 04-Jun-2019
900,Revenue,CAHD,South - Bed Purchasing and Direct payments,Permanent Residential,Edgecumbe Lodge,2662.40, 04-Jun-2019
901,Revenue,CAHD,South - Bed Purchasing and Direct payments,Permanent Residential,Edgecumbe Lodge,2230.32, 04-Jun-2019
902,Revenue,CAHD,North - S117,Permanent Residential,Edgecumbe Lodge,2719.76, 04-Jun-2019
903,Revenue,CAHD,South - Bed Purchasing and Direct payments,Respite Planned - Residential,Edgecumbe Lodge,1300.00, 04-Jun-2019
904,Revenue,CAHD,South - Bed Purchasing and Direct payments,Permanent Residential,Edgecumbe Lodge,3993.60, 04-Jun-2019
905,Revenue,CAHD,South - Bed Purchasing and Direct payments,Permanent Residential,Edgecumbe Lodge,2662.40, 04-Jun-2019
906,Revenue,CAHD,South - Bed Purchasing and Direct payments,Fees & Charges Income - General,Edgecumbe Lodge,1268.83, 04-Jun-2019
907,Revenue,CAHD,South - Bed Purchasing and Direct payments,Permanent Residential,Edgecumbe Lodge,2303.60, 04-Jun-2019
908,Revenue,CAHD,South - Bed Purchasing and Direct payments,Permanent Residential,Edgecumbe Lodge,2504.28, 04-Jun-2019
909,Revenue,CAHD,South - Bed Purchasing and Direct payments,Permanent Residential,Edgecumbe Lodge,2536.84, 04-Jun-2019
910,Revenue,CAHD,South - Bed Purchasing and Direct payments,Permanent Residential,Edgecumbe Lodge,2662.40, 04-Jun-2019
911,Revenue,CAHD,South - Bed Purchasing and Direct payments,Permanent Residential,Edgemont House Ltd,2022.76, 04-Jun-2019
912,Revenue,CAHD,South - Bed Purchasing and Direct payments,Respite Planned - Residential,Edgemont House Ltd,1439.29, 04-Jun-2019
913,Revenue,CAHD,South Glos Users in South Glos Homes,Permanent Nursing,Edgemont View Nursing Home,662.24, 04-Jun-2019
914,Revenue,CAHD,South - Bed Purchasing and Direct payments,Permanent Nursing,Edgemont View Nursing Home,3584.00, 04-Jun-2019
915,Revenue,CAHD,South Glos Users in South Glos Homes,Permanent Nursing,Edgemont View Nursing Home,662.24, 04-Jun-2019
916,Revenue,CAHD,South Glos Users in South Glos Homes,Permanent Nursing,Edgemont View Nursing Home,662.24, 04-Jun-2019
917,Revenue,CAHD,South - Bed Purchasing and Direct payments,Permanent Nursing,Edgemont View Nursing Home,2560.00, 04-Jun-2019
918,Revenue,CAHD,South Glos Users in South Glos Homes,Permanent Nursing,Edgemont View Nursing Home,662.24, 04-Jun-2019
919,Revenue,CAHD,South - Bed Purchasing and Direct payments,Permanent Nursing,Edgemont View Nursing Home,4129.44, 04-Jun-2019
920,Revenue,CAHD,South Glos Users in South Glos Homes,Permanent Nursing,Edgemont View Nursing Home,662.24, 04-Jun-2019
921,Revenue,CAHD,South Glos Users in South Glos Homes,Permanent Nursing,Edgemont View Nursing Home,662.24, 04-Jun-2019
922,Revenue,CAHD,South Glos Users in South Glos Homes,Permanent Nursing,Edgemont View Nursing Home,662.24, 04-Jun-2019
923,Revenue,CAHD,South Glos Users in South Glos Homes,Permanent Nursing,Edgemont View Nursing Home,662.24, 04-Jun-2019
924,Revenue,CAHD,South Glos Users in South Glos Homes,Permanent Nursing,Edgemont View Nursing Home,1111.62, 04-Jun-2019
925,Revenue,CAHD,South Glos Users in South Glos Homes,Permanent Nursing,Edgemont View Nursing Home,662.24, 04-Jun-2019
926,Revenue,CAHD,South - Bed Purchasing and Direct payments,Permanent Nursing,Edgemont View Nursing Home,3005.16, 04-Jun-2019
927,Revenue,CAHD,South Glos Users in South Glos Homes,Permanent Nursing,Edgemont View Nursing Home,662.24, 04-Jun-2019
928,Revenue,CAHD,South Glos Users in South Glos Homes,Permanent Nursing,Edgemont View Nursing Home,858.58, 04-Jun-2019
929,Revenue,CAHD,Bed Purchasing - Southmead Hospital,Respite Emergency - Residential,Edgemont View Nursing Home,625.00, 04-Jun-2019
930,Revenue,CAHD,South Glos Users in South Glos Homes,Permanent Nursing,Edgemont View Nursing Home,614.94, 04-Jun-2019
931,Revenue,CAHD,South Glos Users in South Glos Homes,Permanent Nursing,Edgemont View Nursing Home,662.24, 04-Jun-2019
932,Revenue,CAHD,South Glos Users in South Glos Homes,Permanent Nursing,Edgemont View Nursing Home,662.24, 04-Jun-2019
933,Revenue,CAHD,South Glos Users in South Glos Homes,Permanent Nursing,Edgemont View Nursing Home,662.24, 04-Jun-2019
934,Revenue,CAHD,South Glos Users in South Glos Homes,Permanent Nursing,Edgemont View Nursing Home,662.24, 04-Jun-2019
935,Revenue,CAHD,South - Bed Purchasing and Direct payments,Permanent Nursing,Edgemont View Nursing Home,3005.16, 04-Jun-2019
936,Revenue,CAHD,South Glos Users in South Glos Homes,Permanent Nursing,Edgemont View Nursing Home,662.24, 04-Jun-2019
937,Revenue,CAHD,South Glos Users in South Glos Homes,Permanent Nursing,Edgemont View Nursing Home,662.24, 04-Jun-2019
938,Revenue,CAHD,South - Bed Purchasing and Direct payments,Permanent Nursing,Edgemont View Nursing Home,3584.00, 04-Jun-2019
939,Revenue,CAHD,South Glos Users in South Glos Homes,Permanent Nursing,Edgemont View Nursing Home,662.24, 04-Jun-2019
940,Revenue,CAHD,South Glos Users in South Glos Homes,Permanent Nursing,Edgemont View Nursing Home,662.24, 04-Jun-2019
941,Revenue,CAHD,South - Bed Purchasing and Direct payments,Permanent Nursing,Edgemont View Nursing Home,4250.00, 04-Jun-2019
942,Revenue,CAHD,South - Bed Purchasing and Direct payments,Permanent Nursing,Edgemont View Nursing Home,3400.00, 04-Jun-2019
943,Revenue,CAHD,Bed and Breakfast,Bed & Breakfast,Elim Housing Association Limited,735.00, 07-Jun-2019
944,Revenue,CAHD,South - community based support,Day Care / Social Activities,Elite Home Care Ltd,198.40, 07-Jun-2019
945,Revenue,CAHD,South - community based support,Other Small Contracts,Elite Home Care Ltd,7508.85, 07-Jun-2019
946,Revenue,CAHD,North - Community based support,Other Small Contracts,Elite Home Care Ltd,277.76, 07-Jun-2019
947,Revenue,CAHD,South - community based support,Day Care / Social Activities,Elite Home Care Ltd,193.44, 07-Jun-2019
948,Revenue,CAHD,South - community based support,Other Small Contracts,Elite Home Care Ltd,8100.40, 07-Jun-2019
949,Revenue,CAHD,North - Community based support,Other Small Contracts,Elite Home Care Ltd,277.76, 07-Jun-2019
950,Revenue,CAHD,South - community based support,Day Care / Social Activities,Elite Home Care Ltd,193.44, 21-Jun-2019
951,Revenue,CAHD,South - community based support,Other Small Contracts,Elite Home Care Ltd,7594.65, 21-Jun-2019
952,Revenue,CAHD,North - Community based support,Other Small Contracts,Elite Home Care Ltd,287.68, 21-Jun-2019
953,Revenue,CAHD,South - community based support,Day Care / Social Activities,Elite Home Care Ltd,198.40, 21-Jun-2019
954,Revenue,CAHD,South - community based support,Other Small Contracts,Elite Home Care Ltd,8307.35, 21-Jun-2019
955,Revenue,CAHD,North - Community based support,Other Small Contracts,Elite Home Care Ltd,287.68, 21-Jun-2019
956,Revenue,CAHD,CSC - Legal Fees,Legal Fees,Elizabeth Harris,500.00, 05-Jun-2019
957,Revenue,CAHD,CSC - Legal Fees,Legal Fees,Elizabeth Harris,680.00, 25-Jun-2019
958,Revenue,CAHD,Bed and Breakfast,Bed & Breakfast,Individual,588.50, 18-Jun-2019
959,Revenue,CAHD,CSC - Special Guardianship Orders,Special Payments,Individual,609.14, 14-Jun-2019
960,Revenue,CAHD,Special ISB,Other Public Bodies,Enable Trust,1487.06, 24-Jun-2019
961,Revenue,CAHD,Special ISB,Other Public Bodies,Enable Trust,860.91, 24-Jun-2019
962,Revenue,CAHD,Special ISB,Other Public Bodies,Enable Trust,1487.06, 24-Jun-2019
963,Revenue,CAHD,Special ISB,Other Public Bodies,Enable Trust,1134.86, 24-Jun-2019
964,Revenue,CAHD,Special ISB,Other Public Bodies,Enable Trust,1134.86, 24-Jun-2019
965,Revenue,CAHD,Special ISB,Other Public Bodies,Enable Trust,1134.86, 24-Jun-2019
966,Revenue,CAHD,Special ISB,Other Public Bodies,Enable Trust,1487.06, 24-Jun-2019
967,Revenue,CAHD,Special ISB,Other Public Bodies,Enable Trust,860.91, 24-Jun-2019
968,Revenue,CAHD,Special ISB,Other Public Bodies,Enable Trust,1134.86, 24-Jun-2019
969,Revenue,CAHD,Special ISB,Other Public Bodies,Enable Trust,1134.86, 24-Jun-2019
970,Revenue,CAHD,Special ISB,Other Public Bodies,Enable Trust,1134.86, 24-Jun-2019
971,Revenue,CAHD,Special ISB,Other Public Bodies,Enable Trust,626.06, 24-Jun-2019
972,Revenue,CAHD,Special ISB,Other Public Bodies,Enable Trust,1487.06, 24-Jun-2019
973,Revenue,CAHD,Special ISB,Other Public Bodies,Enable Trust,626.06, 24-Jun-2019
974,Revenue,CAHD,Special ISB,Other Public Bodies,Enable Trust,860.91, 24-Jun-2019
975,Revenue,CAHD,Special ISB,Other Public Bodies,Enable Trust,860.91, 24-Jun-2019
976,Revenue,CAHD,Special ISB,Other Public Bodies,Enable Trust,1134.86, 24-Jun-2019
977,Revenue,CAHD,Special ISB,Other Public Bodies,Enable Trust,1134.86, 24-Jun-2019
978,Revenue,CAHD,Special ISB,Other Public Bodies,Enable Trust,1134.86, 24-Jun-2019
979,Revenue,CAHD,Special ISB,Other Public Bodies,Enable Trust,860.91, 24-Jun-2019
980,Revenue,CAHD,Special ISB,Other Public Bodies,Enable Trust,1134.86, 24-Jun-2019
981,Revenue,CAHD,Special ISB,Other Public Bodies,Enable Trust,1487.06, 24-Jun-2019
982,Revenue,CAHD,Special ISB,Other Public Bodies,Enable Trust,626.06, 24-Jun-2019
983,Revenue,CAHD,Special ISB,Other Public Bodies,Enable Trust,860.91, 24-Jun-2019
984,Revenue,CAHD,Special ISB,Other Public Bodies,Enable Trust,1487.06, 24-Jun-2019
985,Revenue,CAHD,Special ISB,Other Public Bodies,Enable Trust,1134.86, 24-Jun-2019
986,Revenue,CAHD,Special ISB,Other Public Bodies,Enable Trust,860.91, 24-Jun-2019
987,Revenue,CAHD,Special ISB,Other Public Bodies,Enable Trust,1134.86, 24-Jun-2019
988,Revenue,CAHD,Special ISB,Other Public Bodies,Enable Trust,860.91, 24-Jun-2019
989,Revenue,CAHD,Special ISB,Other Public Bodies,Enable Trust,2113.11, 24-Jun-2019
990,Revenue,CAHD,Special ISB,Other Public Bodies,Enable Trust,1134.86, 24-Jun-2019
991,Revenue,CAHD,Special ISB,Other Public Bodies,Enable Trust,1134.86, 24-Jun-2019
992,Revenue,CAHD,Special ISB,Other Public Bodies,Enable Trust,1134.86, 24-Jun-2019
993,Revenue,CAHD,Special ISB,Other Public Bodies,Enable Trust,1134.86, 24-Jun-2019
994,Revenue,CAHD,Special ISB,Other Public Bodies,Enable Trust,1134.86, 24-Jun-2019
995,Revenue,CAHD,Special ISB,Other Public Bodies,Enable Trust,1487.06, 24-Jun-2019
996,Revenue,CAHD,Special ISB,Other Public Bodies,Enable Trust,1134.86, 24-Jun-2019
997,Revenue,CAHD,Special ISB,Other Public Bodies,Enable Trust,1487.06, 24-Jun-2019
998,Revenue,CAHD,Special ISB,Other Public Bodies,Enable Trust,1134.86, 24-Jun-2019
999,Revenue,CAHD,Special ISB,Other Public Bodies,Enable Trust,860.91, 24-Jun-2019
1000,Revenue,CAHD,Special ISB,Other Public Bodies,Enable Trust,1487.06, 24-Jun-2019
1001,Revenue,CAHD,Special ISB,Other Public Bodies,Enable Trust,1134.86, 24-Jun-2019
1002,Revenue,CAHD,Special ISB,Other Public Bodies,Enable Trust,1487.06, 24-Jun-2019
1003,Revenue,CAHD,Special ISB,Other Public Bodies,Enable Trust,1134.86, 24-Jun-2019
1004,Revenue,CAHD,Special ISB,Other Public Bodies,Enable Trust,860.91, 24-Jun-2019
1005,Revenue,CAHD,Special ISB,Other Public Bodies,Enable Trust,1134.86, 24-Jun-2019
1006,Revenue,CAHD,Special ISB,Other Public Bodies,Enable Trust,1134.86, 24-Jun-2019
1007,Revenue,CAHD,Special ISB,Other Public Bodies,Enable Trust,1134.86, 24-Jun-2019
1008,Revenue,CAHD,Special ISB,Other Public Bodies,Enable Trust,1487.06, 24-Jun-2019
1009,Revenue,CAHD,Special ISB,Other Public Bodies,Enable Trust,860.91, 24-Jun-2019
1010,Revenue,CAHD,Special ISB,Other Public Bodies,Enable Trust,1134.86, 24-Jun-2019
1011,Revenue,CAHD,Special ISB,Other Public Bodies,Enable Trust,1134.86, 24-Jun-2019
1012,Revenue,CAHD,Special ISB,Other Public Bodies,Enable Trust,1487.06, 24-Jun-2019
1013,Revenue,CAHD,Special ISB,Other Public Bodies,Enable Trust,860.91, 24-Jun-2019
1014,Revenue,CAHD,Special ISB,Other Public Bodies,Enable Trust,860.91, 24-Jun-2019
1015,Revenue,CAHD,Special ISB,Other Public Bodies,Enable Trust,860.91, 24-Jun-2019
1016,Revenue,CAHD,Special ISB,Other Public Bodies,Enable Trust,1487.06, 24-Jun-2019
1017,Revenue,CAHD,Special ISB,Other Public Bodies,Enable Trust,1487.06, 24-Jun-2019
1018,Revenue,CAHD,Special ISB,Other Public Bodies,Enable Trust,626.06, 24-Jun-2019
1019,Revenue,CAHD,Special ISB,Other Public Bodies,Enable Trust,1134.86, 24-Jun-2019
1020,Revenue,CAHD,Special ISB,Other Public Bodies,Enable Trust,1487.06, 24-Jun-2019
1021,Revenue,CAHD,School Grants - Special,Other Public Bodies,Enable Trust,6382.00, 25-Jun-2019
1022,Revenue,CAHD,Special ISB,Other Public Bodies,Enable Trust,1643.53, 24-Jun-2019
1023,Revenue,CAHD,Special ISB,Other Public Bodies,Enable Trust,860.91, 24-Jun-2019
1024,Revenue,CAHD,Special ISB,Other Public Bodies,Enable Trust,1134.86, 24-Jun-2019
1025,Revenue,CAHD,Special ISB,Other Public Bodies,Enable Trust,2113.11, 24-Jun-2019
1026,Revenue,CAHD,Special ISB,Other Public Bodies,Enable Trust,2113.11, 24-Jun-2019
1027,Revenue,CAHD,Special ISB,Other Public Bodies,Enable Trust,1455.69, 24-Jun-2019
1028,Revenue,CAHD,Special ISB,Other Public Bodies,Enable Trust,1455.69, 24-Jun-2019
1029,Revenue,CAHD,Special ISB,Other Public Bodies,Enable Trust,1643.53, 24-Jun-2019
1030,Revenue,CAHD,Special ISB,Other Public Bodies,Enable Trust,860.91, 24-Jun-2019
1031,Revenue,CAHD,Special ISB,Other Public Bodies,Enable Trust,860.91, 24-Jun-2019
1032,Revenue,CAHD,Special ISB,Other Public Bodies,Enable Trust,1134.86, 24-Jun-2019
1033,Revenue,CAHD,Special ISB,Other Public Bodies,Enable Trust,1134.86, 24-Jun-2019
1034,Revenue,CAHD,Special ISB,Other Public Bodies,Enable Trust,1134.86, 24-Jun-2019
1035,Revenue,CAHD,Special ISB,Other Public Bodies,Enable Trust,1134.86, 24-Jun-2019
1036,Revenue,CAHD,Special ISB,Other Public Bodies,Enable Trust,860.91, 24-Jun-2019
1037,Revenue,CAHD,Special ISB,Other Public Bodies,Enable Trust,1643.53, 24-Jun-2019
1038,Revenue,CAHD,Special ISB,Other Public Bodies,Enable Trust,860.91, 24-Jun-2019
1039,Revenue,CAHD,Special ISB,Other Public Bodies,Enable Trust,1643.53, 24-Jun-2019
1040,Revenue,CAHD,Special ISB,Other Public Bodies,Enable Trust,1134.86, 24-Jun-2019
1041,Revenue,CAHD,Special ISB,Other Public Bodies,Enable Trust,2113.11, 24-Jun-2019
1042,Revenue,CAHD,Special ISB,Other Public Bodies,Enable Trust,2426.14, 24-Jun-2019
1043,Revenue,CAHD,Special ISB,Other Public Bodies,Enable Trust,860.91, 24-Jun-2019
1044,Revenue,CAHD,Special ISB,Other Public Bodies,Enable Trust,860.91, 24-Jun-2019
1045,Revenue,CAHD,Special ISB,Other Public Bodies,Enable Trust,1643.53, 24-Jun-2019
1046,Revenue,CAHD,Special ISB,Other Public Bodies,Enable Trust,1455.69, 24-Jun-2019
1047,Revenue,CAHD,Special ISB,Other Public Bodies,Enable Trust,1134.86, 24-Jun-2019
1048,Revenue,CAHD,Special ISB,Other Public Bodies,Enable Trust,1134.86, 24-Jun-2019
1049,Revenue,CAHD,Special ISB,Other Public Bodies,Enable Trust,1134.86, 24-Jun-2019
1050,Revenue,CAHD,Special ISB,Other Public Bodies,Enable Trust,1643.53, 24-Jun-2019
1051,Revenue,CAHD,Special ISB,Other Public Bodies,Enable Trust,1643.53, 24-Jun-2019
1052,Revenue,CAHD,Special ISB,Other Public Bodies,Enable Trust,1134.86, 24-Jun-2019
1053,Revenue,CAHD,Special ISB,Other Public Bodies,Enable Trust,1134.86, 24-Jun-2019
1054,Revenue,CAHD,Special ISB,Other Public Bodies,Enable Trust,860.91, 24-Jun-2019
1055,Revenue,CAHD,Special ISB,Other Public Bodies,Enable Trust,1134.86, 24-Jun-2019
1056,Revenue,CAHD,Special ISB,Other Public Bodies,Enable Trust,1134.86, 24-Jun-2019
1057,Revenue,CAHD,Special ISB,Other Public Bodies,Enable Trust,1134.86, 24-Jun-2019
1058,Revenue,CAHD,Special ISB,Other Public Bodies,Enable Trust,1643.53, 24-Jun-2019
1059,Revenue,CAHD,Special ISB,Other Public Bodies,Enable Trust,1643.53, 24-Jun-2019
1060,Revenue,CAHD,Special ISB,Other Public Bodies,Enable Trust,860.91, 24-Jun-2019
1061,Revenue,CAHD,Special ISB,Other Public Bodies,Enable Trust,1134.86, 24-Jun-2019
1062,Revenue,CAHD,Special ISB,Other Public Bodies,Enable Trust,860.91, 24-Jun-2019
1063,Revenue,CAHD,Special ISB,Other Public Bodies,Enable Trust,1134.86, 24-Jun-2019
1064,Revenue,CAHD,Special ISB,Other Public Bodies,Enable Trust,1134.86, 24-Jun-2019
1065,Revenue,CAHD,Special ISB,Other Public Bodies,Enable Trust,1134.86, 24-Jun-2019
1066,Revenue,CAHD,Special ISB,Other Public Bodies,Enable Trust,978.34, 24-Jun-2019
1067,Revenue,CAHD,Special ISB,Other Public Bodies,Enable Trust,1134.86, 24-Jun-2019
1068,Revenue,CAHD,Special ISB,Other Public Bodies,Enable Trust,860.91, 24-Jun-2019
1069,Revenue,CAHD,Special ISB,Other Public Bodies,Enable Trust,1134.86, 24-Jun-2019
1070,Revenue,CAHD,Special ISB,Other Public Bodies,Enable Trust,1134.86, 24-Jun-2019
1071,Revenue,CAHD,Special ISB,Other Public Bodies,Enable Trust,2113.11, 24-Jun-2019
1072,Revenue,CAHD,Special ISB,Other Public Bodies,Enable Trust,1643.53, 24-Jun-2019
1073,Revenue,CAHD,Special ISB,Other Public Bodies,Enable Trust,860.91, 24-Jun-2019
1074,Revenue,CAHD,Special ISB,Other Public Bodies,Enable Trust,1134.86, 24-Jun-2019
1075,Revenue,CAHD,Special ISB,Other Public Bodies,Enable Trust,860.91, 24-Jun-2019
1076,Revenue,CAHD,Special ISB,Other Public Bodies,Enable Trust,1134.86, 24-Jun-2019
1077,Revenue,CAHD,Special ISB,Other Public Bodies,Enable Trust,626.06, 24-Jun-2019
1078,Revenue,CAHD,Special ISB,Other Public Bodies,Enable Trust,1643.53, 24-Jun-2019
1079,Revenue,CAHD,Special ISB,Other Public Bodies,Enable Trust,1643.53, 24-Jun-2019
1080,Revenue,CAHD,Special ISB,Other Public Bodies,Enable Trust,1487.06, 24-Jun-2019
1081,Revenue,CAHD,Special ISB,Other Public Bodies,Enable Trust,860.91, 24-Jun-2019
1082,Revenue,CAHD,Special ISB,Other Public Bodies,Enable Trust,1134.86, 24-Jun-2019
1083,Revenue,CAHD,Special ISB,Other Public Bodies,Enable Trust,1134.86, 24-Jun-2019
1084,Revenue,CAHD,Special ISB,Other Public Bodies,Enable Trust,1134.86, 24-Jun-2019
1085,Revenue,CAHD,Special ISB,Other Public Bodies,Enable Trust,1134.86, 24-Jun-2019
1086,Revenue,CAHD,Special ISB,Other Public Bodies,Enable Trust,860.91, 24-Jun-2019
1087,Revenue,CAHD,Special ISB,Other Public Bodies,Enable Trust,860.91, 24-Jun-2019
1088,Revenue,CAHD,Special ISB,Other Public Bodies,Enable Trust,860.91, 24-Jun-2019
1089,Revenue,CAHD,Special ISB,Other Public Bodies,Enable Trust,1134.86, 24-Jun-2019
1090,Revenue,CAHD,Special ISB,Other Public Bodies,Enable Trust,860.91, 24-Jun-2019
1091,Revenue,CAHD,Special ISB,Other Public Bodies,Enable Trust,860.91, 24-Jun-2019
1092,Revenue,CAHD,Special ISB,Other Public Bodies,Enable Trust,860.91, 24-Jun-2019
1093,Revenue,CAHD,Special ISB,Other Public Bodies,Enable Trust,1134.86, 24-Jun-2019
1094,Revenue,CAHD,Special ISB,Other Public Bodies,Enable Trust,1643.53, 24-Jun-2019
1095,Revenue,CAHD,Special ISB,Other Public Bodies,Enable Trust,1643.53, 24-Jun-2019
1096,Revenue,CAHD,Special ISB,Other Public Bodies,Enable Trust,2113.11, 24-Jun-2019
1097,Revenue,CAHD,Special ISB,Other Public Bodies,Enable Trust,860.91, 24-Jun-2019
1098,Revenue,CAHD,Special ISB,Other Public Bodies,Enable Trust,1134.86, 24-Jun-2019
1099,Revenue,CAHD,Special ISB,Other Public Bodies,Enable Trust,2113.11, 24-Jun-2019
1100,Revenue,CAHD,Special ISB,Other Public Bodies,Enable Trust,1643.53, 24-Jun-2019
1101,Revenue,CAHD,Special ISB,Other Public Bodies,Enable Trust,860.91, 24-Jun-2019
1102,Revenue,CAHD,Special ISB,Other Public Bodies,Enable Trust,860.91, 24-Jun-2019
1103,Revenue,CAHD,Special ISB,Other Public Bodies,Enable Trust,1134.86, 24-Jun-2019
1104,Revenue,CAHD,Special ISB,Other Public Bodies,Enable Trust,1643.53, 24-Jun-2019
1105,Revenue,CAHD,Special ISB,Other Public Bodies,Enable Trust,1643.53, 24-Jun-2019
1106,Revenue,CAHD,School Grants - Special,Other Public Bodies,Enable Trust,5673.00, 25-Jun-2019
1107,Revenue,CAHD,South - Bed Purchasing and Direct payments,Permanent Nursing,Epworth House,3072.00, 04-Jun-2019
1108,Revenue,CAHD,South - Bed Purchasing and Direct payments,Permanent Nursing,Epworth House,3072.00, 04-Jun-2019
1109,Revenue,CAHD,North - S117,Permanent Residential,Evolve House,3276.80, 04-Jun-2019
1110,Revenue,CAHD,South - Bed Purchasing and Direct payments,Permanent Residential,Evolve House,2681.76, 04-Jun-2019
1111,Revenue,CAHD,Placements OLA Special Schools and RB,Other L.A.'s - General,Excalibur Academies Trust T/A,1511.83, 28-Jun-2019
1112,Revenue,CAHD,Extra Care Housing,Private & Voluntary Home Care,Extra Care Charitable Trust,30382.22, 12-Jun-2019
1113,Revenue,CAHD,North - bed purchasing and direct  payments,Permanent Residential,Eyre Court,3719.16, 04-Jun-2019
1114,Revenue,CAHD,South - Bed Purchasing and Direct payments,Permanent Nursing,Fairview Court,3810.56, 04-Jun-2019
1115,Revenue,CAHD,South Glos Users in South Glos Homes,Permanent Nursing,Fairview Court,662.24, 04-Jun-2019
1116,Revenue,CAHD,South Glos Users in South Glos Homes,Permanent Nursing,Fairview Court,662.24, 04-Jun-2019
1117,Revenue,CAHD,South Glos Users in South Glos Homes,Permanent Nursing,Fairview Court,662.24, 04-Jun-2019
1118,Revenue,CAHD,South - Bed Purchasing and Direct payments,Permanent Nursing,Fairview Court,3810.56, 04-Jun-2019
1119,Revenue,CAHD,South Glos Users in South Glos Homes,Permanent Nursing,Fairview Court,662.24, 04-Jun-2019
1120,Revenue,CAHD,South Glos Users in South Glos Homes,Permanent Nursing,Fairview Court,662.24, 04-Jun-2019
1121,Revenue,CAHD,South - Bed Purchasing and Direct payments,Fees & Charges Income - General,Fairview Court,3952.38, 04-Jun-2019
1122,Revenue,CAHD,South - Bed Purchasing and Direct payments,Permanent Nursing,Fairview Court,3810.56, 04-Jun-2019
1123,Revenue,CAHD,South Glos Users in South Glos Homes,Permanent Nursing,Fairview Court,662.24, 04-Jun-2019
1124,Revenue,CAHD,South - Bed Purchasing and Direct payments,Fees & Charges Income - General,Fairview Court,1570.89, 04-Jun-2019
1125,Revenue,CAHD,South Glos Users in South Glos Homes,Permanent Nursing,Fairview Court,662.24, 04-Jun-2019
1126,Revenue,CAHD,South Glos Users in South Glos Homes,Permanent Nursing,Fairview Court,662.24, 04-Jun-2019
1127,Revenue,CAHD,South - Bed Purchasing and Direct payments,Permanent Nursing,Fairview Court,3547.76, 04-Jun-2019
1128,Revenue,CAHD,South Glos Users in South Glos Homes,Permanent Nursing,Fairview Court,662.24, 04-Jun-2019
1129,Revenue,CAHD,South - Bed Purchasing and Direct payments,Permanent Nursing,Fairview Court,3810.56, 04-Jun-2019
1130,Revenue,CAHD,South Glos Users in South Glos Homes,Permanent Nursing,Fairview Court,662.24, 04-Jun-2019
1131,Revenue,CAHD,South - Bed Purchasing and Direct payments,Permanent Nursing,Fairview Court,3506.00, 04-Jun-2019
1132,Revenue,CAHD,South Glos Users in South Glos Homes,Permanent Nursing,Fairview Court,662.24, 04-Jun-2019
1133,Revenue,CAHD,South Glos Users in South Glos Homes,Permanent Nursing,Fairview Court,662.24, 04-Jun-2019
1134,Revenue,CAHD,South Glos Users in South Glos Homes,Permanent Nursing,Fairview Court,662.24, 04-Jun-2019
1135,Revenue,CAHD,South - S117,Permanent Nursing,Fairview Court,4173.84, 04-Jun-2019
1136,Revenue,CAHD,South Glos Users in South Glos Homes,Permanent Nursing,Fairview Court,662.24, 04-Jun-2019
1137,Revenue,CAHD,South Glos Users in South Glos Homes,Permanent Nursing,Fairview Court,662.24, 04-Jun-2019
1138,Revenue,CAHD,South - Bed Purchasing and Direct payments,Permanent Nursing,Fairview Court,3382.48, 04-Jun-2019
1139,Revenue,CAHD,South Glos Users in South Glos Homes,Permanent Nursing,Fairview Court,662.24, 04-Jun-2019
1140,Revenue,CAHD,South Glos Users in South Glos Homes,Permanent Nursing,Fairview Court,662.24, 04-Jun-2019
1141,Revenue,CAHD,South Glos Users in South Glos Homes,Permanent Nursing,Fairview Court,662.24, 04-Jun-2019
1142,Revenue,CAHD,South - Bed Purchasing and Direct payments,Fees & Charges Income - General,Fairview Court,887.50, 04-Jun-2019
1143,Revenue,CAHD,South Glos Users in South Glos Homes,Permanent Nursing,Fairview Court,662.24, 04-Jun-2019
1144,Revenue,CAHD,South Glos Users in South Glos Homes,Permanent Nursing,Fairview Court,662.24, 04-Jun-2019
1145,Revenue,CAHD,South Glos Users in South Glos Homes,Permanent Nursing,Fairview Court,662.24, 04-Jun-2019
1146,Revenue,CAHD,South Glos Users in South Glos Homes,Permanent Nursing,Fairview Court,662.24, 04-Jun-2019
1147,Revenue,CAHD,South Glos Users in South Glos Homes,Permanent Nursing,Fairview Court,662.24, 04-Jun-2019
1148,Revenue,CAHD,South - Bed Purchasing and Direct payments,Permanent Nursing,Fairview Court,13821.75, 04-Jun-2019
1149,Revenue,CAHD,South - Bed Purchasing and Direct payments,Permanent Nursing,Fairview Court,3810.56, 04-Jun-2019
1150,Revenue,CAHD,South - Bed Purchasing and Direct payments,Permanent Nursing,Fairview Court,3588.34, 04-Jun-2019
1151,Revenue,CAHD,South Glos Users in South Glos Homes,Permanent Nursing,Fairview Court,662.24, 04-Jun-2019
1152,Revenue,CAHD,South - Bed Purchasing and Direct payments,Fees & Charges Income - General,Fairview Court,833.76, 04-Jun-2019
1153,Revenue,CAHD,South - Bed Purchasing and Direct payments,Fees & Charges Income - General,Fairview Court,2584.44, 04-Jun-2019
1154,Revenue,CAHD,South Glos Users in South Glos Homes,Permanent Nursing,Fairview Court,662.24, 04-Jun-2019
1155,Revenue,CAHD,South Glos Users in South Glos Homes,Permanent Nursing,Fairview Court,662.24, 04-Jun-2019
1156,Revenue,CAHD,South Glos Users in South Glos Homes,Permanent Nursing,Fairview Court,662.24, 04-Jun-2019
1157,Revenue,CAHD,South Glos Users in South Glos Homes,Permanent Nursing,Fairview Court,662.24, 04-Jun-2019
1158,Revenue,CAHD,South Glos Users in South Glos Homes,Permanent Nursing,Fairview Court,662.24, 04-Jun-2019
1159,Revenue,CAHD,North - bed purchasing and direct  payments,Permanent Nursing,Fairview Court,3547.76, 04-Jun-2019
1160,Revenue,CAHD,South Glos Users in South Glos Homes,Permanent Nursing,Fairview Court,662.24, 04-Jun-2019
1161,Revenue,CAHD,South - Bed Purchasing and Direct payments,Permanent Nursing,Fairview Court,4048.64, 04-Jun-2019
1162,Revenue,CAHD,South - Bed Purchasing and Direct payments,Permanent Nursing,Fairview Court,3810.56, 04-Jun-2019
1163,Revenue,CAHD,South Glos Users in South Glos Homes,Permanent Nursing,Fairview Court,662.24, 04-Jun-2019
1164,Revenue,CAHD,South Glos Users in South Glos Homes,Permanent Nursing,Fairview Court,662.24, 04-Jun-2019
1165,Revenue,CAHD,South - Bed Purchasing and Direct payments,Permanent Residential,Fairview Court,4048.64, 04-Jun-2019
1166,Revenue,CAHD,South Glos Users in South Glos Homes,Permanent Nursing,Fairview Court,662.24, 04-Jun-2019
1167,Revenue,CAHD,South Glos Users in South Glos Homes,Permanent Nursing,Fairview Court,662.24, 04-Jun-2019
1168,Revenue,CAHD,North - bed purchasing and direct  payments,Permanent Residential,Fairview Court,3256.32, 04-Jun-2019
1169,Revenue,CAHD,South - Bed Purchasing and Direct payments,Permanent Nursing,Fairview Court,3483.68, 04-Jun-2019
1170,Revenue,CAHD,South Glos Users in South Glos Homes,Permanent Nursing,Fairview Court,662.24, 04-Jun-2019
1171,Revenue,CAHD,North - bed purchasing and direct  payments,Permanent Nursing,Fairview Court,3810.56, 04-Jun-2019
1172,Revenue,CAHD,South Glos Users in South Glos Homes,Permanent Nursing,Fairview Court,662.24, 04-Jun-2019
1173,Revenue,CAHD,South - Bed Purchasing and Direct payments,Permanent Nursing,Fairview Court,3130.36, 04-Jun-2019
1174,Revenue,CAHD,South Glos Users in South Glos Homes,Permanent Nursing,Fairview Court,662.24, 04-Jun-2019
1175,Revenue,CAHD,South - Bed Purchasing and Direct payments,Permanent Nursing,Fairview Court,3810.56, 04-Jun-2019
1176,Revenue,CAHD,South Glos Users in South Glos Homes,Permanent Nursing,Fairview Court,662.24, 04-Jun-2019
1177,Revenue,CAHD,South - Bed Purchasing and Direct payments,Permanent Nursing,Fairview Court,3547.76, 04-Jun-2019
1178,Revenue,CAHD,South Glos Users in South Glos Homes,Permanent Nursing,Fairview Court,662.24, 04-Jun-2019
1179,Revenue,CAHD,South Glos Users in South Glos Homes,Permanent Nursing,Fairview Court,662.24, 04-Jun-2019
1180,Revenue,CAHD,South Glos Users in South Glos Homes,Permanent Nursing,Fairview Court,662.24, 04-Jun-2019
1181,Revenue,CAHD,South - S117,Permanent Residential,Fairview House,2303.52, 04-Jun-2019
1182,Revenue,CAHD,South - Bed Purchasing and Direct payments,Permanent Residential,Fairview House,3455.28, 04-Jun-2019
1183,Revenue,CAHD,South - Bed Purchasing and Direct payments,Permanent Residential,Fairview House,2303.52, 04-Jun-2019
1184,Revenue,CAHD,South - Bed Purchasing and Direct payments,Fees & Charges Income - General,Fairview House,1644.92, 04-Jun-2019
1185,Revenue,CAHD,North - bed purchasing and direct  payments,Permanent Residential,Fairview House,2846.72, 04-Jun-2019
1186,Revenue,CAHD,South - Bed Purchasing and Direct payments,Fees & Charges Income - General,Fairview House,516.80, 04-Jun-2019
1187,Revenue,CAHD,Bed Purchasing - Southmead Hospital,Respite Planned - Residential,Fairview House,2250.00, 04-Jun-2019
1188,Revenue,CAHD,South - Bed Purchasing and Direct payments,Permanent Residential,Fairview House,2303.52, 04-Jun-2019
1189,Revenue,CAHD,South - Bed Purchasing and Direct payments,Permanent Residential,Fairview House,2230.32, 04-Jun-2019
1190,Revenue,CAHD,South - Bed Purchasing and Direct payments,Permanent Residential,Fairview House,2230.40, 04-Jun-2019
1191,Revenue,CAHD,South - Bed Purchasing and Direct payments,Permanent Residential,Fairview House,2608.68, 04-Jun-2019
1192,Revenue,CAHD,North - bed purchasing and direct  payments,Permanent Residential,Faith House,3297.28, 04-Jun-2019
1193,Revenue,CAHD,North - bed purchasing and direct  payments,Permanent Residential,Faith House,2805.76, 04-Jun-2019
1194,Revenue,CAHD,North - bed purchasing and direct  payments,Permanent Residential,Faith House,2805.76, 04-Jun-2019
1195,Revenue,CAHD,Central - Bed Purchasing and Direct Payments,Permanent Residential,Faith House,2928.64, 04-Jun-2019
1196,Revenue,CAHD,South - Bed Purchasing and Direct payments,Permanent Residential,Faith House,2805.76, 04-Jun-2019
1197,Revenue,CAHD,Central - Bed Purchasing and Direct Payments,Permanent Nursing,Festival House,3055.04, 04-Jun-2019
1198,Revenue,CAHD,North - bed purchasing and direct  payments,Permanent Nursing,Field House Care Home,2216.32, 04-Jun-2019
1199,Revenue,CAHD,North - bed purchasing and direct  payments,Permanent Nursing,Field House Care Home,3522.56, 04-Jun-2019
1200,Revenue,CAHD,South Glos Users in South Glos Homes,Permanent Nursing,Field House Care Home,662.24, 04-Jun-2019
1201,Revenue,CAHD,North - bed purchasing and direct  payments,Permanent Nursing,Field House Care Home,3522.56, 04-Jun-2019
1202,Revenue,CAHD,North - bed purchasing and direct  payments,Permanent Nursing,Field House Care Home,3403.60, 04-Jun-2019
1203,Revenue,CAHD,North - bed purchasing and direct  payments,Permanent Nursing,Field House Care Home,3589.48, 04-Jun-2019
1204,Revenue,CAHD,North - bed purchasing and direct  payments,Permanent Nursing,Field House Care Home,3422.52, 04-Jun-2019
1205,Revenue,CAHD,North - bed purchasing and direct  payments,Permanent Nursing,Field House Care Home,4500.00, 04-Jun-2019
1206,Revenue,CAHD,North - bed purchasing and direct  payments,Permanent Nursing,Field House Care Home,3600.00, 04-Jun-2019
1207,Revenue,CAHD,North - bed purchasing and direct  payments,Fees & Charges Income - General,Field House Care Home,691.41, 04-Jun-2019
1208,Revenue,CAHD,North - bed purchasing and direct  payments,Permanent Nursing,Field House Care Home,3422.52, 04-Jun-2019
1209,Revenue,CAHD,Central - Bed Purchasing and Direct Payments,Permanent Nursing,Field House Care Home,2314.29, 04-Jun-2019
1210,Revenue,CAHD,Central - Bed Purchasing and Direct Payments,Permanent Nursing,Field House Care Home,1285.71, 04-Jun-2019
1211,Revenue,CAHD,Central - Bed Purchasing and Direct Payments,Fees & Charges Income - General,Field House Care Home,1285.71, 04-Jun-2019
1212,Revenue,CAHD,Central - Bed Purchasing and Direct Payments,Permanent Nursing,Field House Care Home,3085.71, 04-Jun-2019
1213,Revenue,CAHD,North - bed purchasing and direct  payments,Permanent Nursing,Field House Care Home,2216.32, 04-Jun-2019
1214,Revenue,CAHD,North - bed purchasing and direct  payments,Permanent Nursing,Field House Care Home,2216.32, 04-Jun-2019
1215,Revenue,CAHD,North - bed purchasing and direct  payments,Permanent Nursing,Field House Care Home,3506.00, 04-Jun-2019
1216,Revenue,CAHD,North - bed purchasing and direct  payments,Permanent Nursing,Field House Care Home,3506.00, 04-Jun-2019
1217,Revenue,CAHD,Central - Bed Purchasing and Direct Payments,Permanent Residential,Fieldview,3481.60, 04-Jun-2019
1218,Revenue,CAHD,North - S117,Respite Planned - Residential,Fieldview,585.14, 04-Jun-2019
1219,Revenue,CAHD,North - bed purchasing and direct  payments,Permanent Residential,Fieldview,3756.44, 04-Jun-2019
1220,Revenue,CAHD,MH Purchasing - Younger,Permanent Nursing,Fieldview,8244.78, 04-Jun-2019
1221,Revenue,CAHD,MH Purchasing - Younger,Permanent Nursing,Fieldview,5496.52, 04-Jun-2019
1222,Revenue,CAHD,MH Purchasing - Younger,Fees & Charges Income - General,Fieldview,833.76, 04-Jun-2019
1223,Revenue,CAHD,South - Bed Purchasing and Direct payments,Permanent Residential,Fig House,2959.64, 04-Jun-2019
1224,Revenue,CAHD,Statemented Support Payments to OLAs,Other L.A.'s - General,Filton Avenue Primary School,1132.00, 28-Jun-2019
1225,Revenue,CAHD,Statemented Support Payments to OLAs,Other L.A.'s - General,Filton Avenue Primary School,1332.46, 28-Jun-2019
1226,Revenue,CAHD,Early Years Inclusion Fund,Other Public Bodies,First Friends (Mangotsfield),900.00, 10-Jun-2019
1227,Revenue,CAHD,Early Years Inclusion Fund,Other Public Bodies,First Friends (Mangotsfield),1800.00, 14-Jun-2019
1228,Revenue,CAHD,EARLY YEARS DEPRIVATION PAYMENT,Preventative Assistance,First Step Pre School Ltd,967.51, 24-Jun-2019
1229,Revenue,CAHD,Early Years Pupil Premium Grant,Preventative Assistance,First Step Pre School Ltd,599.14, 24-Jun-2019
1230,Revenue,CAHD,CSC - Agency Fostering,Foster Parent Allowances,Five Rivers Child Care Limited,1539.57, 17-Jun-2019
1231,Revenue,CAHD,CSC - Agency Fostering,Foster Parent Allowances,Five Rivers Child Care Limited,4069.86, 20-Jun-2019
1232,Revenue,CAHD,CSC - Agency Fostering,Foster Parent Allowances,Five Rivers Child Care Limited,4291.29, 20-Jun-2019
1233,Revenue,CAHD,CSC - Agency Fostering,Foster Parent Allowances,Five Rivers Child Care Limited,3518.19, 20-Jun-2019
1234,Revenue,CAHD,CSC - Agency Fostering,Foster Parent Allowances,Five Rivers Child Care Limited,4069.86, 20-Jun-2019
1235,Revenue,CAHD,CSC - Agency Fostering,Foster Parent Allowances,Five Rivers Child Care Limited,3671.29, 20-Jun-2019
1236,Revenue,CAHD,CSC - Agency Fostering,Foster Parent Allowances,Five Rivers Child Care Limited,3447.82, 04-Jun-2019
1237,Revenue,CAHD,CSC - Agency Fostering,Foster Parent Allowances,Five Rivers Child Care Limited,3447.82, 04-Jun-2019
1238,Revenue,CAHD,CSC - Agency Fostering,Foster Parent Allowances,Foster Care Associates Limited,3998.40, 27-Jun-2019
1239,Revenue,CAHD,CSC - Asylum Seekers - Unaccompanied,Foster Parent Allowances,Foster Care Associates Limited,3405.35, 14-Jun-2019
1240,Revenue,CAHD,Central - Community based support,Other Small Contracts,Fourways Care Limited,318.00, 07-Jun-2019
1241,Revenue,CAHD,South - community based support,Other Small Contracts,Fourways Care Limited,1307.92, 07-Jun-2019
1242,Revenue,CAHD,North - Community based support,Other Small Contracts,Fourways Care Limited,11365.52, 07-Jun-2019
1243,Revenue,CAHD,Central - Community based support,Other Small Contracts,Fourways Care Limited,318.00, 07-Jun-2019
1244,Revenue,CAHD,South - community based support,Other Small Contracts,Fourways Care Limited,1283.52, 07-Jun-2019
1245,Revenue,CAHD,North - Community based support,Other Small Contracts,Fourways Care Limited,10823.84, 07-Jun-2019
1246,Revenue,CAHD,Central - Community based support,Other Small Contracts,Fourways Care Limited,318.00, 10-Jun-2019
1247,Revenue,CAHD,South - community based support,Other Small Contracts,Fourways Care Limited,1176.16, 10-Jun-2019
1248,Revenue,CAHD,North - Community based support,Other Small Contracts,Fourways Care Limited,10784.80, 10-Jun-2019
1249,Revenue,CAHD,Central - Community based support,Other Small Contracts,Fourways Care Limited,318.00, 21-Jun-2019
1250,Revenue,CAHD,South - community based support,Other Small Contracts,Fourways Care Limited,1273.76, 21-Jun-2019
1251,Revenue,CAHD,North - Community based support,Other Small Contracts,Fourways Care Limited,10413.92, 21-Jun-2019
1252,Revenue,CAHD,Post 16 High Needs Placements,Other Private Contractors,Foxes Academy,16534.78, 11-Jun-2019
1253,Revenue,CAHD,Post 16 High Needs Placements,Other Private Contractors,Foxes Academy,15425.62, 11-Jun-2019
1254,Revenue,CAHD,Post 16 High Needs Placements,Other Private Contractors,Foxes Academy,15755.65, 11-Jun-2019
1255,Revenue,CAHD,Post 16 High Needs Placements,Other Private Contractors,Foxes Academy,15949.06, 11-Jun-2019
1256,Revenue,CAHD,Post 16 High Needs Placements,Other Private Contractors,Foxes Academy,15823.88, 11-Jun-2019
1257,Revenue,CAHD,Freeways,Permanent Residential,Freeways Trust Limited,3843.16, 07-Jun-2019
1258,Revenue,CAHD,Freeways,Permanent Residential,Freeways Trust Limited,2473.28, 07-Jun-2019
1259,Revenue,CAHD,Freeways,Permanent Residential,Freeways Trust Limited,2473.28, 07-Jun-2019
1260,Revenue,CAHD,Freeways,Permanent Residential,Freeways Trust Limited,3596.56, 07-Jun-2019
1261,Revenue,CAHD,Freeways,Permanent Residential,Freeways Trust Limited,2473.28, 07-Jun-2019
1262,Revenue,CAHD,Freeways,Permanent Residential,Freeways Trust Limited,3634.72, 07-Jun-2019
1263,Revenue,CAHD,Freeways,Permanent Residential,Freeways Trust Limited,2735.12, 07-Jun-2019
1264,Revenue,CAHD,Freeways,Permanent Residential,Freeways Trust Limited,3813.56, 07-Jun-2019
1265,Revenue,CAHD,Freeways,Permanent Residential,Freeways Trust Limited,2318.08, 07-Jun-2019
1266,Revenue,CAHD,Freeways,Permanent Residential,Freeways Trust Limited,2920.08, 07-Jun-2019
1267,Revenue,CAHD,Freeways,Permanent Residential,Freeways Trust Limited,2887.48, 07-Jun-2019
1268,Revenue,CAHD,Freeways,Permanent Residential,Freeways Trust Limited,3264.36, 07-Jun-2019
1269,Revenue,CAHD,Freeways,Permanent Residential,Freeways Trust Limited,2473.28, 07-Jun-2019
1270,Revenue,CAHD,Freeways,Respite Planned - Residential,Freeways Trust Limited,824.53, 07-Jun-2019
1271,Revenue,CAHD,Freeways,Respite Planned - Residential,Freeways Trust Limited,641.30, 07-Jun-2019
1272,Revenue,CAHD,Freeways,Respite Planned - Residential,Freeways Trust Limited,824.53, 07-Jun-2019
1273,Revenue,CAHD,Freeways,Respite Planned - Residential,Freeways Trust Limited,2565.20, 07-Jun-2019
1274,Revenue,CAHD,Freeways,Respite Planned - Residential,Freeways Trust Limited,2565.20, 07-Jun-2019
1275,Revenue,CAHD,Freeways,Permanent Residential,Freeways Trust Limited,3843.16, 21-Jun-2019
1276,Revenue,CAHD,Freeways,Permanent Residential,Freeways Trust Limited,2473.28, 21-Jun-2019
1277,Revenue,CAHD,Freeways,Permanent Residential,Freeways Trust Limited,2473.28, 21-Jun-2019
1278,Revenue,CAHD,Freeways,Permanent Residential,Freeways Trust Limited,3596.56, 21-Jun-2019
1279,Revenue,CAHD,Freeways,Permanent Residential,Freeways Trust Limited,2473.28, 21-Jun-2019
1280,Revenue,CAHD,Freeways,Permanent Residential,Freeways Trust Limited,3634.72, 21-Jun-2019
1281,Revenue,CAHD,Freeways,Permanent Residential,Freeways Trust Limited,2735.12, 21-Jun-2019
1282,Revenue,CAHD,Freeways,Permanent Residential,Freeways Trust Limited,3813.56, 21-Jun-2019
1283,Revenue,CAHD,Freeways,Permanent Residential,Freeways Trust Limited,2318.08, 21-Jun-2019
1284,Revenue,CAHD,Freeways,Permanent Residential,Freeways Trust Limited,2920.08, 21-Jun-2019
1285,Revenue,CAHD,Freeways,Permanent Residential,Freeways Trust Limited,2887.48, 21-Jun-2019
1286,Revenue,CAHD,Freeways,Permanent Residential,Freeways Trust Limited,3264.36, 21-Jun-2019
1287,Revenue,CAHD,Freeways,Permanent Residential,Freeways Trust Limited,2473.28, 21-Jun-2019
1288,Revenue,CAHD,Freeways,Respite Planned - Residential,Freeways Trust Limited,1594.82, 21-Jun-2019
1289,Revenue,CAHD,Freeways,Respite Planned - Residential,Freeways Trust Limited,844.32, 21-Jun-2019
1290,Revenue,CAHD,Freeways,Respite Planned - Residential,Freeways Trust Limited,2345.32, 21-Jun-2019
1291,Revenue,CAHD,Freeways,Respite Planned - Residential,Freeways Trust Limited,2626.76, 21-Jun-2019
1292,Revenue,CAHD,Central - Community based support,Other Small Contracts,Freeways Trust Limited,714.40, 04-Jun-2019
1293,Revenue,CAHD,North - Community based support,Other Small Contracts,Freeways Trust Limited,846.56, 05-Jun-2019
1294,Revenue,CAHD,North - Community based support,Supported Living,Freeways Trust Ltd,845.52, 04-Jun-2019
1295,Revenue,CAHD,S28A cases,Permanent Residential,Freeways Trust Ltd,3886.64, 04-Jun-2019
1296,Revenue,CAHD,North - bed purchasing and direct  payments,Permanent Residential,Freeways Trust Ltd,3763.40, 04-Jun-2019
1297,Revenue,CAHD,South - Bed Purchasing and Direct payments,Permanent Residential,Freeways Trust Ltd,3991.40, 04-Jun-2019
1298,Revenue,CAHD,North - bed purchasing and direct  payments,Permanent Residential,Freeways Trust Ltd,3013.84, 04-Jun-2019
1299,Revenue,CAHD,South - Bed Purchasing and Direct payments,Permanent Residential,Freeways Trust Ltd,3175.92, 04-Jun-2019
1300,Revenue,CAHD,North - bed purchasing and direct  payments,Permanent Residential,Freeways Trust Ltd,3328.60, 04-Jun-2019
1301,Revenue,CAHD,North - bed purchasing and direct  payments,Permanent Residential,Freeways Trust Ltd,3984.12, 04-Jun-2019
1302,Revenue,CAHD,18-25 Year Olds,Permanent Residential,Freeways Trust Ltd,3680.48, 04-Jun-2019
1303,Revenue,CAHD,Section 117 Placements MH Younger,Permanent Residential,Freeways Trust Ltd,3339.04, 04-Jun-2019
1304,Revenue,CAHD,Central - Community based support,Day Care / Social Activities,Frenchay Beckspool Building,1895.60, 04-Jun-2019
1305,Revenue,CAHD,South - community based support,Day Care / Social Activities,Frenchay Beckspool Building,902.40, 04-Jun-2019
1306,Revenue,CAHD,South - community based support,Day Care / Social Activities,Frenchay Beckspool Building,640.08, 04-Jun-2019
1307,Revenue,CAHD,Pathway 3 - (Complex Beds),Permanent Nursing,Frenchay House,3343.00, 13-Jun-2019
1308,Revenue,CAHD,Pathway 3 - (Complex Beds),Permanent Nursing,Frenchay House,3343.00, 13-Jun-2019
1309,Revenue,CAHD,North - bed purchasing and direct  payments,Permanent Nursing,Frenchay Park Nursing Home,5222.40, 04-Jun-2019
1310,Revenue,CAHD,North - bed purchasing and direct  payments,Permanent Nursing,Frenchay Park Nursing Home,3481.60, 04-Jun-2019
1311,Revenue,CAHD,North - bed purchasing and direct  payments,Fees & Charges Income - General,Frenchay Park Nursing Home,1135.88, 04-Jun-2019
1312,Revenue,CAHD,South - Bed Purchasing and Direct payments,Permanent Nursing,Frenchay Park Nursing Home,10046.38, 04-Jun-2019
1313,Revenue,CAHD,North - bed purchasing and direct  payments,Permanent Nursing,Frenchay Park Nursing Home,3268.57, 04-Jun-2019
1314,Revenue,CAHD,North - bed purchasing and direct  payments,Permanent Nursing,Frenchay Park Nursing Home,3268.57, 04-Jun-2019
1315,Revenue,CAHD,North - bed purchasing and direct  payments,Fees & Charges Income - General,Frenchay Park Nursing Home,508.39, 04-Jun-2019
1316,Revenue,CAHD,Central - Bed Purchasing and Direct Payments,Permanent Nursing,Frenchay Park Nursing Home,3481.60, 04-Jun-2019
1317,Revenue,CAHD,North - bed purchasing and direct  payments,Permanent Nursing,Frenchay Park Nursing Home,3481.60, 04-Jun-2019
1318,Revenue,CAHD,Central - Bed Purchasing and Direct Payments,Permanent Nursing,Frenchay Park Nursing Home,3400.00, 04-Jun-2019
1319,Revenue,CAHD,CSC - Social Work Team - NORTH,Agency Staff (Admin/Support Staff) Pay,Frontline Staffing Ltd,1813.11, 05-Jun-2019
1320,Revenue,CAHD,CSC - Through & Leaving Care Team,Agency Staff (Admin/Support Staff) Pay,Frontline Staffing Ltd,1778.02, 04-Jun-2019
1321,Revenue,CAHD,CSC - Social Work Team - CENTRAL,Agency Staff (Admin/Support Staff) Pay,Frontline Staffing Ltd,1801.42, 04-Jun-2019
1322,Revenue,CAHD,CSC - Social Work Team - CENTRAL,Agency Staff (Admin/Support Staff) Pay,Frontline Staffing Ltd,1731.23, 05-Jun-2019
1323,Revenue,CAHD,CSC - Social Work Team - CENTRAL,Agency Staff (Admin/Support Staff) Pay,Frontline Staffing Ltd,1497.28, 11-Jun-2019
1324,Revenue,CAHD,CSC - Through & Leaving Care Team,Agency Staff (Admin/Support Staff) Pay,Frontline Staffing Ltd,1778.02, 11-Jun-2019
1325,Revenue,CAHD,CSC - Social Work Team - NORTH,Agency Staff (Admin/Support Staff) Pay,Frontline Staffing Ltd,1403.70, 13-Jun-2019
1326,Revenue,CAHD,CSC - Social Work Team - NORTH,Agency Staff (Admin/Support Staff) Pay,Frontline Staffing Ltd,1871.60, 14-Jun-2019
1327,Revenue,CAHD,CSC - Through & Leaving Care Team,Agency Staff (Admin/Support Staff) Pay,Frontline Staffing Ltd,1731.23, 17-Jun-2019
1328,Revenue,CAHD,CSC - Social Work Team - NORTH,Agency Staff (Admin/Support Staff) Pay,Frontline Staffing Ltd,1731.23, 18-Jun-2019
1329,Revenue,CAHD,CSC - Social Work Team - CENTRAL,Agency Staff (Admin/Support Staff) Pay,Frontline Staffing Ltd,1520.68, 19-Jun-2019
1330,Revenue,CAHD,CSC - Social Work Team - NORTH,Agency Staff (Admin/Support Staff) Pay,Frontline Staffing Ltd,1871.60, 21-Jun-2019
1331,Revenue,CAHD,CSC - Social Work Team - NORTH,Agency Staff (Admin/Support Staff) Pay,Frontline Staffing Ltd,1731.23, 24-Jun-2019
1332,Revenue,CAHD,CSC - Social Work Team - CENTRAL,Agency Staff (Admin/Support Staff) Pay,Frontline Staffing Ltd,1754.63, 24-Jun-2019
1333,Revenue,CAHD,CSC - Through & Leaving Care Team,Agency Staff (Admin/Support Staff) Pay,Frontline Staffing Ltd,1731.23, 24-Jun-2019
1334,Revenue,CAHD,CSC - Social Work Team - CENTRAL,Agency Staff (Admin/Support Staff) Pay,Frontline Staffing Ltd,1871.60, 24-Jun-2019
1335,Revenue,CAHD,CSC - Social Work Team - NORTH,Agency Staff (Admin/Support Staff) Pay,Frontline Staffing Ltd,1567.47, 25-Jun-2019
1336,Revenue,CAHD,South - Bed Purchasing and Direct payments,Permanent Nursing,Fshc  1St Floor,2735.08, 04-Jun-2019
1337,Revenue,CAHD,South Glos Users in South Glos Homes,Permanent Nursing,Fshc  1St Floor,662.24, 04-Jun-2019
1338,Revenue,CAHD,South - Bed Purchasing and Direct payments,Permanent Nursing,Fshc  1St Floor,2398.00, 04-Jun-2019
1339,Revenue,CAHD,South - Bed Purchasing and Direct payments,Permanent Nursing,Fshc  1St Floor,2398.00, 04-Jun-2019
1340,Revenue,CAHD,South Glos Users in South Glos Homes,Permanent Nursing,Fshc  1St Floor,662.24, 04-Jun-2019
1341,Revenue,CAHD,South - Bed Purchasing and Direct payments,Permanent Nursing,Fshc  1St Floor,2398.00, 04-Jun-2019
1342,Revenue,CAHD,South Glos Users in South Glos Homes,Permanent Nursing,Fshc  1St Floor,662.24, 04-Jun-2019
1343,Revenue,CAHD,South - Bed Purchasing and Direct payments,Permanent Residential,Fshc  1St Floor,2462.56, 04-Jun-2019
1344,Revenue,CAHD,South - Bed Purchasing and Direct payments,Permanent Nursing,Fshc  1St Floor,2621.44, 04-Jun-2019
1345,Revenue,CAHD,South Glos Users in South Glos Homes,Permanent Nursing,Fshc  1St Floor,662.24, 04-Jun-2019
1346,Revenue,CAHD,South Glos Users in South Glos Homes,Permanent Nursing,Fshc  1St Floor,662.24, 04-Jun-2019
1347,Revenue,CAHD,North - bed purchasing and direct  payments,Permanent Nursing,Fshc  1St Floor,2891.76, 04-Jun-2019
1348,Revenue,CAHD,South Glos Users in South Glos Homes,Permanent Nursing,Fshc  1St Floor,662.24, 04-Jun-2019
1349,Revenue,CAHD,South Glos Users in South Glos Homes,Permanent Nursing,Fshc  1St Floor,662.24, 04-Jun-2019
1350,Revenue,CAHD,South - Bed Purchasing and Direct payments,Permanent Nursing,Fshc  1St Floor,2662.40, 04-Jun-2019
1351,Revenue,CAHD,South Glos Users in South Glos Homes,Permanent Nursing,Fshc  1St Floor,662.24, 04-Jun-2019
1352,Revenue,CAHD,South Glos Users in South Glos Homes,Permanent Nursing,Fshc  1St Floor,662.24, 04-Jun-2019
1353,Revenue,CAHD,South Glos Users in South Glos Homes,Permanent Nursing,Fshc  1St Floor,662.24, 04-Jun-2019
1354,Revenue,CAHD,South Glos Users in South Glos Homes,Permanent Nursing,Fshc  1St Floor,662.24, 04-Jun-2019
1355,Revenue,CAHD,South - Bed Purchasing and Direct payments,Permanent Nursing,Fshc  1St Floor,2891.76, 04-Jun-2019
1356,Revenue,CAHD,South - Bed Purchasing and Direct payments,Permanent Nursing,Fshc  1St Floor,2621.44, 04-Jun-2019
1357,Revenue,CAHD,South Glos Users in South Glos Homes,Permanent Nursing,Fshc  1St Floor,662.24, 04-Jun-2019
1358,Revenue,CAHD,South Glos Users in South Glos Homes,Permanent Nursing,Fshc  1St Floor,662.24, 04-Jun-2019
1359,Revenue,CAHD,South - Bed Purchasing and Direct payments,Permanent Residential,Fshc  1St Floor,3203.04, 04-Jun-2019
1360,Revenue,CAHD,South Glos Users in South Glos Homes,Permanent Nursing,Fshc  1St Floor,662.24, 04-Jun-2019
1361,Revenue,CAHD,South Glos Users in South Glos Homes,Permanent Nursing,Fshc  1St Floor,662.24, 04-Jun-2019
1362,Revenue,CAHD,South Glos Users in South Glos Homes,Permanent Nursing,Fshc  1St Floor,662.24, 04-Jun-2019
1363,Revenue,CAHD,South - Bed Purchasing and Direct payments,Permanent Nursing,Fshc  1St Floor,2867.20, 04-Jun-2019
1364,Revenue,CAHD,South Glos Users in South Glos Homes,Permanent Nursing,Fshc  1St Floor,614.94, 04-Jun-2019
1365,Revenue,CAHD,South - Bed Purchasing and Direct payments,Permanent Nursing,Fshc  1St Floor,2398.00, 04-Jun-2019
1366,Revenue,CAHD,South Glos Users in South Glos Homes,Permanent Nursing,Fshc  1St Floor,662.24, 04-Jun-2019
1367,Revenue,CAHD,South - Bed Purchasing and Direct payments,Permanent Nursing,Fshc  1St Floor,2462.56, 04-Jun-2019
1368,Revenue,CAHD,South Glos Users in South Glos Homes,Permanent Nursing,Fshc  1St Floor,662.24, 04-Jun-2019
1369,Revenue,CAHD,South - Bed Purchasing and Direct payments,Permanent Nursing,Fshc  1St Floor,2398.00, 04-Jun-2019
1370,Revenue,CAHD,South Glos Users in South Glos Homes,Permanent Nursing,Fshc  1St Floor,662.24, 04-Jun-2019
1371,Revenue,CAHD,South - Bed Purchasing and Direct payments,Permanent Nursing,Fshc  1St Floor,2398.00, 04-Jun-2019
1372,Revenue,CAHD,South Glos Users in South Glos Homes,Permanent Nursing,Fshc  1St Floor,662.24, 04-Jun-2019
1373,Revenue,CAHD,South Glos Users in South Glos Homes,Permanent Nursing,Fshc  1St Floor,614.94, 04-Jun-2019
1374,Revenue,CAHD,South - Bed Purchasing and Direct payments,Permanent Nursing,Fshc  1St Floor,2398.00, 04-Jun-2019
1375,Revenue,CAHD,South Glos Users in South Glos Homes,Permanent Nursing,Fshc  1St Floor,662.24, 04-Jun-2019
1376,Revenue,CAHD,South - Bed Purchasing and Direct payments,Permanent Nursing,Fshc  1St Floor,3145.72, 04-Jun-2019
1377,Revenue,CAHD,South Glos Users in South Glos Homes,Permanent Nursing,Fshc  1St Floor,662.24, 04-Jun-2019
1378,Revenue,CAHD,South - Bed Purchasing and Direct payments,Permanent Nursing,Fshc  1St Floor,2398.00, 04-Jun-2019
1379,Revenue,CAHD,South Glos Users in South Glos Homes,Permanent Nursing,Fshc  1St Floor,662.24, 04-Jun-2019
1380,Revenue,CAHD,South Glos Users in South Glos Homes,Permanent Nursing,Fshc  1St Floor,662.24, 04-Jun-2019
1381,Revenue,CAHD,South - Bed Purchasing and Direct payments,Permanent Nursing,Fshc  1St Floor,3172.12, 04-Jun-2019
1382,Revenue,CAHD,South Glos Users in South Glos Homes,Permanent Nursing,Fshc  1St Floor,662.24, 04-Jun-2019
1383,Revenue,CAHD,South - Bed Purchasing and Direct payments,Permanent Nursing,Fshc  1St Floor,2462.56, 04-Jun-2019
1384,Revenue,CAHD,South Glos Users in South Glos Homes,Permanent Nursing,Fshc  1St Floor,662.24, 04-Jun-2019
1385,Revenue,CAHD,South - Bed Purchasing and Direct payments,Permanent Nursing,Fshc  1St Floor,2933.00, 04-Jun-2019
1386,Revenue,CAHD,North - bed purchasing and direct  payments,Permanent Residential,Fshc  1St Floor,2891.76, 04-Jun-2019
1387,Revenue,CAHD,South Glos Users in South Glos Homes,Permanent Nursing,Fshc  1St Floor,662.24, 04-Jun-2019
1388,Revenue,CAHD,South Glos Users in South Glos Homes,Permanent Nursing,Fshc  1St Floor,1064.31, 04-Jun-2019
1389,Revenue,CAHD,South Glos Users in South Glos Homes,Permanent Nursing,Fshc  1St Floor,662.24, 04-Jun-2019
1390,Revenue,CAHD,Central - Bed Purchasing and Direct Payments,Permanent Nursing,Fshc  1St Floor,2398.00, 04-Jun-2019
1391,Revenue,CAHD,South Glos Users in South Glos Homes,Permanent Nursing,Fshc  1St Floor,662.24, 04-Jun-2019
1392,Revenue,CAHD,Central - Bed Purchasing and Direct Payments,Permanent Nursing,Fshc  1St Floor,2398.00, 04-Jun-2019
1393,Revenue,CAHD,South Glos Users in South Glos Homes,Permanent Nursing,Fshc  1St Floor,662.24, 04-Jun-2019
1394,Revenue,CAHD,Central - Bed Purchasing and Direct Payments,Permanent Nursing,Fshc  1St Floor,2398.00, 04-Jun-2019
1395,Revenue,CAHD,South Glos Users in South Glos Homes,Permanent Nursing,Fshc  1St Floor,662.24, 04-Jun-2019
1396,Revenue,CAHD,South Glos Users in South Glos Homes,Permanent Nursing,Fshc  1St Floor,662.24, 04-Jun-2019
1397,Revenue,CAHD,Central - Bed Purchasing and Direct Payments,Permanent Residential,Fshc  1St Floor,2764.80, 04-Jun-2019
1398,Revenue,CAHD,Central - Bed Purchasing and Direct Payments,Permanent Residential,Fshc  1St Floor,2764.80, 04-Jun-2019
1399,Revenue,CAHD,Central - Bed Purchasing and Direct Payments,Permanent Residential,Fshc  1St Floor,2230.32, 04-Jun-2019
1400,Revenue,CAHD,South Glos Users in South Glos Homes,Permanent Nursing,Fshc  1St Floor,662.24, 04-Jun-2019
1401,Revenue,CAHD,South Glos Users in South Glos Homes,Permanent Nursing,Fshc  1St Floor,662.24, 04-Jun-2019
1402,Revenue,CAHD,Central - Bed Purchasing and Direct Payments,Permanent Nursing,Fshc  1St Floor,2439.16, 04-Jun-2019
1403,Revenue,CAHD,South - Bed Purchasing and Direct payments,Permanent Residential,Fshc  1St Floor,2817.36, 04-Jun-2019
1404,Revenue,CAHD,North - bed purchasing and direct  payments,Permanent Nursing,Fshc  1St Floor,2398.00, 04-Jun-2019
1405,Revenue,CAHD,South Glos Users in South Glos Homes,Permanent Nursing,Fshc  1St Floor,662.24, 04-Jun-2019
1406,Revenue,CAHD,Central - Bed Purchasing and Direct Payments,Permanent Nursing,Fshc  1St Floor,2398.00, 04-Jun-2019
1407,Revenue,CAHD,South Glos Users in South Glos Homes,Permanent Nursing,Fshc  1St Floor,662.24, 04-Jun-2019
1408,Revenue,CAHD,Central - Bed Purchasing and Direct Payments,Permanent Nursing,Fshc  1St Floor,2398.00, 04-Jun-2019
1409,Revenue,CAHD,South Glos Users in South Glos Homes,Permanent Nursing,Fshc  1St Floor,662.24, 04-Jun-2019
1410,Revenue,CAHD,North - bed purchasing and direct  payments,Permanent Nursing,Fshc  1St Floor,2398.00, 04-Jun-2019
1411,Revenue,CAHD,South Glos Users in South Glos Homes,Permanent Nursing,Fshc  1St Floor,662.24, 04-Jun-2019
1412,Revenue,CAHD,Central - Bed Purchasing and Direct Payments,Permanent Residential,Fshc  1St Floor,2760.00, 04-Jun-2019
1413,Revenue,CAHD,Central - Bed Purchasing and Direct Payments,Permanent Residential,Fshc  1St Floor,1182.86, 04-Jun-2019
1414,Revenue,CAHD,South Glos Users in South Glos Homes,Permanent Nursing,Fshc  1St Floor,662.24, 04-Jun-2019
1415,Revenue,CAHD,Central - Bed Purchasing and Direct Payments,Permanent Residential,Fshc  1St Floor,2764.80, 04-Jun-2019
1416,Revenue,CAHD,North - bed purchasing and direct  payments,Permanent Nursing,Fshc  1St Floor,2398.00, 04-Jun-2019
1417,Revenue,CAHD,South Glos Users in South Glos Homes,Permanent Nursing,Fshc  1St Floor,662.24, 04-Jun-2019
1418,Revenue,CAHD,North - bed purchasing and direct  payments,Permanent Nursing,Fshc  1St Floor,2398.00, 04-Jun-2019
1419,Revenue,CAHD,South Glos Users in South Glos Homes,Permanent Nursing,Fshc  1St Floor,662.24, 04-Jun-2019
1420,Revenue,CAHD,South Glos Users in South Glos Homes,Permanent Nursing,Fshc  1St Floor,662.24, 04-Jun-2019
1421,Revenue,CAHD,South Glos Users in South Glos Homes,Permanent Nursing,Fshc  1St Floor,662.24, 04-Jun-2019
1422,Revenue,CAHD,North - bed purchasing and direct  payments,Permanent Nursing,Fshc  1St Floor,2439.16, 04-Jun-2019
1423,Revenue,CAHD,South Glos Users in South Glos Homes,Permanent Nursing,Fshc  1St Floor,662.24, 04-Jun-2019
1424,Revenue,CAHD,South Glos Users in South Glos Homes,Permanent Nursing,Fshc  1St Floor,662.24, 04-Jun-2019
1425,Revenue,CAHD,Central - Bed Purchasing and Direct Payments,Permanent Nursing,Fshc  1St Floor,1944.03, 04-Jun-2019
1426,Revenue,CAHD,North - bed purchasing and direct  payments,Permanent Residential,Fshc  1St Floor,2439.16, 04-Jun-2019
1427,Revenue,CAHD,South Glos Users in South Glos Homes,Permanent Nursing,Fshc  1St Floor,662.24, 04-Jun-2019
1428,Revenue,CAHD,South Glos Users in South Glos Homes,Permanent Nursing,Fshc  1St Floor,662.24, 04-Jun-2019
1429,Revenue,CAHD,South Glos Users in South Glos Homes,Permanent Nursing,Fshc  1St Floor,662.24, 04-Jun-2019
1430,Revenue,CAHD,Central - Bed Purchasing and Direct Payments,Permanent Nursing,Fshc  1St Floor,2382.00, 04-Jun-2019
1431,Revenue,CAHD,South Glos Users in South Glos Homes,Permanent Nursing,Fshc  1St Floor,827.80, 04-Jun-2019
1432,Revenue,CAHD,South Glos Users in South Glos Homes,Permanent Nursing,Fshc  1St Floor,662.24, 04-Jun-2019
1433,Revenue,CAHD,South Glos Users in South Glos Homes,Permanent Nursing,Fshc  1St Floor,662.24, 04-Jun-2019
1434,Revenue,CAHD,Central - Bed Purchasing and Direct Payments,Permanent Nursing,Fshc  1St Floor,2398.00, 04-Jun-2019
1435,Revenue,CAHD,South Glos Users in South Glos Homes,Permanent Nursing,Fshc  1St Floor,662.24, 04-Jun-2019
1436,Revenue,CAHD,Central - Bed Purchasing and Direct Payments,Permanent Nursing,Fshc  1St Floor,2439.16, 04-Jun-2019
1437,Revenue,CAHD,South Glos Users in South Glos Homes,Permanent Nursing,Fshc  1St Floor,662.24, 04-Jun-2019
1438,Revenue,CAHD,North - bed purchasing and direct  payments,Permanent Nursing,Fshc  1St Floor,2398.00, 04-Jun-2019
1439,Revenue,CAHD,South Glos Users in South Glos Homes,Permanent Nursing,Fshc  1St Floor,662.24, 04-Jun-2019
1440,Revenue,CAHD,South Glos Users in South Glos Homes,Permanent Nursing,Fshc  1St Floor,662.24, 04-Jun-2019
1441,Revenue,CAHD,North - S117,Permanent Nursing,Fshc  1St Floor,2470.44, 04-Jun-2019
1442,Revenue,CAHD,South Glos Users in South Glos Homes,Permanent Nursing,Fshc  1St Floor,662.24, 04-Jun-2019
1443,Revenue,CAHD,South Glos Users in South Glos Homes,Permanent Nursing,Fshc  1St Floor,662.24, 04-Jun-2019
1444,Revenue,CAHD,South Glos Users in South Glos Homes,Permanent Nursing,Fshc  1St Floor,662.24, 04-Jun-2019
1445,Revenue,CAHD,South Glos Users in South Glos Homes,Permanent Nursing,Fshc  1St Floor,993.36, 04-Jun-2019
1446,Revenue,CAHD,South Glos Users in South Glos Homes,Permanent Nursing,Fshc  1St Floor,662.24, 04-Jun-2019
1447,Revenue,CAHD,Central - Bed Purchasing and Direct Payments,Permanent Nursing,Fshc  1St Floor,2398.00, 04-Jun-2019
1448,Revenue,CAHD,South Glos Users in South Glos Homes,Permanent Nursing,Fshc  1St Floor,662.24, 04-Jun-2019
1449,Revenue,CAHD,Central - Bed Purchasing and Direct Payments,Permanent Nursing,Fshc  1St Floor,2398.00, 04-Jun-2019
1450,Revenue,CAHD,South Glos Users in South Glos Homes,Permanent Nursing,Fshc  1St Floor,662.24, 04-Jun-2019
1451,Revenue,CAHD,Central - Bed Purchasing and Direct Payments,Permanent Nursing,Fshc  1St Floor,3219.17, 04-Jun-2019
1452,Revenue,CAHD,Central - Bed Purchasing and Direct Payments,Permanent Nursing,Fshc  1St Floor,2311.20, 04-Jun-2019
1453,Revenue,CAHD,South Glos Users in South Glos Homes,Permanent Nursing,Fshc  1St Floor,922.41, 04-Jun-2019
1454,Revenue,CAHD,South Glos Users in South Glos Homes,Permanent Nursing,Fshc  1St Floor,662.24, 04-Jun-2019
1455,Revenue,CAHD,North - bed purchasing and direct  payments,Permanent Nursing,Fshc  1St Floor,2437.12, 04-Jun-2019
1456,Revenue,CAHD,South Glos Users in South Glos Homes,Permanent Nursing,Fshc  1St Floor,662.24, 04-Jun-2019
1457,Revenue,CAHD,Central - Bed Purchasing and Direct Payments,Permanent Nursing,Fshc  1St Floor,2366.68, 04-Jun-2019
1458,Revenue,CAHD,Central - Bed Purchasing and Direct Payments,Permanent Nursing,Fshc  1St Floor,2398.00, 04-Jun-2019
1459,Revenue,CAHD,Central - Bed Purchasing and Direct Payments,Permanent Residential,Fshc  1St Floor,2834.44, 04-Jun-2019
1460,Revenue,CAHD,North - bed purchasing and direct  payments,Permanent Nursing,Fshc  1St Floor,2398.00, 04-Jun-2019
1461,Revenue,CAHD,South Glos Users in South Glos Homes,Permanent Nursing,Fshc  1St Floor,662.24, 04-Jun-2019
1462,Revenue,CAHD,Bed Purchasing - Southmead Hospital,Respite Planned - Residential,Fshc  1St Floor,1113.53, 04-Jun-2019
1463,Revenue,CAHD,North - bed purchasing and direct  payments,Permanent Nursing,Fshc  1St Floor,2398.00, 04-Jun-2019
1464,Revenue,CAHD,South Glos Users in South Glos Homes,Permanent Nursing,Fshc  1St Floor,662.24, 04-Jun-2019
1465,Revenue,CAHD,South Glos Users in South Glos Homes,Permanent Nursing,Fshc  1St Floor,662.24, 04-Jun-2019
1466,Revenue,CAHD,Central - Bed Purchasing and Direct Payments,Permanent Nursing,Fshc  1St Floor,2398.00, 04-Jun-2019
1467,Revenue,CAHD,South Glos Users in South Glos Homes,Permanent Nursing,Fshc  1St Floor,662.24, 04-Jun-2019
1468,Revenue,CAHD,North - bed purchasing and direct  payments,Permanent Nursing,Fshc  1St Floor,2471.44, 04-Jun-2019
1469,Revenue,CAHD,South Glos Users in South Glos Homes,Permanent Nursing,Fshc  1St Floor,662.24, 04-Jun-2019
1470,Revenue,CAHD,South Glos Users in South Glos Homes,Permanent Nursing,Fshc  1St Floor,662.24, 04-Jun-2019
1471,Revenue,CAHD,North - bed purchasing and direct  payments,Permanent Nursing,Fshc  1St Floor,2356.60, 04-Jun-2019
1472,Revenue,CAHD,South Glos Users in South Glos Homes,Permanent Nursing,Fshc  1St Floor,662.24, 04-Jun-2019
1473,Revenue,CAHD,North - bed purchasing and direct  payments,Permanent Nursing,Fshc  1St Floor,2471.44, 04-Jun-2019
1474,Revenue,CAHD,South Glos Users in South Glos Homes,Permanent Nursing,Fshc  1St Floor,662.24, 04-Jun-2019
1475,Revenue,CAHD,Central - Bed Purchasing and Direct Payments,Permanent Nursing,Fshc  1St Floor,2486.12, 04-Jun-2019
1476,Revenue,CAHD,South Glos Users in South Glos Homes,Permanent Nursing,Fshc  1St Floor,662.24, 04-Jun-2019
1477,Revenue,CAHD,North - bed purchasing and direct  payments,Permanent Nursing,Fshc  1St Floor,2398.00, 04-Jun-2019
1478,Revenue,CAHD,South Glos Users in South Glos Homes,Permanent Nursing,Fshc  1St Floor,662.24, 04-Jun-2019
1479,Revenue,CAHD,Central - Bed Purchasing and Direct Payments,Permanent Nursing,Fshc  1St Floor,3234.72, 04-Jun-2019
1480,Revenue,CAHD,South Glos Users in South Glos Homes,Permanent Nursing,Fshc  1St Floor,662.24, 04-Jun-2019
1481,Revenue,CAHD,Central - Bed Purchasing and Direct Payments,Permanent Nursing,Fshc  1St Floor,3472.44, 04-Jun-2019
1482,Revenue,CAHD,South Glos Users in South Glos Homes,Permanent Nursing,Fshc  1St Floor,662.24, 04-Jun-2019
1483,Revenue,CAHD,Central - Bed Purchasing and Direct Payments,Permanent Nursing,Fshc  1St Floor,15542.86, 04-Jun-2019
1484,Revenue,CAHD,Central - Bed Purchasing and Direct Payments,Fees & Charges Income - General,Fshc  1St Floor,3390.86, 04-Jun-2019
1485,Revenue,CAHD,Central - Bed Purchasing and Direct Payments,Permanent Nursing,Fshc  1St Floor,746.06, 04-Jun-2019
1486,Revenue,CAHD,Central - Bed Purchasing and Direct Payments,Fees & Charges Income - General,Fshc  1St Floor,2505.53, 04-Jun-2019
1487,Revenue,CAHD,South Glos Users in South Glos Homes,Permanent Nursing,Fshc  1St Floor,662.24, 04-Jun-2019
1488,Revenue,CAHD,South Glos Users in South Glos Homes,Permanent Nursing,Fshc  1St Floor,662.24, 04-Jun-2019
1489,Revenue,CAHD,South Glos Users in South Glos Homes,Permanent Nursing,Fshc  1St Floor,662.24, 04-Jun-2019
1490,Revenue,CAHD,South Glos Users in South Glos Homes,Permanent Nursing,Fshc  1St Floor,662.24, 04-Jun-2019
1491,Revenue,CAHD,Central - Bed Purchasing and Direct Payments,Permanent Nursing,Fshc  1St Floor,2731.36, 04-Jun-2019
1492,Revenue,CAHD,South Glos Users in South Glos Homes,Permanent Nursing,Fshc  1St Floor,662.24, 04-Jun-2019
1493,Revenue,CAHD,South Glos Users in South Glos Homes,Permanent Nursing,Fshc  1St Floor,1111.62, 04-Jun-2019
1494,Revenue,CAHD,South Glos Users in South Glos Homes,Permanent Nursing,Fshc  1St Floor,662.24, 04-Jun-2019
1495,Revenue,CAHD,South Glos Users in South Glos Homes,Permanent Nursing,Fshc  1St Floor,662.24, 04-Jun-2019
1496,Revenue,CAHD,Central - Bed Purchasing and Direct Payments,Permanent Nursing,Fshc  1St Floor,2997.60, 04-Jun-2019
1497,Revenue,CAHD,South Glos Users in South Glos Homes,Permanent Nursing,Fshc  1St Floor,662.24, 04-Jun-2019
1498,Revenue,CAHD,South Glos Users in South Glos Homes,Permanent Nursing,Fshc  1St Floor,662.24, 04-Jun-2019
1499,Revenue,CAHD,South Glos Users in South Glos Homes,Permanent Nursing,Fshc  1St Floor,1064.31, 04-Jun-2019
1500,Revenue,CAHD,South Glos Users in South Glos Homes,Permanent Nursing,Fshc  1St Floor,662.24, 04-Jun-2019
1501,Revenue,CAHD,Central - Bed Purchasing and Direct Payments,Respite Planned - Nursing,Fshc  1St Floor,2587.56, 04-Jun-2019
1502,Revenue,CAHD,South Glos Users in South Glos Homes,Permanent Nursing,Fshc  1St Floor,662.24, 04-Jun-2019
1503,Revenue,CAHD,South Glos Users in South Glos Homes,Permanent Nursing,Fshc  1St Floor,662.24, 04-Jun-2019
1504,Revenue,CAHD,Central - Bed Purchasing and Direct Payments,Permanent Nursing,Fshc  1St Floor,2608.68, 04-Jun-2019
1505,Revenue,CAHD,South Glos Users in South Glos Homes,Permanent Nursing,Fshc  1St Floor,662.24, 04-Jun-2019
1506,Revenue,CAHD,South Glos Users in South Glos Homes,Permanent Nursing,Fshc  1St Floor,662.24, 04-Jun-2019
1507,Revenue,CAHD,South Glos Users in South Glos Homes,Permanent Nursing,Fshc  1St Floor,662.24, 04-Jun-2019
1508,Revenue,CAHD,South Glos Users in South Glos Homes,Permanent Nursing,Fshc  1St Floor,662.24, 04-Jun-2019
1509,Revenue,CAHD,Central - Bed Purchasing and Direct Payments,Permanent Nursing,Fshc  1St Floor,2471.44, 04-Jun-2019
1510,Revenue,CAHD,South Glos Users in South Glos Homes,Permanent Nursing,Fshc  1St Floor,662.24, 04-Jun-2019
1511,Revenue,CAHD,Central - Bed Purchasing and Direct Payments,Permanent Nursing,Fshc  1St Floor,3038.56, 04-Jun-2019
1512,Revenue,CAHD,South Glos Users in South Glos Homes,Permanent Nursing,Fshc  1St Floor,662.24, 04-Jun-2019
1513,Revenue,CAHD,Central - Bed Purchasing and Direct Payments,Respite Planned - Nursing,Fshc  1St Floor,7144.71, 04-Jun-2019
1514,Revenue,CAHD,South Glos Users in South Glos Homes,Permanent Nursing,Fshc  1St Floor,662.24, 04-Jun-2019
1515,Revenue,CAHD,North - bed purchasing and direct  payments,Permanent Nursing,Fshc  1St Floor,2834.20, 04-Jun-2019
1516,Revenue,CAHD,South Glos Users in South Glos Homes,Permanent Nursing,Fshc  1St Floor,662.24, 04-Jun-2019
1517,Revenue,CAHD,South Glos Users in South Glos Homes,Permanent Nursing,Fshc  1St Floor,662.24, 04-Jun-2019
1518,Revenue,CAHD,Central - Bed Purchasing and Direct Payments,Permanent Nursing,Fshc  1St Floor,3234.72, 04-Jun-2019
1519,Revenue,CAHD,South Glos Users in South Glos Homes,Permanent Nursing,Fshc  1St Floor,662.24, 04-Jun-2019
1520,Revenue,CAHD,North - bed purchasing and direct  payments,Permanent Nursing,Fshc  1St Floor,2515.48, 04-Jun-2019
1521,Revenue,CAHD,South Glos Users in South Glos Homes,Permanent Nursing,Fshc  1St Floor,662.24, 04-Jun-2019
1522,Revenue,CAHD,South - Bed Purchasing and Direct payments,Permanent Nursing,Fshc  1St Floor,2616.12, 04-Jun-2019
1523,Revenue,CAHD,South Glos Users in South Glos Homes,Permanent Nursing,Fshc  1St Floor,662.24, 04-Jun-2019
1524,Revenue,CAHD,Central - Bed Purchasing and Direct Payments,Permanent Nursing,Fshc  1St Floor,2471.44, 04-Jun-2019
1525,Revenue,CAHD,South Glos Users in South Glos Homes,Permanent Nursing,Fshc  1St Floor,662.24, 04-Jun-2019
1526,Revenue,CAHD,South - Bed Purchasing and Direct payments,Permanent Nursing,Fshc  1St Floor,3243.36, 04-Jun-2019
1527,Revenue,CAHD,South Glos Users in South Glos Homes,Permanent Nursing,Fshc  1St Floor,662.24, 04-Jun-2019
1528,Revenue,CAHD,South - Bed Purchasing and Direct payments,Permanent Nursing,Fshc  1St Floor,2608.68, 04-Jun-2019
1529,Revenue,CAHD,South Glos Users in South Glos Homes,Permanent Nursing,Fshc  1St Floor,662.24, 04-Jun-2019
1530,Revenue,CAHD,South - Bed Purchasing and Direct payments,Permanent Nursing,Fshc  1St Floor,2398.00, 04-Jun-2019
1531,Revenue,CAHD,South Glos Users in South Glos Homes,Permanent Nursing,Fshc  1St Floor,662.24, 04-Jun-2019
1532,Revenue,CAHD,South - Bed Purchasing and Direct payments,Permanent Nursing,Fshc  1St Floor,2504.28, 04-Jun-2019
1533,Revenue,CAHD,South Glos Users in South Glos Homes,Permanent Nursing,Fshc  1St Floor,662.24, 04-Jun-2019
1534,Revenue,CAHD,South Glos Users in South Glos Homes,Permanent Nursing,Fshc  1St Floor,662.24, 04-Jun-2019
1535,Revenue,CAHD,South Glos Users in South Glos Homes,Permanent Nursing,Fshc  1St Floor,662.24, 04-Jun-2019
1536,Revenue,CAHD,South - Bed Purchasing and Direct payments,Permanent Residential,Fshc  1St Floor,2662.40, 04-Jun-2019
1537,Revenue,CAHD,South Glos Users in South Glos Homes,Permanent Nursing,Fshc  1St Floor,662.24, 04-Jun-2019
1538,Revenue,CAHD,South Glos Users in South Glos Homes,Permanent Nursing,Fshc  1St Floor,662.24, 04-Jun-2019
1539,Revenue,CAHD,South - Bed Purchasing and Direct payments,Permanent Residential,Fshc  1St Floor,2399.96, 04-Jun-2019
1540,Revenue,CAHD,South Glos Users in South Glos Homes,Permanent Nursing,Fshc  1St Floor,662.24, 04-Jun-2019
1541,Revenue,CAHD,South - Bed Purchasing and Direct payments,Permanent Residential,Fshc  1St Floor,2457.60, 04-Jun-2019
1542,Revenue,CAHD,South - Bed Purchasing and Direct payments,Permanent Residential,Fshc  1St Floor,2263.56, 04-Jun-2019
1543,Revenue,CAHD,South - Bed Purchasing and Direct payments,Permanent Nursing,Fshc  1St Floor,2471.44, 04-Jun-2019
1544,Revenue,CAHD,South Glos Users in South Glos Homes,Permanent Nursing,Fshc  1St Floor,662.24, 04-Jun-2019
1545,Revenue,CAHD,South - Bed Purchasing and Direct payments,Permanent Nursing,Fshc  1St Floor,2748.24, 04-Jun-2019
1546,Revenue,CAHD,South Glos Users in South Glos Homes,Permanent Nursing,Fshc  1St Floor,662.24, 04-Jun-2019
1547,Revenue,CAHD,South - Bed Purchasing and Direct payments,Permanent Nursing,Fshc  1St Floor,2398.00, 04-Jun-2019
1548,Revenue,CAHD,South Glos Users in South Glos Homes,Permanent Nursing,Fshc  1St Floor,662.24, 04-Jun-2019
1549,Revenue,CAHD,South - Bed Purchasing and Direct payments,Permanent Residential,Fshc  1St Floor,2303.60, 04-Jun-2019
1550,Revenue,CAHD,South - Bed Purchasing and Direct payments,Permanent Nursing,Fshc  1St Floor,2287.36, 04-Jun-2019
1551,Revenue,CAHD,South - S117,Permanent Nursing,Fshc  1St Floor,2287.36, 04-Jun-2019
1552,Revenue,CAHD,South - Bed Purchasing and Direct payments,Permanent Nursing,Fshc  1St Floor,3593.88, 04-Jun-2019
1553,Revenue,CAHD,North - bed purchasing and direct  payments,Permanent Nursing,Fshc  1St Floor,2287.36, 04-Jun-2019
1554,Revenue,CAHD,North - bed purchasing and direct  payments,Permanent Nursing,Fshc  1St Floor,3756.44, 04-Jun-2019
1555,Revenue,CAHD,North - bed purchasing and direct  payments,Permanent Nursing,Fshc  1St Floor,3234.72, 04-Jun-2019
1556,Revenue,CAHD,South - Bed Purchasing and Direct payments,Permanent Nursing,Fshc  1St Floor,2287.36, 04-Jun-2019
1557,Revenue,CAHD,South - Bed Purchasing and Direct payments,Permanent Residential,Fshc  1St Floor,3744.04, 04-Jun-2019
1558,Revenue,CAHD,North - bed purchasing and direct  payments,Permanent Nursing,Fshc  1St Floor,3522.43, 04-Jun-2019
1559,Revenue,CAHD,North - bed purchasing and direct  payments,Permanent Nursing,Fshc  1St Floor,2401.84, 04-Jun-2019
1560,Revenue,CAHD,North - bed purchasing and direct  payments,Permanent Residential,Fshc  1St Floor,2347.20, 04-Jun-2019
1561,Revenue,CAHD,North - bed purchasing and direct  payments,Permanent Residential,Fshc  1St Floor,2174.20, 04-Jun-2019
1562,Revenue,CAHD,North - bed purchasing and direct  payments,Permanent Residential,Fshc  1St Floor,1397.70, 04-Jun-2019
1563,Revenue,CAHD,North - bed purchasing and direct  payments,Permanent Nursing,Fshc  1St Floor,2289.56, 04-Jun-2019
1564,Revenue,CAHD,Central - Bed Purchasing and Direct Payments,Permanent Residential,Fshc  1St Floor,2347.20, 04-Jun-2019
1565,Revenue,CAHD,Central - Bed Purchasing and Direct Payments,Permanent Nursing,Fshc  1St Floor,4173.84, 04-Jun-2019
1566,Revenue,CAHD,North - bed purchasing and direct  payments,Permanent Nursing,Fshc  1St Floor,2364.44, 04-Jun-2019
1567,Revenue,CAHD,North - bed purchasing and direct  payments,Permanent Residential,Fshc  1St Floor,2273.28, 04-Jun-2019
1568,Revenue,CAHD,North - bed purchasing and direct  payments,Permanent Nursing,Fshc  1St Floor,2657.80, 04-Jun-2019
1569,Revenue,CAHD,North - bed purchasing and direct  payments,Fees & Charges Income - General,Fshc  1St Floor,979.51, 04-Jun-2019
1570,Revenue,CAHD,CSC - Agency Fostering,Foster Parent Allowances,Fusion Fostering Ltd,4477.71, 20-Jun-2019
1571,Revenue,CAHD,CSC - Asylum Seekers - Unaccompanied,Adults - Family Support,Fusion Independence Limited,3321.43, 04-Jun-2019
1572,Revenue,CAHD,CSC - Care Leavers Independent Living,Independent Living,Fusion Independence Limited,17142.86, 21-Jun-2019
1573,Revenue,CAHD,CSC - Asylum Seekers - Unaccompanied,Adults - Family Support,Fusion Independence Limited,3214.28, 20-Jun-2019
1574,Revenue,CAHD,CSC - Corporate Parenting Manager,Agency Staff (Admin/Support Staff) Pay,Gatenby Sanderson Limited,2900.00, 04-Jun-2019
1575,Revenue,CAHD,CSC - Corporate Parenting Manager,Agency Staff (Admin/Support Staff) Pay,Gatenby Sanderson Limited,2320.00, 10-Jun-2019
1576,Revenue,CAHD,CSC - Corporate Parenting Manager,Agency Staff (Admin/Support Staff) Pay,Gatenby Sanderson Limited,2900.00, 19-Jun-2019
1577,Revenue,CAHD,CSC - Corporate Parenting Manager,Agency Staff (Admin/Support Staff) Pay,Gatenby Sanderson Limited,2900.00, 25-Jun-2019
1578,Revenue,CAHD,Sexual Health,Other Small Contracts,GBS Re Chelsea & Westminster Hospital NHS,706.00, 28-Jun-2019
1579,Revenue,CAHD,Alexandra Way,Premises Maintenance by Contractor,George Grimes,2550.00, 19-Jun-2019
1580,Revenue,CAHD,South - Bed Purchasing and Direct payments,Permanent Residential,Gladstone House,5999.84, 04-Jun-2019
1581,Revenue,CAHD,Jointly Funded H&SC Packages,Permanent Residential,Gladstone House,783.98, 04-Jun-2019
1582,Revenue,CAHD,MH Purchasing - Younger,Permanent Residential,Gladstone House,3135.90, 04-Jun-2019
1583,Revenue,CAHD,North - bed purchasing and direct  payments,Permanent Residential,Glan Y Felin,6803.40, 04-Jun-2019
1584,Revenue,CAHD,South - Bed Purchasing and Direct payments,Permanent Residential,Glasallt Fawr,5344.40, 04-Jun-2019
1585,Revenue,CAHD,North - bed purchasing and direct  payments,Permanent Nursing,Glebe House Nursing Home,3664.16, 04-Jun-2019
1586,Revenue,CAHD,South Glos Users in South Glos Homes,Permanent Nursing,Glebe House Nursing Home,662.24, 04-Jun-2019
1587,Revenue,CAHD,South Glos Users in South Glos Homes,Permanent Nursing,Glebe House Nursing Home,662.24, 04-Jun-2019
1588,Revenue,CAHD,North - bed purchasing and direct  payments,Permanent Nursing,Glebe House Nursing Home,3973.12, 04-Jun-2019
1589,Revenue,CAHD,South Glos Users in South Glos Homes,Permanent Nursing,Glebe House Nursing Home,662.24, 04-Jun-2019
1590,Revenue,CAHD,South Glos Users in South Glos Homes,Permanent Nursing,Glebe House Nursing Home,662.24, 04-Jun-2019
1591,Revenue,CAHD,South Glos Users in South Glos Homes,Permanent Nursing,Glebe House Nursing Home,662.24, 04-Jun-2019
1592,Revenue,CAHD,South Glos Users in South Glos Homes,Permanent Nursing,Glebe House Nursing Home,662.24, 04-Jun-2019
1593,Revenue,CAHD,South Glos Users in South Glos Homes,Permanent Nursing,Glebe House Nursing Home,662.24, 04-Jun-2019
1594,Revenue,CAHD,North - bed purchasing and direct  payments,Permanent Residential,Glebe House Nursing Home,3785.04, 04-Jun-2019
1595,Revenue,CAHD,North - bed purchasing and direct  payments,Permanent Residential,Glebe House Nursing Home,3833.84, 04-Jun-2019
1596,Revenue,CAHD,North - bed purchasing and direct  payments,Permanent Nursing,Glebe House Nursing Home,3665.92, 04-Jun-2019
1597,Revenue,CAHD,South Glos Users in South Glos Homes,Permanent Nursing,Glebe House Nursing Home,662.24, 04-Jun-2019
1598,Revenue,CAHD,South Glos Users in South Glos Homes,Permanent Nursing,Glebe House Nursing Home,662.24, 04-Jun-2019
1599,Revenue,CAHD,South Glos Users in South Glos Homes,Permanent Nursing,Glebe House Nursing Home,662.24, 04-Jun-2019
1600,Revenue,CAHD,North - bed purchasing and direct  payments,Permanent Nursing,Glebe House Nursing Home,4048.60, 04-Jun-2019
1601,Revenue,CAHD,South Glos Users in South Glos Homes,Permanent Nursing,Glebe House Nursing Home,662.24, 04-Jun-2019
1602,Revenue,CAHD,South Glos Users in South Glos Homes,Permanent Nursing,Glebe House Nursing Home,662.24, 04-Jun-2019
1603,Revenue,CAHD,South Glos Users in South Glos Homes,Permanent Nursing,Glebe House Nursing Home,662.24, 04-Jun-2019
1604,Revenue,CAHD,North - bed purchasing and direct  payments,Permanent Nursing,Glebe House Nursing Home,3960.16, 04-Jun-2019
1605,Revenue,CAHD,South Glos Users in South Glos Homes,Permanent Nursing,Glebe House Nursing Home,662.24, 04-Jun-2019
1606,Revenue,CAHD,North - bed purchasing and direct  payments,Permanent Residential,Glebe House Nursing Home,4075.52, 04-Jun-2019
1607,Revenue,CAHD,South Glos Users in South Glos Homes,Permanent Nursing,Glebe House Nursing Home,662.24, 04-Jun-2019
1608,Revenue,CAHD,South Glos Users in South Glos Homes,Permanent Nursing,Glebe House Nursing Home,1158.92, 04-Jun-2019
1609,Revenue,CAHD,South Glos Users in South Glos Homes,Permanent Nursing,Glebe House Nursing Home,662.24, 04-Jun-2019
1610,Revenue,CAHD,South Glos Users in South Glos Homes,Permanent Nursing,Glebe House Nursing Home,875.10, 04-Jun-2019
1611,Revenue,CAHD,North - bed purchasing and direct  payments,Permanent Nursing,Glebe House Nursing Home,3760.00, 04-Jun-2019
1612,Revenue,CAHD,North - bed purchasing and direct  payments,Permanent Nursing,Glebe House Nursing Home,3502.08, 04-Jun-2019
1613,Revenue,CAHD,South Glos Users in South Glos Homes,Permanent Nursing,Glebe House Nursing Home,662.24, 04-Jun-2019
1614,Revenue,CAHD,CSC - Vinney Green Secure Unit,R & M by Departments,Gleeds,4900.00, 28-Jun-2019
1615,Revenue,CAHD,South - Bed Purchasing and Direct payments,Permanent Nursing,Glenview,2891.76, 04-Jun-2019
1616,Revenue,CAHD,North - S117,Permanent Nursing,Glenview,3301.36, 04-Jun-2019
1617,Revenue,CAHD,South - Bed Purchasing and Direct payments,Permanent Nursing,Glenview,3993.60, 04-Jun-2019
1618,Revenue,CAHD,North - bed purchasing and direct  payments,Permanent Nursing,Glenview,2891.76, 04-Jun-2019
1619,Revenue,CAHD,Parent Partnership,Fees - General,Global Mediation Limited,7700.00, 19-Jun-2019
1620,Revenue,CAHD,Parent Partnership,Fees - General,Global Mediation Limited,3300.00, 28-Jun-2019
1621,Revenue,CAHD,North - bed purchasing and direct  payments,Permanent Residential,Goldcare House,5707.68, 04-Jun-2019
1622,Revenue,CAHD,South - Bed Purchasing and Direct payments,Permanent Residential,Gordena Care Home,11356.43, 04-Jun-2019
1623,Revenue,CAHD,South - Bed Purchasing and Direct payments,Fees & Charges Income - General,Gordena Care Home,1522.86, 04-Jun-2019
1624,Revenue,CAHD,South - Bed Purchasing and Direct payments,Fees & Charges Income - General,Gordena Care Home,7428.93, 04-Jun-2019
1625,Revenue,CAHD,South - Bed Purchasing and Direct payments,Permanent Residential,Gordena Care Home,6028.38, 04-Jun-2019
1626,Revenue,CAHD,South - Bed Purchasing and Direct payments,Permanent Residential,Gordena Care Home,4018.92, 04-Jun-2019
1627,Revenue,CAHD,South - Bed Purchasing and Direct payments,Permanent Residential,Gordena Care Home,3504.21, 04-Jun-2019
1628,Revenue,CAHD,South - Bed Purchasing and Direct payments,Fees & Charges Income - General,Gordena Care Home,854.46, 04-Jun-2019
1629,Revenue,CAHD,South - Bed Purchasing and Direct payments,Permanent Residential,Gordena Care Home,9671.63, 04-Jun-2019
1630,Revenue,CAHD,South - Bed Purchasing and Direct payments,Fees & Charges Income - General,Gordena Care Home,555.87, 04-Jun-2019
1631,Revenue,CAHD,South - Bed Purchasing and Direct payments,Fees & Charges Income - General,Gordena Care Home,833.76, 04-Jun-2019
1632,Revenue,CAHD,South - Bed Purchasing and Direct payments,Fees & Charges Income - General,Gordena Care Home,1341.54, 04-Jun-2019
1633,Revenue,CAHD,South - Bed Purchasing and Direct payments,Permanent Residential,Gordena Care Home,2736.12, 04-Jun-2019
1634,Revenue,CAHD,South - Bed Purchasing and Direct payments,Permanent Residential,Gordena Care Home,3895.40, 04-Jun-2019
1635,Revenue,CAHD,South - Bed Purchasing and Direct payments,Permanent Residential,Gordena Care Home,3907.28, 04-Jun-2019
1636,Revenue,CAHD,South - Bed Purchasing and Direct payments,Permanent Residential,Gordena Care Limited,5105.52, 04-Jun-2019
1637,Revenue,CAHD,S28A cases,Permanent Residential,Gordena Care Limited,4965.36, 04-Jun-2019
1638,Revenue,CAHD,North - bed purchasing and direct  payments,Permanent Residential,Gordena Care Limited,5175.04, 04-Jun-2019
1639,Revenue,CAHD,Central - Bed Purchasing and Direct Payments,Permanent Residential,Grace Care Centre,29314.29, 17-Jun-2019
1640,Revenue,CAHD,Central - Bed Purchasing and Direct Payments,Permanent Residential,Grace Care Centre,7372.80, 17-Jun-2019
1641,Revenue,CAHD,Central - Bed Purchasing and Direct Payments,Permanent Residential,Grace Care Centre,4915.20, 17-Jun-2019
1642,Revenue,CAHD,North - bed purchasing and direct  payments,Respite Planned - Residential,Grace Care Centre,1485.00, 17-Jun-2019
1643,Revenue,CAHD,South - Bed Purchasing and Direct payments,Permanent Nursing,Gracefields Nursing Home,3761.76, 04-Jun-2019
1644,Revenue,CAHD,South Glos Users in South Glos Homes,Permanent Nursing,Gracefields Nursing Home,662.24, 04-Jun-2019
1645,Revenue,CAHD,South - Bed Purchasing and Direct payments,Permanent Nursing,Gracefields Nursing Home,3796.32, 04-Jun-2019
1646,Revenue,CAHD,South Glos Users in South Glos Homes,Permanent Nursing,Gracefields Nursing Home,662.24, 04-Jun-2019
1647,Revenue,CAHD,South - Bed Purchasing and Direct payments,Fees & Charges Income - General,Gracefields Nursing Home,917.11, 04-Jun-2019
1648,Revenue,CAHD,South - Bed Purchasing and Direct payments,Permanent Nursing,Gracefields Nursing Home,3652.12, 04-Jun-2019
1649,Revenue,CAHD,South Glos Users in South Glos Homes,Permanent Nursing,Gracefields Nursing Home,662.24, 04-Jun-2019
1650,Revenue,CAHD,South Glos Users in South Glos Homes,Permanent Nursing,Gracefields Nursing Home,662.24, 04-Jun-2019
1651,Revenue,CAHD,South Glos Users in South Glos Homes,Permanent Nursing,Gracefields Nursing Home,662.24, 04-Jun-2019
1652,Revenue,CAHD,South - Bed Purchasing and Direct payments,Permanent Nursing,Gracefields Nursing Home,3652.96, 04-Jun-2019
1653,Revenue,CAHD,South Glos Users in South Glos Homes,Permanent Nursing,Gracefields Nursing Home,662.24, 04-Jun-2019
1654,Revenue,CAHD,South - Bed Purchasing and Direct payments,Permanent Nursing,Gracefields Nursing Home,3652.96, 04-Jun-2019
1655,Revenue,CAHD,South Glos Users in South Glos Homes,Permanent Nursing,Gracefields Nursing Home,662.24, 04-Jun-2019
1656,Revenue,CAHD,South - S117,Permanent Nursing,Gracefields Nursing Home,2551.96, 04-Jun-2019
1657,Revenue,CAHD,South Glos Users in South Glos Homes,Permanent Nursing,Gracefields Nursing Home,662.24, 04-Jun-2019
1658,Revenue,CAHD,South - Bed Purchasing and Direct payments,Permanent Nursing,Gracefields Nursing Home,3756.44, 04-Jun-2019
1659,Revenue,CAHD,South Glos Users in South Glos Homes,Permanent Nursing,Gracefields Nursing Home,662.24, 04-Jun-2019
1660,Revenue,CAHD,South - Bed Purchasing and Direct payments,Permanent Nursing,Gracefields Nursing Home,3229.20, 04-Jun-2019
1661,Revenue,CAHD,South Glos Users in South Glos Homes,Permanent Nursing,Gracefields Nursing Home,662.24, 04-Jun-2019
1662,Revenue,CAHD,South Glos Users in South Glos Homes,Permanent Nursing,Gracefields Nursing Home,662.24, 04-Jun-2019
1663,Revenue,CAHD,North - bed purchasing and direct  payments,Permanent Nursing,Gracefields Nursing Home,3571.04, 04-Jun-2019
1664,Revenue,CAHD,South - Bed Purchasing and Direct payments,Permanent Nursing,Gracefields Nursing Home,3874.16, 04-Jun-2019
1665,Revenue,CAHD,South Glos Users in South Glos Homes,Permanent Nursing,Gracefields Nursing Home,662.24, 04-Jun-2019
1666,Revenue,CAHD,Central - Bed Purchasing and Direct Payments,Permanent Nursing,Gracefields Nursing Home,3652.96, 04-Jun-2019
1667,Revenue,CAHD,South Glos Users in South Glos Homes,Permanent Nursing,Gracefields Nursing Home,662.24, 04-Jun-2019
1668,Revenue,CAHD,South Glos Users in South Glos Homes,Permanent Nursing,Gracefields Nursing Home,662.24, 04-Jun-2019
1669,Revenue,CAHD,South - Bed Purchasing and Direct payments,Permanent Nursing,Gracefields Nursing Home,3652.96, 04-Jun-2019
1670,Revenue,CAHD,South Glos Users in South Glos Homes,Permanent Nursing,Gracefields Nursing Home,662.24, 04-Jun-2019
1671,Revenue,CAHD,South Glos Users in South Glos Homes,Permanent Nursing,Gracefields Nursing Home,662.24, 04-Jun-2019
1672,Revenue,CAHD,South Glos Users in South Glos Homes,Permanent Nursing,Gracefields Nursing Home,662.24, 04-Jun-2019
1673,Revenue,CAHD,South - Bed Purchasing and Direct payments,Permanent Nursing,Gracefields Nursing Home,3204.88, 04-Jun-2019
1674,Revenue,CAHD,South Glos Users in South Glos Homes,Permanent Nursing,Gracefields Nursing Home,662.24, 04-Jun-2019
1675,Revenue,CAHD,South Glos Users in South Glos Homes,Permanent Nursing,Gracefields Nursing Home,662.24, 04-Jun-2019
1676,Revenue,CAHD,South Glos Users in South Glos Homes,Permanent Nursing,Gracefields Nursing Home,662.24, 04-Jun-2019
1677,Revenue,CAHD,South - Bed Purchasing and Direct payments,Permanent Nursing,Gracefields Nursing Home,3229.20, 04-Jun-2019
1678,Revenue,CAHD,South Glos Users in South Glos Homes,Permanent Nursing,Gracefields Nursing Home,662.24, 04-Jun-2019
1679,Revenue,CAHD,South Glos Users in South Glos Homes,Permanent Nursing,Gracefields Nursing Home,662.24, 04-Jun-2019
1680,Revenue,CAHD,South Glos Users in South Glos Homes,Permanent Nursing,Gracefields Nursing Home,662.24, 04-Jun-2019
1681,Revenue,CAHD,South Glos Users in South Glos Homes,Permanent Nursing,Gracefields Nursing Home,662.24, 04-Jun-2019
1682,Revenue,CAHD,South Glos Users in South Glos Homes,Permanent Nursing,Gracefields Nursing Home,662.24, 04-Jun-2019
1683,Revenue,CAHD,South Glos Users in South Glos Homes,Permanent Nursing,Gracefields Nursing Home,662.24, 04-Jun-2019
1684,Revenue,CAHD,South Glos Users in South Glos Homes,Permanent Nursing,Gracefields Nursing Home,662.24, 04-Jun-2019
1685,Revenue,CAHD,South Glos Users in South Glos Homes,Permanent Nursing,Gracefields Nursing Home,662.24, 04-Jun-2019
1686,Revenue,CAHD,South Glos Users in South Glos Homes,Permanent Nursing,Gracefields Nursing Home,662.24, 04-Jun-2019
1687,Revenue,CAHD,South Glos Users in South Glos Homes,Permanent Nursing,Gracefields Nursing Home,662.24, 04-Jun-2019
1688,Revenue,CAHD,South - Bed Purchasing and Direct payments,Permanent Nursing,Gracefields Nursing Home,662.24, 04-Jun-2019
1689,Revenue,CAHD,South Glos Users in South Glos Homes,Permanent Nursing,Gracefields Nursing Home,662.24, 04-Jun-2019
1690,Revenue,CAHD,South - Bed Purchasing and Direct payments,Permanent Nursing,Gracefields Nursing Home,3988.84, 04-Jun-2019
1691,Revenue,CAHD,South - Bed Purchasing and Direct payments,Permanent Nursing,Gracefields Nursing Home,3481.60, 04-Jun-2019
1692,Revenue,CAHD,South Glos Users in South Glos Homes,Permanent Nursing,Gracefields Nursing Home,662.24, 04-Jun-2019
1693,Revenue,CAHD,South - Bed Purchasing and Direct payments,Permanent Nursing,Gracefields Nursing Home,3652.96, 04-Jun-2019
1694,Revenue,CAHD,South - Bed Purchasing and Direct payments,Permanent Nursing,Gracefields Nursing Home,3827.94, 04-Jun-2019
1695,Revenue,CAHD,South - Bed Purchasing and Direct payments,Permanent Nursing,Gracefields Nursing Home,2551.96, 04-Jun-2019
1696,Revenue,CAHD,South Glos Users in South Glos Homes,Permanent Nursing,Gracefields Nursing Home,662.24, 04-Jun-2019
1697,Revenue,CAHD,South - Bed Purchasing and Direct payments,Fees & Charges Income - General,Gracefields Nursing Home,1263.15, 04-Jun-2019
1698,Revenue,CAHD,South - Bed Purchasing and Direct payments,Permanent Nursing,Gracefields Nursing Home,3547.76, 04-Jun-2019
1699,Revenue,CAHD,South Glos Users in South Glos Homes,Permanent Nursing,Gracefields Nursing Home,662.24, 04-Jun-2019
1700,Revenue,CAHD,South Glos Users in South Glos Homes,Permanent Nursing,Gracefields Nursing Home,1158.92, 04-Jun-2019
1701,Revenue,CAHD,South Glos Users in South Glos Homes,Permanent Nursing,Gracefields Nursing Home,662.24, 04-Jun-2019
1702,Revenue,CAHD,South Glos Users in South Glos Homes,Permanent Nursing,Gracefields Nursing Home,662.24, 04-Jun-2019
1703,Revenue,CAHD,South Glos Users in South Glos Homes,Permanent Nursing,Gracefields Nursing Home,662.24, 04-Jun-2019
1704,Revenue,CAHD,CSC - Legal Fees,Legal Fees,Graeme Harrison,550.00, 18-Jun-2019
1705,Revenue,CAHD,CSC - Residential Placements,Permanent Residential,Greenfields Adolecent Development Limited,2567.14, 25-Jun-2019
1706,Revenue,CAHD,CSC - Residential Placements,Permanent Residential,Greenfields Adolecent Development Limited,25671.43, 12-Jun-2019
1707,Revenue,CAHD,CSC - Residential Placements,Permanent Residential,Greenfields Adolecent Development Limited,25671.43, 12-Jun-2019
1708,Revenue,CAHD,CSC - Care Leavers Independent Living,Adults - Family Support,Greenfields Adolecent Development Limited,12851.49, 13-Jun-2019
1709,Revenue,CAHD,CSC - Residential Placements,Permanent Residential,Greenfields Adolecent Development Limited,26527.14, 28-Jun-2019
1710,Revenue,CAHD,CSC - Residential Placements,Permanent Residential,Greenfields Adolecent Development Limited,26527.14, 28-Jun-2019
1711,Revenue,CAHD,Academy Resource Base Funding,Other Public Bodies,Greenshaw Learning Trust T/A Yate Academy,978.34, 24-Jun-2019
1712,Revenue,CAHD,Academy Resource Base Funding,Other Public Bodies,Greenshaw Learning Trust T/A Yate Academy,978.34, 24-Jun-2019
1713,Revenue,CAHD,Academy Resource Base Funding,Other Public Bodies,Greenshaw Learning Trust T/A Yate Academy,1487.06, 24-Jun-2019
1714,Revenue,CAHD,Academy Resource Base Funding,Other Public Bodies,Greenshaw Learning Trust T/A Yate Academy,1134.86, 24-Jun-2019
1715,Revenue,CAHD,Academy Resource Base Funding,Other Public Bodies,Greenshaw Learning Trust T/A Yate Academy,626.06, 24-Jun-2019
1716,Revenue,CAHD,Academy Resource Base Funding,Other Public Bodies,Greenshaw Learning Trust T/A Yate Academy,1643.53, 24-Jun-2019
1717,Revenue,CAHD,Academy Resource Base Funding,Other Public Bodies,Greenshaw Learning Trust T/A Yate Academy,1487.06, 24-Jun-2019
1718,Revenue,CAHD,Statemented Support Academies,Other Public Bodies,Greenshaw Learning Trust T/A Yate Academy,554.21, 28-Jun-2019
1719,Revenue,CAHD,Statemented Support Academies,Other Public Bodies,Greenshaw Learning Trust T/A Yate Academy,1073.04, 28-Jun-2019
1720,Revenue,CAHD,Statemented Support Academies,Other Public Bodies,Greenshaw Learning Trust T/A Yate Academy,707.50, 28-Jun-2019
1721,Revenue,CAHD,Statemented Support Academies,Other Public Bodies,Greenshaw Learning Trust T/A Yate Academy,1320.67, 28-Jun-2019
1722,Revenue,CAHD,Statemented Support Academies,Other Public Bodies,Greenshaw Learning Trust T/A Yate Academy,1320.67, 28-Jun-2019
1723,Revenue,CAHD,Statemented Support Academies,Other Public Bodies,Greenshaw Learning Trust T/A Yate Academy,1073.04, 28-Jun-2019
1724,Revenue,CAHD,Statemented Support Academies,Other Public Bodies,Greenshaw Learning Trust T/A Yate Academy,1073.04, 28-Jun-2019
1725,Revenue,CAHD,Statemented Support Academies,Other Public Bodies,Greenshaw Learning Trust T/A Yate Academy,837.21, 28-Jun-2019
1726,Revenue,CAHD,Statemented Support Academies,Other Public Bodies,Greenshaw Learning Trust T/A Yate Academy,801.83, 28-Jun-2019
1727,Revenue,CAHD,Statemented Support Academies,Other Public Bodies,Greenshaw Learning Trust T/A Yate Academy,742.88, 28-Jun-2019
1728,Revenue,CAHD,Statemented Support Academies,Other Public Bodies,Greenshaw Learning Trust T/A Yate Academy,825.42, 28-Jun-2019
1729,Revenue,CAHD,Statemented Support Academies,Other Public Bodies,Greenshaw Learning Trust T/A Yate Academy,778.25, 28-Jun-2019
1730,Revenue,CAHD,Statemented Support Academies,Other Public Bodies,Greenshaw Learning Trust T/A Yate Academy,860.79, 28-Jun-2019
1731,Revenue,CAHD,Statemented Support Academies,Other Public Bodies,Greenshaw Learning Trust T/A Yate Academy,624.96, 28-Jun-2019
1732,Revenue,CAHD,Statemented Support Academies,Other Public Bodies,Greenshaw Learning Trust T/A Yate Academy,554.21, 28-Jun-2019
1733,Revenue,CAHD,Central - Bed Purchasing and Direct Payments,Permanent Residential,Greensleeves,2704.36, 04-Jun-2019
1734,Revenue,CAHD,South - Bed Purchasing and Direct payments,Permanent Residential,Gwendoline House,2676.68, 04-Jun-2019
1735,Revenue,CAHD,South - Bed Purchasing and Direct payments,Permanent Residential,Gwendoline House,2600.00, 04-Jun-2019
1736,Revenue,CAHD,South - Bed Purchasing and Direct payments,Permanent Residential,Gwendoline House,2507.14, 04-Jun-2019
1737,Revenue,CAHD,South - Bed Purchasing and Direct payments,Permanent Residential,Gwendoline House,2473.40, 04-Jun-2019
1738,Revenue,CAHD,North - Community based support,Other Small Contracts,H F T,736.25, 24-Jun-2019
1739,Revenue,CAHD,South - community based support,Other Small Contracts,H F T,922.88, 24-Jun-2019
1740,Revenue,CAHD,Social Lettings Agency,Fees - General,Individual,13.13, 27-Jun-2019
1741,Revenue,CAHD,Social Lettings Agency,Other Supplies & Services,Individual,577.72, 27-Jun-2019
1742,Revenue,CAHD,EARLY YEARS DEPRIVATION PAYMENT,Preventative Assistance,Happy Days Day Nursery - Cheswick Village,1665.71, 24-Jun-2019
1743,Revenue,CAHD,Early Years Pupil Premium Grant,Preventative Assistance,Happy Days Day Nursery - Cheswick Village,1031.51, 24-Jun-2019
1744,Revenue,CAHD,North - Community based support,Other Supplies & Services,HAS Technology Limited T/A CM2000,1610.00, 24-Jun-2019
1745,Revenue,CAHD,North - bed purchasing and direct  payments,Permanent Nursing,Hazelwood Gardens Nursing Home,2721.84, 04-Jun-2019
1746,Revenue,CAHD,North - bed purchasing and direct  payments,Permanent Nursing,Hazelwood Gardens Nursing Home,2343.48, 04-Jun-2019
1747,Revenue,CAHD,Central - Bed Purchasing and Direct Payments,Permanent Residential,Hc-One Ltd,2233.36, 04-Jun-2019
1748,Revenue,CAHD,North - bed purchasing and direct  payments,Permanent Nursing,Hc-One Ltd,2883.88, 04-Jun-2019
1749,Revenue,CAHD,North - bed purchasing and direct  payments,Fees & Charges Income - General,Hc-One Ltd,863.05, 04-Jun-2019
1750,Revenue,CAHD,Central - Bed Purchasing and Direct Payments,Permanent Residential,Hc-One Ltd,2277.92, 04-Jun-2019
1751,Revenue,CAHD,Central - Bed Purchasing and Direct Payments,Permanent Residential,Hc-One Ltd,2369.24, 04-Jun-2019
1752,Revenue,CAHD,Central - Bed Purchasing and Direct Payments,Permanent Nursing,Hc-One Ltd,2321.72, 04-Jun-2019
1753,Revenue,CAHD,North - bed purchasing and direct  payments,Permanent Nursing,Hc-One Ltd,2223.20, 04-Jun-2019
1754,Revenue,CAHD,North - bed purchasing and direct  payments,Respite Planned - Nursing,John Wills House,16328.57, 04-Jun-2019
1755,Revenue,CAHD,North - bed purchasing and direct  payments,Respite Planned - Nursing,John Wills House,642.86, 04-Jun-2019
1756,Revenue,CAHD,Bed Purchasing - Southmead Hospital,Respite Emergency - Residential,John Wills House,2399.43, 04-Jun-2019
1757,Revenue,CAHD,North - bed purchasing and direct  payments,Permanent Nursing,The Russets,2470.80, 04-Jun-2019
1758,Revenue,CAHD,North - bed purchasing and direct  payments,Permanent Nursing,Charterhouse Care Home,4554.08, 04-Jun-2019
1759,Revenue,CAHD,CSC - Residential Placements,Permanent Residential,Headway Adolescent Resources Limited,13600.00, 06-Jun-2019
1760,Revenue,CAHD,CSC - Residential Placements,Permanent Residential,Headway Adolescent Resources Limited,13600.00, 25-Jun-2019
1761,Revenue,CAHD,Central - Community based support,Day Care / Social Activities,Headway Bristol,631.68, 21-Jun-2019
1762,Revenue,CAHD,Central - Community based support,Other Small Contracts,Headway Bristol,338.40, 21-Jun-2019
1763,Revenue,CAHD,South - community based support,Day Care / Social Activities,Headway Bristol,338.40, 21-Jun-2019
1764,Revenue,CAHD,South - community based support,Other Small Contracts,Headway Bristol,248.16, 21-Jun-2019
1765,Revenue,CAHD,North - Community based support,Day Care / Social Activities,Headway Bristol,67.68, 21-Jun-2019
1766,Revenue,CAHD,Younger MH non-res purchasing,Day Care / Social Activities,Headway Bristol,45.12, 21-Jun-2019
1767,Revenue,CAHD,Central - Community based support,Day Care / Social Activities,Headway Bristol,406.08, 21-Jun-2019
1768,Revenue,CAHD,Central - Community based support,Other Small Contracts,Headway Bristol,406.08, 21-Jun-2019
1769,Revenue,CAHD,South - community based support,Day Care / Social Activities,Headway Bristol,338.40, 21-Jun-2019
1770,Revenue,CAHD,South - community based support,Other Small Contracts,Headway Bristol,315.84, 21-Jun-2019
1771,Revenue,CAHD,North - Community based support,Day Care / Social Activities,Headway Bristol,67.68, 21-Jun-2019
1772,Revenue,CAHD,Younger MH non-res purchasing,Day Care / Social Activities,Headway Bristol,90.24, 21-Jun-2019
1773,Revenue,CAHD,Central - Community based support,Day Care / Social Activities,Headway Bristol,451.20, 21-Jun-2019
1774,Revenue,CAHD,Central - Community based support,Other Small Contracts,Headway Bristol,518.88, 21-Jun-2019
1775,Revenue,CAHD,South - community based support,Day Care / Social Activities,Headway Bristol,338.40, 21-Jun-2019
1776,Revenue,CAHD,South - community based support,Other Small Contracts,Headway Bristol,180.48, 21-Jun-2019
1777,Revenue,CAHD,North - Community based support,Day Care / Social Activities,Headway Bristol,67.68, 21-Jun-2019
1778,Revenue,CAHD,North - Community based support,Other Small Contracts,Headway Bristol,90.24, 21-Jun-2019
1779,Revenue,CAHD,Younger MH non-res purchasing,Day Care / Social Activities,Headway Bristol,45.12, 21-Jun-2019
